Workbook

Sheet 2016-17 DATA
A1: Your Council 2016/17 | F1: The State of Local Government in NSW | AE1: How is the NSW Local Government Sector Performing Financially? | BC1: Services Provided to You by Council | CR1: Managing Community Assets | CW1: Stronger Community Leadership
F2: Your Local Population | U2: Your Local Economy | AE2: Your Council's Financial Performance | AM2: Your Council's Financial Result | AO2: Your Council's Rating Revenue | BC2: Your Council's Expenditure on Services | BZ2: Your Council's Waste Management ## | CI2: Your Council's Services | CR2: Your Council's Community Assets | CW2: Your Council's Community Leadership | DG2: Your Council
A3: Council The councils listed are those that continued operations and reported for the financial year 1 July 2016 to 30 June 2017 | B3: OLG Group | C3: Classification | D3: Joint Organisation Region | E3: Council Area (km2) | F3: Population | G3: Population Change over 5 years (%) | H3: Population Density per capita/km2 | I3: Male Population | J3: Male Population (%) | K3: Female Population | L3: Female Population (%) | M3: Population aged <20 (%) | N3: Population aged between 20 and 60 (%) | O3: Population aged >60 (%) | P3: Population aged <30 (%) | Q3: Population aged between 30 and 60 (%) | R3: Population aged >60 (%) | S3: Aboriginal & Torres Strait Islanders Population (%) | T3: Language other than English Population (%) | U3: Socio-Economic Index Rating 2016 | V3: Unemployment Rate at 30 June 2017 (%) | W3: 2015 Average taxable income (taxable and non-taxable individuals) ($) | X3: Census 2016 - Average Household Size (Number) | Y3: Largest Industry Employer | Z3: Number of Active Businesses in LGA | AA3: Number Development Applications Determined by Councillors ## | AB3: Number of Development Applications Determined ## | AC3: Value of Development Applications Determined ($) ## | AD3: Mean Gross Days for Development Applications ## | AE3: Operating Performance Ratio | AF3: Unrestricted Current Ratio | AG3: % Own Source Revenue | AH3: % Grants & Contributions Revenue | AI3: Rates and Annual Charges Outstanding (%) | AJ3: Debt Service Cover Ratio | AK3: Debt Service Ratio | AL3: Cash Expense Cover Ratio | AM3: Total Expenses from Continuing Operations 2016/17 ($'000) | AN3: Total Revenue from Continuing Operations 2016/17 ($,000) | AO3: Total Residential Rating Revenue 2016/17 ($'000) | AP3: Average Residential Rate 2016/17 ($) | AQ3: Number of Residential Rating Assessments 2016/17 | AR3: Total Farmland Rates Revenue ($'000) | AS3: Average Farmland Rate ($) | AT3: Total Number Farmland Assessments | AU3: Total Business Rates Revenue ($'000) | AV3: Average Business Assessment ($) | AW3: Total Number Business Assessments | AX3: Total Mining Rates Revenue ($'000) | AY3: Average Mining Rates ($) | AZ3: Total Number Mining Assessments | BA3: Total Land Value / Total Rate Income ($) | BB3: Pensioner Residential Rate (%) | BC3: Total Governance & Administration Expenditure ($'000) | BD3: % of Total Expenditure on Governance & Administration | BE3: Total Public Order, Safety, Health, Water & Sewer Expenditure ($'000) | BF3: % of Total Expenditure on Public Order, Safety, Health, Water & Sewer | BG3: Total Environmental Expenditure ($'000) | BH3: % of Total Expenditure on Environmental | BI3: Total Community Services, Education & Housing Expenditure ($'000) | BJ3: % of Total Expenditure on Community Services, Education & Housing | BK3: Total Recreational & Cultural Expenditure ($'000) | BL3: % of Total Expenditure on Recreational & Cultural | BM3: Total Roads, Bridges & Footpaths Expenditure ($'000) | BN3: % of Total Expenditure on Roads, Bridges & Footpaths | BO3: Total Other Services Expenditure ($'000) | BP3: % of Total Expenditure on Other Services | BQ3: Governance & Administration Expenditure per capita ($) | BR3: Environmental Expenditure per capita ($) | BS3: Total Water & Sewer Expenditure per capita ($) | BT3: Community Services & Education, Housing & Community Amenities Expenditure per capita ($) | BU3: Recreational & Cultural Expenditure per capita ($) | BV3: Public Order, Safety & Health Expenditure per capita ($) | BW3: Other Services Expenditure per capita ($) | BX3: Library Services Expenditure per Capita ($) | BY3: Roads, Bridges & Footpaths Expenditure per capita ($) | BZ3: Typical Water & Sewer Bill ($) | CA3: Average Domestic Waste Annual Charge ($) | CB3: Recycling Rate (%) | CC3: Tonnes Collected of Dry Recycling | CD3: Dry Recycling of Total Waste (%) | CE3: Tonnes Collected of Organics | CF3: Organics of Total Waste (%) | CG3: Tonnes Collected of Residual Waste | CH3: Residual Waste of Total Waste (%) | CI3: Companion Animals micro chipped (No.) | CJ3: Companion Animals micro chipped and registered (%) | CK3: Total Road Length (including local & regional roads) (km) | CL3: Metre Road Length per capita | CM3: Open Public Space (ha) | CN3: Number of Public Swimming Pools (Including Tidal & Rock Pools) | CO3: Number of Public Halls | CP3: Number of Public Libraries ## | CQ3: Library circulation per capita ## | CR3: Actual Asset Maintenance Expenditure 2016/17 ($'000) | CS3: Required Asset Maintenance Expenditure 2016/17 ($'000) | CT3: Asset Maintenance Ratio (%) | CU3: Building & Infrastructure Renewal Ratio (%) | CV3: Infrastructure Backlog Ratio | CW3: Audited Financial Statements Submitted on Time | CX3: Councillor Expenses ($) | CY3: Total Mayoral & Councillor Fees ($) | CZ3: Mayoral & Councillor Overseas Travel ($) | DA3: Mayoral & Councillor Conference Expenses ($) | DB3: Mayoral & Councillor Interstate Travel ($) | DC3: General Manager's Remuneration ($) | DD3: Number of Code of Conduct Complaints Received | DE3: Cost of dealing with Code of Conduct Complaints ($) | DF3: Complaints Investigated for Breach (No.) | DG3: Number of Councillors | DH3: Population/ Number of Councillors | DI3: Elected Female Councillors (%) | DJ3: Elected Male Councillors (%) | DK3: Councillors ATSI (%) | DL3: Councillors NESB (%) | DM3: Elected Age <30 (%) | DN3: Elected Age between 30 and 59 (%) | DO3: Elected Age >60 (%) | DP3: Full Time Equivalent Staff | DQ3: Population/Equivalent Full Time Staff
A4: Albury | B4: 4 | C4: Regional Town/City | D4: Riverina and Murray | E4: 305.9 | F4: 52165 | G4: 5.488261107 | H4: 170.5 | I4: 25262 | J4: 48.4271063 | K4: 26903 | L4: 51.5728937 | M4: 25.6378798 | N4: 51.38502828 | O4: 22.97709192 | P4: 39.44598869 | Q4: 37.57691939 | R4: 22.97709192 | S4: 2.8 | T4: 6.7 | U4: 64 | V4: 6.5 | W4: 49590.17485 | X4: 2.3 | Y4: Health Care & Social Assistance | Z4: 4557 | AA4: Data not yet available | AB4: Data not yet available | AC4: Data not yet available | AD4: Data not yet available | AE4: 16.78 | AF4: 3.3 | AG4: 79.5 | AH4: 20.49756897 | AI4: 10.26 | AJ4: 7.1 | AK4: 5.858516819 | AL4: 16.1769 | AM4: 103623 | AN4: 139036 | AO4: 27490 | AP4: 1242.822912 | AQ4: 22119 | AR4: 554 | AS4: 3094.972067 | AT4: 179 | AU4: 10006 | AV4: 5827.60629 | AW4: 1717 | AX4: 0 | AY4: 0 | AZ4: 0 | BA4: 83.72940263 | BB4: 18.17442018 | BC4: 13707 | BD4: 13.22992877 | BE4: 23658 | BF4: 22.83458487 | BG4: 13482 | BH4: 13.01275988 | BI4: 10198 | BJ4: 9.843059282 | BK4: 16918 | BL4: 16.32917013 | BM4: 13652 | BN4: 13.17684304 | BO4: 11991 | BP4: 11.57365404 | BQ4: 262.7623886 | BR4: 258.4491517 | BS4: 413.7256781 | BT4: 195.4950637 | BU4: 324.3170708 | BV4: 39.79679862 | BW4: 229.8667689 | BX4: 41.48375347 | BY4: 261.7080418 | BZ4: Data not yet available | CA4: 281.6583028 | CB4: Data not yet available | CC4: Data not yet available | CD4: Data not yet available | CE4: Data not yet available | CF4: Data not yet available | CG4: Data not yet available | CH4: Data not yet available | CI4: 15600 | CJ4: 53.2444178 | CK4: 573.18 | CL4: 10.98782709 | CM4: 2029.7 | CN4: 2 | CO4: 13 | CP4: Data not yet available | CQ4: Data not yet available | CR4: 28344 | CS4: 35129 | CT4: 80.69 | CU4: 46.9 | CV4: 3.12 | CW4: Y | CX4: 26000 | CY4: 207000 | CZ4: 0 | DA4: 6158 | DB4: 15610 | DC4: 322021 | DD4: 4 | DE4: 16780 | DF4: 0 | DG4: 9 | DH4: 5796.111111 | DI4: 33 | DJ4: 67 | DK4: 0 | DL4: 11 | DM4: 11 | DN4: 55.55555556 | DO4: 33 | DP4: 442 | DQ4: 118.020362
A5: Armidale Regional | B5: 4 | C5: Regional Town/City | D5: New England | E5: 8620.7 | F5: 30311 | G5: 2.132893052 | H5: 3.5 | I5: 14691 | J5: 48.46755303 | K5: 15620 | L5: 51.53244697 | M5: 27.39929399 | N5: 51.00128666 | O5: 21.59941935 | P5: 43.58813632 | Q5: 34.81244433 | R5: 21.59941935 | S5: 7.4 | T5: 7.9 | U5: 87 | V5: 6.4 | W5: 46398.58925 | X5: 2.4 | Y5: Education & Training | Z5: 2908 | AA5: Data not yet available | AB5: Data not yet available | AC5: Data not yet available | AD5: Data not yet available | AE5: * | AF5: * | AG5: * | AH5: * | AI5: * | AJ5: * | AK5: * | AL5: * | AM5: * | AN5: * | AO5: * | AP5: * | AQ5: * | AR5: * | AS5: * | AT5: * | AU5: * | AV5: * | AW5: * | AX5: * | AY5: * | AZ5: * | BA5: * | BB5: * | BC5: * | BD5: * | BE5: * | BF5: * | BG5: * | BH5: * | BI5: * | BJ5: * | BK5: * | BL5: * | BM5: * | BN5: * | BO5: * | BP5: * | BQ5: * | BR5: * | BS5: * | BT5: * | BU5: * | BV5: * | BW5: * | BX5: * | BY5: * | BZ5: Data not yet available | CA5: * | CB5: Data not yet available | CC5: Data not yet available | CD5: Data not yet available | CE5: Data not yet available | CF5: Data not yet available | CG5: Data not yet available | CH5: Data not yet available | CI5: 9052 | CJ5: 53.4002574 | CK5: 2041.08 | CL5: 67.33793012 | CM5: 2597 | CN5: 2 | CO5: 8 | CP5: Data not yet available | CQ5: Data not yet available | CR5: * | CS5: * | CT5: * | CU5: * | CV5: * | CW5: Y | CX5: * | CY5: * | CZ5: * | DA5: * | DB5: * | DC5: * | DD5: 1 | DE5: 0 | DF5: 0 | DG5: - | DH5: - | DI5: - | DJ5: - | DK5: - | DL5: - | DM5: - | DN5: - | DO5: - | DP5: 293 | DQ5: 103.4505119
A6: Ballina | B6: 4 | C6: Regional Town/City | D6: Northern Rivers | E6: 484.9 | F6: 42626 | G6: 4.611382433 | H6: 87.9 | I6: 20606 | J6: 48.34138789 | K6: 22020 | L6: 51.65861211 | M6: 22.8358279 | N6: 45.53324262 | O6: 31.63092948 | P6: 31.01393516 | Q6: 37.35513536 | R6: 31.63092948 | S6: 3.3 | T6: 3.8 | U6: 92 | V6: 3.8 | W6: 46216.09925 | X6: 2.3 | Y6: Health Care & Social Assistance | Z6: 4244 | AA6: Data not yet available | AB6: Data not yet available | AC6: Data not yet available | AD6: Data not yet available | AE6: 8.88 | AF6: 4.8827 | AG6: 64.59 | AH6: 35.36481359 | AI6: 3.56 | AJ6: 2.7264 | AK6: 13.49040796 | AL6: 12.0067 | AM6: 85046 | AN6: 114908 | AO6: 14245 | AP6: 898.3980827 | AQ6: 15856 | AR6: 1505 | AS6: 1444.337812 | AT6: 1042 | AU6: 3772 | AV6: 2960.753532 | AW6: 1274 | AX6: 0 | AY6: 0 | AZ6: 0 | BA6: 259.1093458 | BB6: 22.89354188 | BC6: 4988 | BD6: 5.867406954 | BE6: 30953 | BF6: 36.41015386 | BG6: 10846 | BH6: 12.75819884 | BI6: 5859 | BJ6: 6.891968193 | BK6: 9670 | BL6: 11.37486472 | BM6: 18792 | BN6: 22.10511457 | BO6: 3904 | BP6: 4.592292853 | BQ6: 117.0177826 | BR6: 254.4456435 | BS6: 656.6884061 | BT6: 137.4513208 | BU6: 226.8568479 | BV6: 69.46464599 | BW6: 91.58729414 | BX6: 38.19265237 | BY6: 440.8576925 | BZ6: Data not yet available | CA6: 385.153885 | CB6: Data not yet available | CC6: Data not yet available | CD6: Data not yet available | CE6: Data not yet available | CF6: Data not yet available | CG6: Data not yet available | CH6: Data not yet available | CI6: 5836 | CJ6: 65.66048838 | CK6: 685.65 | CL6: 16.08525313 | CM6: 338 | CN6: 3 | CO6: 13 | CP6: Data not yet available | CQ6: Data not yet available | CR6: 6271 | CS6: 7563 | CT6: 82.91 | CU6: 38.13 | CV6: 1.97 | CW6: Y | CX6: 46000 | CY6: 225000 | CZ6: 0 | DA6: 14000 | DB6: 6000 | DC6: 303532 | DD6: 1 | DE6: 200 | DF6: 0 | DG6: 10 | DH6: 4262.6 | DI6: 20 | DJ6: 80 | DK6: 0 | DL6: 0 | DM6: 0 | DN6: 50 | DO6: 50 | DP6: 295 | DQ6: 144.4949153
A7: Balranald | B7: 9 | C7: Rural | E7: 21690.7 | F7: 2310 | G7: -1.827454314 | H7: 0.1 | I7: 1183 | J7: 51.21212121 | K7: 1127 | L7: 48.78787879 | M7: 28.22510823 | N7: 49.91341991 | O7: 21.86147186 | P7: 41.08225108 | Q7: 37.05627706 | R7: 21.86147186 | S7: 8.7 | T7: 6.7 | U7: 30 | V7: 2.8 | W7: 39633.47889 | X7: 2.5 | Y7: Agriculture, Forestry and Fishing | Z7: 277 | AA7: Data not yet available | AB7: Data not yet available | AC7: Data not yet available | AD7: Data not yet available | AE7: 6.84 | AF7: 6.172 | AG7: 31.89 | AH7: 68.11382222 | AI7: 9.69 | AJ7: 15.2647 | AK7: 3.095454864 | AL7: 9.4104 | AM7: 13304 | AN7: 15041 | AO7: 235 | AP7: 259.0959206 | AQ7: 907 | AR7: 892 | AS7: 1901.918977 | AT7: 469 | AU7: 140 | AV7: 843.373494 | AW7: 166 | AX7: 0 | AY7: 0 | AZ7: 11 | BA7: 185.8699132 | BB7: 0 | BC7: 2174 | BD7: 16.34095009 | BE7: 1608 | BF7: 12.0865905 | BG7: 510 | BH7: 3.833433554 | BI7: 1892 | BJ7: 14.22128683 | BK7: 1012 | BL7: 7.606734817 | BM7: 5191 | BN7: 39.01834035 | BO7: 917 | BP7: 6.89266386 | BQ7: 941.1255411 | BR7: 220.7792208 | BS7: 551.9480519 | BT7: 819.047619 | BU7: 438.0952381 | BV7: 144.1558442 | BW7: 396.969697 | BX7: 30.3030303 | BY7: 2247.186147 | BZ7: Data not yet available | CA7: 230.429989 | CB7: Data not yet available | CC7: Data not yet available | CD7: Data not yet available | CE7: Data not yet available | CF7: Data not yet available | CG7: Data not yet available | CH7: Data not yet available | CI7: 76 | CJ7: 77.97101449 | CK7: 1586.95 | CL7: 686.991342 | CM7: 58.2 | CN7: 1 | CO7: 4 | CP7: Data not yet available | CQ7: Data not yet available | CR7: 2241 | CS7: 2646 | CT7: 84.69 | CU7: 30.68 | CV7: 2.72 | CW7: Y | CX7: 54000 | CY7: 116000 | CZ7: 0 | DA7: 18000 | DB7: 0 | DC7: 219000 | DD7: 1 | DE7: 20700 | DF7: 6 | DG7: 8 | DH7: 288.75 | DI7: 13 | DJ7: 88 | DK7: 0 | DL7: 13 | DM7: 0 | DN7: 50 | DO7: 50 | DP7: 47 | DQ7: 49.14893617
A8: Bathurst Regional | B8: 4 | C8: Regional Town/City | D8: Central NSW | E8: 3817.9 | F8: 42389 | G8: 6.078578579 | H8: 11.1 | I8: 21310 | J8: 50.27247635 | K8: 21079 | L8: 49.72752365 | M8: 27.51421359 | N8: 51.27509495 | O8: 21.21069145 | P8: 42.3270188 | Q8: 36.46228974 | R8: 21.21069145 | S8: 5.4 | T8: 4.1 | U8: 84 | V8: 3.8 | W8: 52864.11378 | X8: 2.5 | Y8: Education & Training | Z8: 3376 | AA8: Data not yet available | AB8: Data not yet available | AC8: Data not yet available | AD8: Data not yet available | AE8: -5.45 | AF8: 2.2717 | AG8: 62.4 | AH8: 33.93062685 | AI8: 5.68 | AJ8: 4.1209 | AK8: 5.547246771 | AL8: 10.022 | AM8: 93069 | AN8: 128580 | AO8: 16148 | AP8: 992.0747066 | AQ8: 16277 | AR8: 1886 | AS8: 1305.190311 | AT8: 1445 | AU8: 5190 | AV8: 3961.832061 | AW8: 1310 | AX8: 10 | AY8: 454.5454545 | AZ8: 22 | BA8: 132.016655 | BB8: 17.65681637 | BC8: 15144 | BD8: 16.27179834 | BE8: 20837 | BF8: 22.38876532 | BG8: 9994 | BH8: 10.73826946 | BI8: 5398 | BJ8: 5.799997851 | BK8: 15857 | BL8: 17.03789661 | BM8: 19806 | BN8: 21.28098508 | BO8: 6033 | BP8: 6.482287335 | BQ8: 357.2624973 | BR8: 235.7687136 | BS8: 451.1547807 | BT8: 127.3443582 | BU8: 374.0828989 | BV8: 40.41142749 | BW8: 142.3246597 | BX8: 34.513671 | BY8: 467.2438604 | BZ8: Data not yet available | CA8: 313.3869878 | CB8: Data not yet available | CC8: Data not yet available | CD8: Data not yet available | CE8: Data not yet available | CF8: Data not yet available | CG8: Data not yet available | CH8: Data not yet available | CI8: 17856 | CJ8: 38.32550428 | CK8: 1347.68 | CL8: 31.79315388 | CM8: 384.9 | CN8: 1 | CO8: 5 | CP8: Data not yet available | CQ8: Data not yet available | CR8: 28191 | CS8: 17755 | CT8: 158.78 | CU8: 60.16 | CV8: 7.19 | CW8: Y | CX8: 40000 | CY8: 185000 | CZ8: 0 | DA8: 22220 | DB8: 0 | DC8: 328156 | DD8: 13 | DE8: 16115 | DF8: 0 | DG8: 9 | DH8: 4709.888889 | DI8: 30 | DJ8: 70 | DK8: 0 | DL8: 0 | DM8: 0 | DN8: 70 | DO8: 30 | DP8: 377 | DQ8: 112.4376658
A9: Bayside | B9: 3 | C9: Metropolitan | E9: 49.9 | F9: 164880 | G9: 11.3 | H9: =F9/E9 -> 3304.208417 | I9: 82228 | J9: =I9/F9*100 -> 49.87142164 | K9: 82652 | L9: =K9/F9*100 -> 50.12857836 | M9: 21.41254246 | N9: 59.72404173 | O9: 18.9 | P9: 39.7 | Q9: 41.3943474 | R9: 18.9 | S9: 1 | T9: 52.8 | U9: 102 | V9: 4.2 | W9: Data not yet available | X9: Data not yet available | Y9: Health Care & Social Assistance | Z9: 15172 | AA9: Data not yet available | AB9: Data not yet available | AC9: Data not yet available | AD9: Data not yet available | AE9: # | AF9: # | AG9: # | AH9: # | AI9: # | AJ9: # | AK9: # | AL9: # | AM9: # | AN9: # | AO9: # | AP9: # | AQ9: # | AR9: # | AS9: # | AT9: # | AU9: # | AV9: # | AW9: # | AX9: # | AY9: # | AZ9: # | BA9: # | BB9: # | BC9: # | BD9: # | BE9: # | BF9: # | BG9: # | BH9: # | BI9: # | BJ9: # | BK9: # | BL9: # | BM9: # | BN9: # | BO9: # | BP9: # | BQ9: # | BR9: # | BS9: # | BT9: # | BU9: # | BV9: # | BW9: # | BX9: # | BY9: # | BZ9: Data not yet available | CA9: # | CB9: Data not yet available | CC9: Data not yet available | CD9: Data not yet available | CE9: Data not yet available | CF9: Data not yet available | CG9: Data not yet available | CH9: Data not yet available | CI9: 12848 | CJ9: 57.07317073 | CK9: 381.36 | CL9: 2.312954876 | CM9: 463.9 | CN9: 7 | CO9: 6 | CP9: Data not yet available | CQ9: Data not yet available | CR9: # | CS9: # | CT9: # | CU9: # | CV9: # | CX9: # | CY9: # | CZ9: # | DA9: # | DB9: # | DC9: # | DD9: 0 | DE9: 0 | DF9: 0 | DG9: - | DH9: - | DI9: - | DJ9: - | DK9: - | DL9: - | DM9: - | DN9: - | DO9: - | DP9: 850 | DQ9: 193.9764706
A10: Bega Valley | B10: 4 | C10: Regional Town/City | D10: Canberra | E10: 6278.9 | F10: 33946 | G10: 2.469210336 | H10: 5.4 | I10: 16660 | J10: 49.07794733 | K10: 17286 | L10: 50.92205267 | M10: 21.70211512 | N10: 44.29093266 | O10: 34.00695222 | P10: 29.26412538 | Q10: 36.72892241 | R10: 34.00695222 | S10: 3.1 | T10: 3 | U10: 57 | V10: 6.2 | W10: 43050.33535 | X10: 2.2 | Y10: Health Care & Social Assistance | Z10: 2942 | AA10: Data not yet available | AB10: Data not yet available | AC10: Data not yet available | AD10: Data not yet available | AE10: -2.89 | AF10: 1.4738 | AG10: 71.67 | AH10: 28.29747232 | AI10: 3.59 | AJ10: 4.3804 | AK10: 6.33609121 | AL10: 9.9787 | AM10: 92773 | AN10: 95740 | AO10: 17690 | AP10: 992.1480651 | AQ10: 17830 | AR10: 1928 | AS10: 1836.190476 | AT10: 1050 | AU10: 2247 | AV10: 2550.510783 | AW10: 881 | AX10: 0 | AY10: 0 | AZ10: 0 | BA10: 145.0832795 | BB10: 22.12563096 | BC10: 19662 | BD10: 21.19366626 | BE10: 30846 | BF10: 33.24889785 | BG10: 11472 | BH10: 12.36566673 | BI10: 9034 | BJ10: 9.737746974 | BK10: 5319 | BL10: 5.733349143 | BM10: 9084 | BN10: 9.791641965 | BO10: 7356 | BP10: 7.929031076 | BQ10: 579.2140458 | BR10: 337.9485065 | BS10: 844.5766806 | BT10: 266.1285571 | BU10: 156.6900371 | BV10: 64.10180876 | BW10: 216.6971072 | BX10: 39.53337654 | BY10: 267.6014847 | BZ10: Data not yet available | CA10: 387.2125631 | CB10: Data not yet available | CC10: Data not yet available | CD10: Data not yet available | CE10: Data not yet available | CF10: Data not yet available | CG10: Data not yet available | CH10: Data not yet available | CI10: 6067 | CJ10: 69.80390205 | CK10: 1420.93945 | CL10: 41.85881842 | CM10: 1016 | CN10: 8 | CO10: 21 | CP10: Data not yet available | CQ10: Data not yet available | CR10: 27907 | CS10: 29122 | CT10: 95.83 | CU10: 29.4 | CV10: 0.57 | CW10: Y | CX10: 73000 | CY10: 217000 | CZ10: 0 | DA10: 0 | DB10: 0 | DC10: 265288 | DD10: 10 | DE10: 14944 | DF10: 9 | DG10: 9 | DH10: 3771.777778 | DI10: 67 | DJ10: 33 | DK10: 0 | DL10: 0 | DM10: 0 | DN10: 56 | DO10: 44.44444444 | DP10: 355 | DQ10: 95.62253521
A11: Bellingen | B11: 11 | C11: Large Rural | D11: Mid North Coast | E11: 1600.4 | F11: 12893 | G11: -0.232144239 | H11: 8.1 | I11: 6218 | J11: 48.22772047 | K11: 6675 | L11: 51.77227953 | M11: 23.43131932 | N11: 45.11750562 | O11: 31.45117506 | P11: 30.57473047 | Q11: 37.97409447 | R11: 31.45117506 | S11: 3.5 | T11: 3.2 | U11: 63 | V11: 7.2 | W11: 43922.42244 | X11: 2.3 | Y11: Health Care & Social Assistance | Z11: 1161 | AA11: Data not yet available | AB11: Data not yet available | AC11: Data not yet available | AD11: Data not yet available | AE11: 0.68 | AF11: 2.474 | AG11: 68.1 | AH11: 31.82126587 | AI11: 5.78 | AJ11: 6.2914 | AK11: 4.180654092 | AL11: 17.6782 | AM11: 28699 | AN11: 30951 | AO11: 5272 | AP11: 1007.64526 | AQ11: 5232 | AR11: 949 | AS11: 2396.464646 | AT11: 396 | AU11: 389 | AV11: 939.6135266 | AW11: 414 | AX11: 0 | AY11: 0 | AZ11: 0 | BA11: 218.5002064 | BB11: 27.50382263 | BC11: 1912 | BD11: 6.66225304 | BE11: 6768 | BF11: 23.58270323 | BG11: 4637 | BH11: 16.1573574 | BI11: 1819 | BJ11: 6.338199937 | BK11: 2361 | BL11: 8.226767483 | BM11: 10381 | BN11: 36.17199206 | BO11: 821 | BP11: 2.860726855 | BQ11: 148.2975258 | BR11: 359.6525246 | BS11: 443.6515939 | BT11: 141.0843093 | BU11: 183.1226247 | BV11: 81.2844179 | BW11: 63.67796479 | BX11: 50.33739238 | BY11: 805.1655937 | BZ11: Data not yet available | CA11: 467.5076453 | CB11: Data not yet available | CC11: Data not yet available | CD11: Data not yet available | CE11: Data not yet available | CF11: Data not yet available | CG11: Data not yet available | CH11: Data not yet available | CI11: 2266 | CJ11: 63.73239437 | CK11: 598.52 | CL11: 46.42208951 | CM11: 69.25 | CN11: 3 | CO11: 13 | CP11: Data not yet available | CQ11: Data not yet available | CR11: 2932 | CS11: 3283 | CT11: 89.31 | CU11: 86.66 | CV11: 6.63 | CW11: Y | CX11: 0 | CY11: 100000 | CZ11: 0 | DA11: 0 | DB11: 0 | DC11: 241110 | DD11: 0 | DE11: 0 | DF11: 0 | DG11: 7 | DH11: 1841.857143 | DI11: 43 | DJ11: 57 | DK11: 0 | DL11: 0 | DM11: 0 | DN11: 57 | DO11: 43 | DP11: 129 | DQ11: 99.94573643
A12: Berrigan | B12: 10 | C12: Large Rural | D12: Riverina and Murray | E12: 2065.8 | F12: 8572 | G12: 3.314451006 | H12: 4.1 | I12: 4282 | J12: 49.95333644 | K12: 4290 | L12: 50.04666356 | M12: 22.6784881 | N12: 41.43723752 | O12: 35.88427438 | P12: 31.73121792 | Q12: 32.3845077 | R12: 35.88427438 | S12: 2.3 | T12: 3.1 | U12: 36 | V12: 3.7 | W12: 41875.48414 | X12: 2.2 | Y12: Agriculture, Forestry and Fishing | Z12: 858 | AA12: Data not yet available | AB12: Data not yet available | AC12: Data not yet available | AD12: Data not yet available | AE12: 22.54 | AF12: 8.0779 | AG12: 53.93 | AH12: 45.92572597 | AI12: 3.72 | AJ12: 34.8585 | AK12: 1.360686623 | AL12: 23.9816 | AM12: 18501 | AN12: 25931 | AO12: 2427 | AP12: 662.7525942 | AQ12: 3662 | AR12: 1807 | AS12: 1985.714286 | AT12: 910 | AU12: 524 | AV12: 1313.283208 | AW12: 399 | AX12: 0 | AY12: 0 | AZ12: 0 | BA12: 105.4460803 | BB12: 30.63899508 | BC12: 326 | BD12: 1.762066915 | BE12: 5304 | BF12: 28.66872061 | BG12: 2067 | BH12: 11.17236906 | BI12: 1190 | BJ12: 6.432084752 | BK12: 2138 | BL12: 11.5561321 | BM12: 6351 | BN12: 34.32787417 | BO12: 1125 | BP12: 6.080752392 | BQ12: 38.03079795 | BR12: 241.1339244 | BS12: 557.979468 | BT12: 138.8240784 | BU12: 249.4167056 | BV12: 60.77928138 | BW12: 131.2412506 | BX12: 62.64582361 | BY12: 740.9006066 | BZ12: Data not yet available | CA12: 225.0136537 | CB12: Data not yet available | CC12: Data not yet available | CD12: Data not yet available | CE12: Data not yet available | CF12: Data not yet available | CG12: Data not yet available | CH12: Data not yet available | CI12: 1758 | CJ12: 53.08246597 | CK12: 1389.58 | CL12: 162.1068595 | CM12: 138 | CN12: 3 | CO12: 7 | CP12: Data not yet available | CQ12: Data not yet available | CR12: 4937 | CS12: 4303 | CT12: 114.73 | CU12: 80.35 | CV12: 0 | CW12: Y | CX12: 63000 | CY12: 116000 | CZ12: 0 | DA12: 5000 | DB12: 8000 | DC12: 230753 | DD12: 1 | DE12: 15743 | DF12: 3 | DG12: 8 | DH12: 1071.5 | DI12: 0 | DJ12: 100 | DK12: 0 | DL12: 0 | DM12: 0 | DN12: 38 | DO12: 62 | DP12: 88 | DQ12: 97.40909091
A13: Blacktown | B13: 3 | C13: Metropolitan | E13: 240 | F13: 347591 | G13: 11.28396074 | H13: 1448 | I13: 174033 | J13: 50.06832743 | K13: 173558 | L13: 49.93167257 | M13: 29.85520339 | N13: 55.61651481 | O13: 14.5282818 | P13: 44.44447641 | Q13: 41.02724179 | R13: 14.5282818 | S13: 2.8 | T13: 41 | U13: 95 | V13: 6.3 | W13: 54268.56972 | X13: 3.2 | Y13: Manufacturing | Z13: 21136 | AA13: Data not yet available | AB13: Data not yet available | AC13: Data not yet available | AD13: Data not yet available | AE13: 3.45 | AF13: 2.6072 | AG13: 47.48 | AH13: 51.32873805 | AI13: 4.06 | AJ13: 0 | AK13: 0 | AL13: 18.9883 | AM13: 313601 | AN13: 582771 | AO13: 105191 | AP13: 954.8668791 | AQ13: 110163 | AR13: 511 | AS13: 3452.702703 | AT13: 148 | AU13: 46112 | AV13: 9147.391391 | AW13: 5041 | AX13: 0 | AY13: 0 | AZ13: 0 | BA13: 214.9458746 | BB13: 13.20588582 | BC13: 56017 | BD13: 17.86250682 | BE13: 11410 | BF13: 3.638381255 | BG13: 64618 | BH13: 20.60516389 | BI13: 42775 | BJ13: 13.63994375 | BK13: 70812 | BL13: 22.58028514 | BM13: 61855 | BN13: 19.72410802 | BO13: 6114 | BP13: 1.94961113 | BQ13: 161.1577975 | BR13: 185.9023968 | BS13: 0 | BT13: 123.0612991 | BU13: 203.7221907 | BV13: 32.82593623 | BW13: 17.5896384 | BX13: 24.24976481 | BY13: 177.9533993 | BZ13: Data not yet available | CA13: 410.3374091 | CB13: Data not yet available | CC13: Data not yet available | CD13: Data not yet available | CE13: Data not yet available | CF13: Data not yet available | CG13: Data not yet available | CH13: Data not yet available | CI13: 44632 | CJ13: 57.4057108 | CK13: 1403.73 | CL13: 4.03845324 | CM13: 3413.03157 | CN13: 5 | CO13: 38 | CP13: Data not yet available | CQ13: Data not yet available | CR13: 62397 | CS13: 62840 | CT13: 99.3 | CU13: 52.7 | CV13: 2.47 | CW13: Y | CX13: 322000 | CY13: 485000 | CZ13: 0 | DA13: 17000 | DB13: 44000 | DC13: 359356 | DD13: 0 | DE13: 0 | DF13: 0 | DG13: 15 | DH13: 23172.73333 | DI13: 27 | DJ13: 73 | DK13: 0 | DL13: 53 | DM13: 0 | DN13: 53 | DO13: 47 | DP13: 1551 | DQ13: 224.1076725
A14: Bland | B14: 10 | C14: Large Rural | D14: Riverina | E14: 8557.7 | F14: 6031 | G14: 0.1660853679 | H14: 0.7 | I14: 3018 | J14: 50.0414525 | K14: 3013 | L14: 49.9585475 | M14: 26.77831205 | N14: 46.24440391 | O14: 26.97728403 | P14: 36.42845299 | Q14: 36.59426297 | R14: 26.97728403 | S14: 4.3 | T14: 2.2 | U14: 62 | V14: 2.8 | W14: 45070.28941 | X14: 2.4 | Y14: Agriculture, Forestry and Fishing | Z14: 775 | AA14: Data not yet available | AB14: Data not yet available | AC14: Data not yet available | AD14: Data not yet available | AE14: 30.73 | AF14: 14.3612 | AG14: 37.8 | AH14: 61.96623297 | AI14: 6.6 | AJ14: 32.3532 | AK14: 1.566485826 | AL14: 20.8814 | AM14: 19280 | AN14: 29437 | AO14: 2338 | AP14: 1678.39196 | AQ14: 1393 | AR14: 3758 | AS14: 1719.908467 | AT14: 2185 | AU14: 453 | AV14: 1063.380282 | AW14: 426 | AX14: 899 | AY14: 449500 | AZ14: 2 | BA14: 132.8829235 | BB14: 41.20603015 | BC14: 4078 | BD14: 21.15145228 | BE14: 1941 | BF14: 10.06742739 | BG14: 1856 | BH14: 9.626556017 | BI14: 2175 | BJ14: 11.28112033 | BK14: 2057 | BL14: 10.66908714 | BM14: 6572 | BN14: 34.08713693 | BO14: 601 | BP14: 3.117219917 | BQ14: 676.1731056 | BR14: 307.7433261 | BS14: 237.9373238 | BT14: 360.6367103 | BU14: 341.0711325 | BV14: 83.89985077 | BW14: 99.65179904 | BX14: 50.9036644 | BY14: 1089.7032 | BZ14: Data not yet available | CA14: 466.6188083 | CB14: Data not yet available | CC14: Data not yet available | CD14: Data not yet available | CE14: Data not yet available | CF14: Data not yet available | CG14: Data not yet available | CH14: Data not yet available | CI14: 1529 | CJ14: 50.34101981 | CK14: 3070.82 | CL14: 509.1726082 | CM14: 1750 | CN14: 2 | CO14: 2 | CP14: Data not yet available | CQ14: Data not yet available | CR14: 5417 | CS14: 4740 | CT14: 114.28 | CU14: 24.93 | CV14: 3.97 | CW14: Y | CX14: 33000 | CY14: 124000 | CZ14: 0 | DA14: 8000 | DB14: 0 | DC14: 206298 | DD14: 1 | DE14: 4130 | DF14: 3 | DG14: 9 | DH14: 670.1111111 | DI14: 33 | DJ14: 67 | DK14: 0 | DL14: 0 | DM14: 0 | DN14: 33 | DO14: 67 | DP14: 115 | DQ14: 52.44347826
A15: Blayney | B15: 10 | C15: Large Rural | D15: Central NSW | E15: 1524.7 | F15: 7418 | G15: 2.785090758 | H15: 4.9 | I15: 3698 | J15: 49.85171205 | K15: 3720 | L15: 50.14828795 | M15: 27.67592343 | N15: 48.11269884 | O15: 24.21137773 | P15: 37.84038824 | Q15: 37.94823403 | R15: 24.21137773 | S15: 3.7 | T15: 1.6 | U15: 74 | V15: 3.4 | W15: 52945.51623 | X15: 2.5 | Y15: Agriculture, Forestry and Fishing | Z15: 765 | AA15: Data not yet available | AB15: Data not yet available | AC15: Data not yet available | AD15: Data not yet available | AE15: 11.02 | AF15: 3.9278 | AG15: 60.92 | AH15: 38.55728093 | AI15: 2.2 | AJ15: 21.1438 | AK15: 1.732237082 | AL15: 15.6705 | AM15: 17825 | AN15: 22649 | AO15: 1755 | AP15: 627.6824034 | AQ15: 2796 | AR15: 1968 | AS15: 2603.174603 | AT15: 756 | AU15: 405 | AV15: 1327.868852 | AW15: 305 | AX15: 4227 | AY15: 2113500 | AZ15: 2 | BA15: 98.58355763 | BB15: 22.78254649 | BC15: 4152 | BD15: 23.29312763 | BE15: 2171 | BF15: 12.18120617 | BG15: 1622 | BH15: 9.100701262 | BI15: 581 | BJ15: 3.259467041 | BK15: 2911 | BL15: 16.33099579 | BM15: 5514 | BN15: 30.93408135 | BO15: 874 | BP15: 4.900420757 | BQ15: 559.719601 | BR15: 218.65732 | BS15: 218.7921273 | BT15: 78.32299811 | BU15: 392.4238339 | BV15: 73.91480183 | BW15: 117.8215152 | BX15: 25.88298733 | BY15: 743.3270423 | BZ15: Data not yet available | CA15: 347.639485 | CB15: Data not yet available | CC15: Data not yet available | CD15: Data not yet available | CE15: Data not yet available | CF15: Data not yet available | CG15: Data not yet available | CH15: Data not yet available | CI15: 4623 | CJ15: 28.23657249 | CK15: 737.951 | CL15: 99.48112699 | CM15: 37 | CN15: 1 | CO15: 6 | CP15: Data not yet available | CQ15: Data not yet available | CR15: 3833 | CS15: 2627 | CT15: 145.91 | CU15: 194.03 | CV15: 10.28 | CW15: Y | CX15: 8000 | CY15: 101000 | CZ15: 0 | DA15: 7000 | DB15: 0 | DC15: 213000 | DD15: 0 | DE15: 0 | DF15: 0 | DG15: 7 | DH15: 1059.714286 | DI15: 0 | DJ15: 100 | DK15: 0 | DL15: 0 | DM15: 0 | DN15: 57.14285714 | DO15: 42.85714286 | DP15: 84 | DQ15: 88.30952381
A16: Blue Mountains | B16: 7 | C16: Metropolitan Fringe | E16: 1431.1 | F16: 78705 | G16: 0.19349993 | H16: 55 | I16: 38248 | J16: 48.59665841 | K16: 40457 | L16: 51.40334159 | M16: 24.92598945 | N16: 48.94352328 | O16: 26.13048726 | P16: 34.41331555 | Q16: 39.45619719 | R16: 26.13048726 | S16: 2.4 | T16: 6.1 | U16: 105 | V16: 3.3 | W16: 57975.58377 | X16: 2.5 | Y16: Health Care & Social Assistance | Z16: 5475 | AA16: Data not yet available | AB16: Data not yet available | AC16: Data not yet available | AD16: Data not yet available | AE16: 3.89 | AF16: 2.2574 | AG16: 80.06 | AH16: 19.61196782 | AI16: 3.4 | AJ16: 2.5866 | AK16: 8.298040716 | AL16: 4.4083 | AM16: 110518 | AN16: 119320 | AO16: 50350 | AP16: 1456.633686 | AQ16: 34566 | AR16: 313 | AS16: 2268.115942 | AT16: 138 | AU16: 4513 | AV16: 3365.398956 | AW16: 1341 | AX16: 0 | AY16: 0 | AZ16: 0 | BA16: 147.2691952 | BB16: 18.03217034 | BC16: 17396 | BD16: 15.74042237 | BE16: 7384 | BF16: 6.68126459 | BG16: 33113 | BH16: 29.96163521 | BI16: 7574 | BJ16: 6.853182287 | BK16: 21763 | BL16: 19.69181491 | BM16: 15521 | BN16: 14.04386616 | BO16: 7767 | BP16: 7.027814474 | BQ16: 221.027889 | BR16: 420.7229528 | BS16: 0 | BT16: 96.23276793 | BU16: 276.5135633 | BV16: 93.81869005 | BW16: 98.68496284 | BX16: 36.65586684 | BY16: 197.2047519 | BZ16: Data not yet available | CA16: 381.7045652 | CB16: Data not yet available | CC16: Data not yet available | CD16: Data not yet available | CE16: Data not yet available | CF16: Data not yet available | CG16: Data not yet available | CH16: Data not yet available | CI16: 17613 | CJ16: 56.84146043 | CK16: 745.3 | CL16: 9.469538149 | CM16: 6556.41 | CN16: 5 | CO16: 18 | CP16: Data not yet available | CQ16: Data not yet available | CR16: 23333 | CS16: 23569 | CT16: 99 | CU16: 20.28 | CV16: 2.01 | CW16: Y | CX16: 64000 | CY16: 253000 | CZ16: 0 | DA16: 6000 | DB16: 5000 | DC16: 371614 | DD16: 3 | DE16: 29126 | DF16: 3 | DG16: 12 | DH16: 6558.75 | DI16: 25 | DJ16: 75 | DK16: 0 | DL16: 8 | DM16: 8.333333333 | DN16: 50 | DO16: 42 | DP16: 520 | DQ16: 151.3557692
A17: Bogan | B17: 9 | C17: Rural | E17: 14599.9 | F17: 2768 | G17: -8.009305417 | H17: 0.2 | I17: 1374 | J17: 49.63872832 | K17: 1394 | L17: 50.36127168 | M17: 26.15606936 | N17: 49.85549133 | O17: 23.98843931 | P17: 39.16184971 | Q17: 36.84971098 | R17: 23.98843931 | S17: 16.7 | T17: 2.5 | U17: 42 | V17: 3.4 | W17: 49736.97603 | X17: 2.4 | Y17: Agriculture, Forestry and Fishing | Z17: 408 | AA17: Data not yet available | AB17: Data not yet available | AC17: Data not yet available | AD17: Data not yet available | AE17: 13.98 | AF17: 6.4326 | AG17: 46.2 | AH17: 53.78959276 | AI17: 6.82 | AJ17: 52.189 | AK17: 0.6341122429 | AL17: 8.4653 | AM17: 17235 | AN17: 21216 | AO17: 278 | AP17: 257.4074074 | AQ17: 1080 | AR17: 1664 | AS17: 2666.666667 | AT17: 624 | AU17: 234 | AV17: 966.9421488 | AW17: 242 | AX17: 573 | AY17: 191000 | AZ17: 3 | BA17: 106.5564543 | BB17: 18.14814815 | BC17: 1602 | BD17: 9.295039164 | BE17: 3702 | BF17: 21.47954743 | BG17: 1228 | BH17: 7.125036263 | BI17: 1336 | BJ17: 7.751668117 | BK17: 1330 | BL17: 7.716855236 | BM17: 6734 | BN17: 39.07165651 | BO17: 1303 | BP17: 7.560197273 | BQ17: 578.7572254 | BR17: 443.6416185 | BS17: 1164.017341 | BT17: 482.6589595 | BU17: 480.4913295 | BV17: 173.4104046 | BW17: 470.7369942 | BX17: 75.86705202 | BY17: 2432.803468 | BZ17: Data not yet available | CA17: 512.037037 | CB17: Data not yet available | CC17: Data not yet available | CD17: Data not yet available | CE17: Data not yet available | CF17: Data not yet available | CG17: Data not yet available | CH17: Data not yet available | CI17: 1095 | CJ17: 47.12699179 | CK17: 1616.63 | CL17: 584.0426301 | CM17: 74.9 | CN17: 1 | CO17: 5 | CP17: Data not yet available | CQ17: Data not yet available | CR17: 6055 | CS17: 6479 | CT17: 93.46 | CU17: 67.75 | CV17: 1.98 | CW17: Y | CX17: 56000 | CY17: 94000 | CZ17: 0 | DA17: 0 | DB17: 0 | DC17: 236900 | DD17: 0 | DE17: 0 | DF17: 0 | DG17: 9 | DH17: 307.5555556 | DI17: 33.33333333 | DJ17: 66.66666667 | DK17: 11 | DL17: 0 | DM17: 0 | DN17: 67 | DO17: 33 | DP17: 90 | DQ17: 30.75555556
A18: Bourke | B18: 9 | C18: Rural | E18: 41599.5 | F18: 2787 | G18: -8.712741566 | H18: 0.1 | I18: 1350 | J18: 48.43918192 | K18: 1437 | L18: 51.56081808 | M18: 27.34122713 | N18: 53.53426624 | O18: 19.12450664 | P18: 41.5859347 | Q18: 39.28955867 | R18: 19.12450664 | S18: 31.3 | T18: 2.4 | U18: 33 | V18: 5.9 | W18: 47344.08407 | X18: 2.5 | Y18: Agriculture, Forestry and Fishing | Z18: 191 | AA18: Data not yet available | AB18: Data not yet available | AC18: Data not yet available | AD18: Data not yet available | AE18: 21.27 | AF18: 4.2608 | AG18: 40.83 | AH18: 59.16921701 | AI18: 14.9 | AJ18: 8.5651 | AK18: 4.444192292 | AL18: 12.8742 | AM18: 20906 | AN18: 29081 | AO18: 372 | AP18: 349.9529633 | AQ18: 1063 | AR18: 1058 | AS18: 2325.274725 | AT18: 455 | AU18: 106 | AV18: 481.8181818 | AW18: 220 | AX18: 0 | AY18: 0 | AZ18: 0 | BA18: 95.0738151 | BB18: 13.6406397 | BC18: 1727 | BD18: 8.260786377 | BE18: 3927 | BF18: 18.78408113 | BG18: 918 | BH18: 4.391083899 | BI18: 714 | BJ18: 3.415287477 | BK18: 1932 | BL18: 9.241366115 | BM18: 8320 | BN18: 39.79718741 | BO18: 3368 | BP18: 16.1102076 | BQ18: 619.6627198 | BR18: 329.386437 | BS18: 927.5206315 | BT18: 256.189451 | BU18: 693.2185145 | BV18: 481.5213491 | BW18: 1208.467887 | BX18: 93.29027628 | BY18: 2985.288841 | BZ18: Data not yet available | CA18: 272.812794 | CB18: Data not yet available | CC18: Data not yet available | CD18: Data not yet available | CE18: Data not yet available | CF18: Data not yet available | CG18: Data not yet available | CH18: Data not yet available | CI18: 1172 | CJ18: 48.8209607 | CK18: 2453.86 | CL18: 880.4664514 | CM18: 220 | CN18: 1 | CO18: 5 | CP18: Data not yet available | CQ18: Data not yet available | CR18: 3843 | CS18: 3845 | CT18: 99.95 | CU18: 67.9 | CV18: 3.32 | CW18: Y | CX18: 47000 | CY18: 188000 | CZ18: 0 | DA18: 0 | DB18: 0 | DC18: 202222 | DD18: 0 | DE18: 0 | DF18: 0 | DG18: 10 | DH18: 278.7 | DI18: 20 | DJ18: 80 | DK18: 10 | DL18: 0 | DM18: 20 | DN18: 20 | DO18: 60 | DP18: 85 | DQ18: 32.78823529
A19: Brewarrina | B19: 8 | C19: Rural | E19: 19163.5 | F19: 1725 | G19: -7.95090715 | H19: 0.1 | I19: 925 | J19: 53.62318841 | K19: 800 | L19: 46.37681159 | M19: 27.94202899 | N19: 57.2173913 | O19: 14.84057971 | P19: 44.63768116 | Q19: 40.52173913 | R19: 14.84057971 | S19: 61.1 | T19: 3.6 | U19: 1 | V19: 6.2 | W19: 42878.73712 | X19: 2.6 | Y19: Agriculture, Forestry and Fishing | Z19: 122 | AA19: Data not yet available | AB19: Data not yet available | AC19: Data not yet available | AD19: Data not yet available | AE19: 19.19 | AF19: 3.9455 | AG19: 43.48 | AH19: 56.51882947 | AI19: 6.78 | AJ19: 24.019 | AK19: 1.661087602 | AL19: 9.7292 | AM19: 12956 | AN19: 16437 | AO19: 60 | AP19: 104.1666667 | AQ19: 576 | AR19: 900 | AS19: 2694.610778 | AT19: 334 | AU19: 15 | AV19: 250 | AW19: 60 | AX19: 0 | AY19: 0 | AZ19: 0 | BA19: 196.0965282 | BB19: 9.201388889 | BC19: 3971 | BD19: 30.64752643 | BE19: 2273 | BF19: 17.54264104 | BG19: 349 | BH19: 2.693524736 | BI19: 883 | BJ19: 6.814849116 | BK19: 613 | BL19: 4.731033418 | BM19: 4622 | BN19: 35.67183762 | BO19: 246 | BP19: 1.898587636 | BQ19: 2302.028986 | BR19: 202.3188406 | BS19: 1099.130435 | BT19: 511.884058 | BU19: 355.3623188 | BV19: 218.5507246 | BW19: 142.6086957 | BX19: 48.69565217 | BY19: 2679.42029 | BZ19: Data not yet available | CA19: 392.3611111 | CB19: Data not yet available | CC19: Data not yet available | CD19: Data not yet available | CE19: Data not yet available | CF19: Data not yet available | CG19: Data not yet available | CH19: Data not yet available | CI19: 568 | CJ19: 44.03940887 | CK19: 1551.7 | CL19: 899.5362319 | CM19: 345 | CN19: 1 | CO19: 3 | CP19: Data not yet available | CQ19: Data not yet available | CR19: 1242 | CS19: 2575 | CT19: 48.23 | CU19: 74.74 | CV19: 2 | CW19: Y | CX19: 25000 | CY19: 125000 | CZ19: 0 | DA19: 0 | DB19: 0 | DC19: 180000 | DD19: 0 | DE19: 0 | DF19: 0 | DG19: 9 | DH19: 191.6666667 | DI19: 0 | DJ19: 100 | DK19: 33 | DL19: 0 | DM19: 0 | DN19: 56 | DO19: 44 | DP19: 60 | DQ19: 28.75
A20: Broken Hill | B20: 4 | C20: Regional Town/City | E20: 170.1 | F20: 18027 | G20: -5.869145214 | H20: 106 | I20: 8805 | J20: 48.84340156 | K20: 9222 | L20: 51.15659844 | M20: 22.59388695 | N20: 49.54790037 | O20: 27.85821268 | P20: 34.98086204 | Q20: 37.16092528 | R20: 27.85821268 | S20: 8.5 | T20: 2.5 | U20: 7 | V20: 5.1 | W20: 52506.89987 | X20: 2.2 | Y20: Health Care & Social Assistance | Z20: 963 | AA20: Data not yet available | AB20: Data not yet available | AC20: Data not yet available | AD20: Data not yet available | AE20: -0.88 | AF20: 1.7976 | AG20: 62.64 | AH20: 37.16775717 | AI20: 11.68 | AJ20: 3.7838 | AK20: 6.304663597 | AL20: 7.6131 | AM20: 43071 | AN20: 36833 | AO20: 9250 | AP20: 978.7324093 | AQ20: 9451 | AR20: 21 | AS20: 4200 | AT20: 5 | AU20: 3364 | AV20: 5305.993691 | AW20: 634 | AX20: 2271 | AY20: 1135500 | AZ20: 2 | BA20: 16.85618744 | BB20: 30.40948048 | BC20: 7223 | BD20: 16.76990657 | BE20: 1018 | BF20: 2.363528297 | BG20: 2962 | BH20: 6.876985085 | BI20: 7709 | BJ20: 17.89827077 | BK20: 7771 | BL20: 18.04314716 | BM20: 6259 | BN20: 14.53128773 | BO20: 10129 | BP20: 23.51687438 | BQ20: 400.6767626 | BR20: 164.3090919 | BS20: 0 | BT20: 427.6363233 | BU20: 431.0756088 | BV20: 56.47084928 | BW20: 561.8794031 | BX20: 52.92061907 | BY20: 347.2014201 | BZ20: Data not yet available | CA20: 274.2566924 | CB20: Data not yet available | CC20: Data not yet available | CD20: Data not yet available | CE20: Data not yet available | CF20: Data not yet available | CG20: Data not yet available | CH20: Data not yet available | CI20: 5080 | CJ20: 65.35261219 | CK20: 250.96 | CL20: 13.92134021 | CM20: 3800 | CN20: 1 | CO20: 3 | CP20: Data not yet available | CQ20: Data not yet available | CR20: 6277 | CS20: 5161 | CT20: 121.62 | CU20: 18.4 | CV20: 25.51 | CW20: Y | CX20: 0 | CY20: 184000 | CZ20: 0 | DA20: 26021 | DB20: 7040 | DC20: 240552 | DD20: 0 | DE20: 53961 | DF20: 6 | DG20: 10 | DH20: 1802.7 | DI20: 40 | DJ20: 60 | DK20: 0 | DL20: 0 | DM20: 0 | DN20: 50 | DO20: 50 | DP20: 149 | DQ20: 120.9865772
A21: Burwood | B21: 2 | C21: Metropolitan | E21: 7.1 | F21: 38495 | G21: 12.63752341 | H21: 5400.5 | I21: 18707 | J21: 48.59592155 | K21: 19788 | L21: 51.40407845 | M21: 18.90894921 | N21: 62.66528121 | O21: 18.42576958 | P21: 44.25250032 | Q21: 37.32173009 | R21: 18.42576958 | S21: 0.4 | T21: 63.6 | U21: 106 | V21: 5.4 | W21: 52150.00404 | X21: 2.9 | Y21: Health Care & Social Assistance | Z21: 4814 | AA21: Data not yet available | AB21: Data not yet available | AC21: Data not yet available | AD21: Data not yet available | AE21: 5.58 | AF21: 4.4265 | AG21: 83.95 | AH21: 15.95928402 | AI21: 2.45 | AJ21: 12.3992 | AK21: 1.731572864 | AL21: 11.3657 | AM21: 42479 | AN21: 49219 | AO21: 14620 | AP21: 1185.533571 | AQ21: 12332 | AR21: 0 | AS21: 0 | AT21: 0 | AU21: 5208 | AV21: 5408.099688 | AW21: 963 | AX21: 0 | AY21: 0 | AZ21: 0 | BA21: 294.5179826 | BB21: 15.35030814 | BC21: 10902 | BD21: 25.66444596 | BE21: 2111 | BF21: 4.969514348 | BG21: 7281 | BH21: 17.140234 | BI21: 5509 | BJ21: 12.96876103 | BK21: 7976 | BL21: 18.77633654 | BM21: 8263 | BN21: 19.4519645 | BO21: 437 | BP21: 1.028743614 | BQ21: 283.2056111 | BR21: 189.1414469 | BS21: 0 | BT21: 143.1094947 | BU21: 207.1957397 | BV21: 54.83829069 | BW21: 11.35212365 | BX21: 59.02065203 | BY21: 214.6512534 | BZ21: Data not yet available | CA21: 387.1229322 | CB21: Data not yet available | CC21: Data not yet available | CD21: Data not yet available | CE21: Data not yet available | CF21: Data not yet available | CG21: Data not yet available | CH21: Data not yet available | CI21: 2735 | CJ21: 59.36106984 | CK21: 85.46 | CL21: 2.220028575 | CM21: 37.74 | CN21: 1 | CO21: 2 | CP21: Data not yet available | CQ21: Data not yet available | CR21: 5826 | CS21: 5679 | CT21: 102.59 | CU21: 102.37 | CV21: 7.64 | CW21: Y | CX21: 87000 | CY21: 154000 | CZ21: 0 | DA21: 5000 | DB21: 0 | DC21: 351000 | DD21: 0 | DE21: 0 | DF21: 0 | DG21: 7 | DH21: 5499.285714 | DI21: 14 | DJ21: 86 | DK21: 0 | DL21: 0 | DM21: 0 | DN21: 100 | DO21: 0 | DP21: 173 | DQ21: 222.5144509
A22: Byron | B22: 4 | C22: Regional Town/City | D22: Northern Rivers | E22: 565.8 | F22: 32790 | G22: 6.766084918 | H22: 58 | I22: 15867 | J22: 48.38975297 | K22: 16923 | L22: 51.61024703 | M22: 22.12869777 | N22: 53.12900274 | O22: 24.74229948 | P22: 31.80542848 | Q22: 43.45227203 | R22: 24.74229948 | S22: 1.8 | T22: 6.8 | U22: 98 | V22: 5.3 | W22: 39924.83553 | X22: 2.4 | Y22: Health Care & Social Assistance | Z22: 4494 | AA22: Data not yet available | AB22: Data not yet available | AC22: Data not yet available | AD22: Data not yet available | AE22: 5.98 | AF22: 3.1981 | AG22: 69.7 | AH22: 30.29207471 | AI22: 3.39 | AJ22: 3.2605 | AK22: 8.94583183 | AL22: 14.3245 | AM22: 77983 | AN22: 99158 | AO22: 14661 | AP22: 1099.042567 | AQ22: 13340 | AR22: 860 | AS22: 1595.603451 | AT22: 539 | AU22: 3564 | AV22: 2461.394185 | AW22: 1448 | AX22: 0 | AY22: 0 | AZ22: 0 | BA22: 400.087798 | BB22: 15.46476762 | BC22: 2337 | BD22: 2.997307667 | BE22: 26641 | BF22: 34.16239757 | BG22: 8569 | BH22: 10.98823561 | BI22: 10320 | BJ22: 13.23358519 | BK22: 9302 | BL22: 11.9281792 | BM22: 14974 | BN22: 19.20152176 | BO22: 5840 | BP22: 7.488773012 | BQ22: 71.27172919 | BR22: 261.3296737 | BS22: 701.6468435 | BT22: 314.7301006 | BU22: 283.68405 | BV22: 110.8264715 | BW22: 178.1030802 | BX22: 58.2189692 | BY22: 456.663617 | BZ22: Data not yet available | CA22: 353.8145165 | CB22: Data not yet available | CC22: Data not yet available | CD22: Data not yet available | CE22: Data not yet available | CF22: Data not yet available | CG22: Data not yet available | CH22: Data not yet available | CI22: 3240 | CJ22: 76.94114298 | CK22: 603.65 | CL22: 18.40957609 | CM22: 210.11 | CN22: 2 | CO22: 15 | CP22: Data not yet available | CQ22: Data not yet available | CR22: 11055 | CS22: 12195 | CT22: 90.65 | CU22: 56.63 | CV22: 7.51 | CW22: Y | CX22: 90848.55 | CY22: 208272.9 | CZ22: 0 | DA22: 20000 | DB22: 15000 | DC22: 258602 | DD22: 8 | DE22: 0 | DF22: 8 | DG22: 9 | DH22: 3643.333333 | DI22: 44 | DJ22: 56 | DK22: 0 | DL22: 0 | DM22: 0 | DN22: 78 | DO22: 22 | DP22: 279 | DQ22: 117.5268817
A23: Cabonne | B23: 11 | C23: Large Rural | D23: Central NSW | E23: 6022.4 | F23: 13625 | G23: 3.133752176 | H23: 2.3 | I23: 6818 | J23: 50.04036697 | K23: 6807 | L23: 49.95963303 | M23: 29.26972477 | N23: 45.96697248 | O23: 24.76330275 | P23: 37.48256881 | Q23: 37.75412844 | R23: 24.76330275 | S23: 3.8 | T23: 2 | U23: 97 | V23: 2.6 | W23: 49707.05426 | X23: 2.6 | Y23: Agriculture, Forestry and Fishing | Z23: 1713 | AA23: Data not yet available | AB23: Data not yet available | AC23: Data not yet available | AD23: Data not yet available | AE23: 15.36 | AF23: 7.7775 | AG23: 56.49 | AH23: 42.87645363 | AI23: 5.56 | AJ23: 46.0241 | AK23: 0.8568744702 | AL23: 18.3772 | AM23: 36944 | AN23: 50305 | AO23: 2745 | AP23: 595.8324289 | AQ23: 4607 | AR23: 4908 | AS23: 2486.322188 | AT23: 1974 | AU23: 241 | AV23: 545.2488688 | AW23: 442 | AX23: 1723 | AY23: 143583.3333 | AZ23: 12 | BA23: 173.4013677 | BB23: 22.00998481 | BC23: 3245 | BD23: 8.783564314 | BE23: 5119 | BF23: 13.85610654 | BG23: 2913 | BH23: 7.884906886 | BI23: 2747 | BJ23: 7.435578172 | BK23: 3270 | BL23: 8.851234301 | BM23: 17485 | BN23: 47.32838891 | BO23: 2165 | BP23: 5.860220875 | BQ23: 238.1651376 | BR23: 213.7981651 | BS23: 258.7155963 | BT23: 201.6146789 | BU23: 240 | BV23: 116.9908257 | BW23: 158.8990826 | BX23: 25.76146789 | BY23: 1283.302752 | BZ23: Data not yet available | CA23: 245.4959844 | CB23: Data not yet available | CC23: Data not yet available | CD23: Data not yet available | CE23: Data not yet available | CF23: Data not yet available | CG23: Data not yet available | CH23: Data not yet available | CI23: 6284 | CJ23: 24.28003374 | CK23: 1930.27 | CL23: 141.6711927 | CM23: 29 | CN23: 7 | CO23: 8 | CP23: Data not yet available | CQ23: Data not yet available | CR23: 6607 | CS23: 5608 | CT23: 117.81 | CU23: 135.99 | CV23: 2.56 | CW23: Y | CX23: 34000 | CY23: 140000 | CZ23: 0 | DA23: 9000 | DB23: 1000 | DC23: 250000 | DD23: 1 | DE23: 1375 | DF23: 0 | DG23: 12 | DH23: 1135.416667 | DI23: 36 | DJ23: 64 | DK23: 0 | DL23: 0 | DM23: 0 | DN23: 27 | DO23: 73 | DP23: 155 | DQ23: 87.90322581
A24: Camden | B24: 7 | C24: Metropolitan Fringe | E24: 201 | F24: 80476 | G24: 37.70940639 | H24: 400.3 | I24: 39805 | J24: 49.46195139 | K24: 40671 | L24: 50.53804861 | M24: 31.06267707 | N24: 54.50569114 | O24: 14.43163179 | P24: 45.21596501 | Q24: 40.3524032 | R24: 14.43163179 | S24: 2.5 | T24: 14.4 | U24: 109 | V24: 2.7 | W24: 60736.19847 | X24: 3.1 | Y24: Manufacturing | Z24: 6203 | AA24: Data not yet available | AB24: Data not yet available | AC24: Data not yet available | AD24: Data not yet available | AE24: 0.03 | AF24: 2.6946 | AG24: 43.01 | AH24: 56.98495772 | AI24: 3.37 | AJ24: 3.2284 | AK24: 6.301131867 | AL24: 14.9381 | AM24: 92030 | AN24: 188734 | AO24: 38049 | AP24: 1244.936688 | AQ24: 30563 | AR24: 500 | AS24: 294.2907593 | AT24: 1699 | AU24: 7999 | AV24: 40398.9899 | AW24: 198 | AX24: 0 | AY24: 0 | AZ24: 0 | BA24: 211.6287019 | BB24: 10.05791316 | BC24: 30801 | BD24: 33.46843421 | BE24: 2749 | BF24: 2.987069434 | BG24: 12055 | BH24: 13.09898946 | BI24: 8247 | BJ24: 8.961208302 | BK24: 16140 | BL24: 17.53775943 | BM24: 14819 | BN24: 16.10235793 | BO24: 7219 | BP24: 7.844181245 | BQ24: 382.7352254 | BR24: 149.7962125 | BS24: 0 | BT24: 102.4777573 | BU24: 200.5566877 | BV24: 34.15925245 | BW24: 89.70376261 | BX24: 23.4107063 | BY24: 184.141856 | BZ24: Data not yet available | CA24: 354.0882767 | CB24: Data not yet available | CC24: Data not yet available | CD24: Data not yet available | CE24: Data not yet available | CF24: Data not yet available | CG24: Data not yet available | CH24: Data not yet available | CI24: 13499 | CJ24: 59.43810096 | CK24: 642.64 | CL24: 7.985486356 | CM24: 447.089 | CN24: 2 | CO24: 17 | CP24: Data not yet available | CQ24: Data not yet available | CR24: 5023 | CS24: 5022 | CT24: 100.02 | CU24: 38.24 | CV24: 1.23 | CW24: Y | CX24: 91000 | CY24: 171000 | CZ24: 0 | DA24: 0 | DB24: 0 | DC24: 317683 | DD24: 0 | DE24: 0 | DF24: 0 | DG24: 9 | DH24: 8941.777778 | DI24: 56 | DJ24: 44.44444444 | DK24: 0 | DL24: 0 | DM24: 11 | DN24: 78 | DO24: 11.11111111 | DP24: 387 | DQ24: 207.9483204
A25: Campbelltown | B25: 7 | C25: Metropolitan Fringe | E25: 311.9 | F25: 161409 | G25: 6.771050386 | H25: 517.5 | I25: 79737 | J25: 49.40059105 | K25: 81672 | L25: 50.59940895 | M25: 28.6910891 | N25: 54.5849364 | O25: 16.7239745 | P25: 43.80672701 | Q25: 39.46929849 | R25: 16.7239745 | S25: 3.8 | T25: 30.4 | U25: 55 | V25: 8.3 | W25: 51415.59164 | X25: 3 | Y25: Manufacturing | Z25: 8869 | AA25: Data not yet available | AB25: Data not yet available | AC25: Data not yet available | AD25: Data not yet available | AE25: 10.64 | AF25: 4.8193 | AG25: 73 | AH25: 27.3366846 | AI25: 3.25 | AJ25: 8.1669 | AK25: 3.014622609 | AL25: 17.9896 | AM25: 142824 | AN25: 254431 | AO25: 61786 | AP25: 1128.573255 | AQ25: 54747 | AR25: 626 | AS25: 9781.25 | AT25: 64 | AU25: 17997 | AV25: 6216.580311 | AW25: 2895 | AX25: 24 | AY25: 12000 | AZ25: 2 | BA25: 196.785256 | BB25: 14.68390962 | BC25: 25900 | BD25: 18.13420714 | BE25: 7329 | BF25: 5.131490506 | BG25: 25350 | BH25: 17.7491178 | BI25: 24238 | BJ25: 16.97053716 | BK25: 33943 | BL25: 23.76561362 | BM25: 18698 | BN25: 13.09163726 | BO25: 7366 | BP25: 5.157396516 | BQ25: 160.4619321 | BR25: 157.0544393 | BS25: 0 | BT25: 150.1651085 | BU25: 210.2918672 | BV25: 45.40638998 | BW25: 45.63562131 | BX25: 34.4838268 | BY25: 115.8423632 | BZ25: Data not yet available | CA25: 321.5701317 | CB25: Data not yet available | CC25: Data not yet available | CD25: Data not yet available | CE25: Data not yet available | CF25: Data not yet available | CG25: Data not yet available | CH25: Data not yet available | CI25: 23898 | CJ25: 62.15916648 | CK25: 735.1 | CL25: 4.554268969 | CM25: 1100 | CN25: 3 | CO25: 19 | CP25: Data not yet available | CQ25: Data not yet available | CR25: 22372 | CS25: 21327 | CT25: 104.9 | CU25: 94.84 | CV25: 1.64 | CW25: Y | CX25: 258000 | CY25: 406000 | CZ25: 8200 | DA25: 10336 | DB25: 13333 | DC25: 358700 | DD25: 0 | DE25: 0 | DF25: 0 | DG25: 15 | DH25: 10760.6 | DI25: 20 | DJ25: 80 | DK25: 0 | DL25: 40 | DM25: 6 | DN25: 47 | DO25: 47 | DP25: 645 | DQ25: 250.2465116
A26: Canada Bay | B26: 3 | C26: Metropolitan | E26: 19.9 | F26: 92382 | G26: 15.3837507 | H26: 4636.9 | I26: 44841 | J26: 48.53867637 | K26: 47541 | L26: 51.46132363 | M26: 20.83198026 | N26: 60.09612262 | O26: 19.07189712 | P26: 38.05178498 | Q26: 42.8763179 | R26: 19.07189712 | S26: 0.5 | T26: 40.9 | U26: 119 | V26: 2.9 | W26: 73263.24592 | X26: 2.6 | Y26: Professional Scientific & Technical Services | Z26: 10633 | AA26: Data not yet available | AB26: Data not yet available | AC26: Data not yet available | AD26: Data not yet available | AE26: 6.99 | AF26: 4.1625 | AG26: 80.16 | AH26: 17.85680566 | AI26: 1.28 | AJ26: 28.641 | AK26: 0.7660961147 | AL26: 12.902 | AM26: 80499 | AN26: 109622 | AO26: 30706 | AP26: 882.3563218 | AQ26: 34800 | AR26: 0 | AS26: 0 | AT26: 0 | AU26: 5228 | AV26: 2855.270344 | AW26: 1831 | AX26: 0 | AY26: 0 | AZ26: 0 | BA26: 775.084693 | BB26: 10.85057471 | BC26: 8732 | BD26: 10.84733972 | BE26: 4713 | BF26: 5.854731115 | BG26: 18731 | BH26: 23.26861203 | BI26: 12213 | BJ26: 15.17161704 | BK26: 23289 | BL26: 28.93079417 | BM26: 10257 | BN26: 12.74177319 | BO26: 2564 | BP26: 3.185132735 | BQ26: 94.5205776 | BR26: 202.7559481 | BS26: 0 | BT26: 132.2010781 | BU26: 252.0945639 | BV26: 51.01643177 | BW26: 27.75432444 | BX26: 52.15301682 | BY26: 111.0281224 | BZ26: Data not yet available | CA26: 391.5517241 | CB26: Data not yet available | CC26: Data not yet available | CD26: Data not yet available | CE26: Data not yet available | CF26: Data not yet available | CG26: Data not yet available | CH26: Data not yet available | CI26: 8024 | CJ26: 55.62683183 | CK26: 207 | CL26: 2.24069624 | CM26: 128.68 | CN26: 3 | CO26: 9 | CP26: Data not yet available | CQ26: Data not yet available | CR26: 12858 | CS26: 14503 | CT26: 88.66 | CU26: 111.63 | CV26: 3.59 | CW26: Y | CX26: 2000 | CY26: 194000 | CZ26: 0 | DA26: 16228 | DB26: 2888 | DC26: 325666 | DD26: 0 | DE26: 0 | DF26: 0 | DG26: 9 | DH26: 10264.66667 | DI26: 44 | DJ26: 56 | DK26: 0 | DL26: 0 | DM26: 11 | DN26: 56 | DO26: 33 | DP26: 331 | DQ26: 279.0996979
A27: Canterbury-Bankstown | B27: 3 | C27: Metropolitan | E27: 110.3 | F27: 361551 | G27: 7.623682801 | H27: 3279 | I27: 181005 | J27: 50.06347652 | K27: 180546 | L27: 49.93652348 | M27: 26.76109318 | N27: 54.87967119 | O27: 18.35923563 | P27: 42.22779082 | Q27: 39.41297355 | R27: 18.35923563 | S27: 0.7 | T27: 60.2 | U27: 72 | V27: 7.5 | W27: 50159.75453 | X27: 3 | Y27: Retail Trade | Z27: 32437 | AA27: Data not yet available | AB27: Data not yet available | AC27: Data not yet available | AD27: Data not yet available | AE27: * | AF27: * | AG27: * | AH27: * | AI27: * | AJ27: * | AK27: * | AL27: * | AM27: * | AN27: * | AO27: * | AP27: * | AQ27: * | AR27: * | AS27: * | AT27: * | AU27: * | AV27: * | AW27: * | AX27: * | AY27: * | AZ27: * | BA27: * | BB27: * | BC27: * | BD27: * | BE27: * | BF27: * | BG27: * | BH27: * | BI27: * | BJ27: * | BK27: * | BL27: * | BM27: * | BN27: * | BO27: * | BP27: * | BQ27: * | BR27: * | BS27: * | BT27: * | BU27: * | BV27: * | BW27: * | BX27: * | BY27: * | BZ27: Data not yet available | CA27: * | CB27: Data not yet available | CC27: Data not yet available | CD27: Data not yet available | CE27: Data not yet available | CF27: Data not yet available | CG27: Data not yet available | CH27: Data not yet available | CI27: 26426 | CJ27: 58.42157433 | CK27: 941.25 | CL27: 2.60336716 | CM27: 1513.67 | CN27: 6 | CO27: 45 | CP27: Data not yet available | CQ27: Data not yet available | CR27: * | CS27: * | CT27: * | CU27: * | CV27: * | CW27: Y | CX27: * | CY27: * | CZ27: * | DA27: * | DB27: * | DC27: * | DD27: 0 | DE27: 0 | DF27: 0 | DG27: - | DH27: - | DI27: - | DJ27: - | DK27: - | DL27: - | DM27: - | DN27: - | DO27: - | DP27: 1143 | DQ27: 316.3175853
A28: Carrathool | B28: 9 | C28: Rural | E28: 18932.5 | F28: 2803 | G28: 4.550540843 | H28: 0.1 | I28: 1433 | J28: 51.12379593 | K28: 1370 | L28: 48.87620407 | M28: 26.07920086 | N28: 54.4773457 | O28: 19.44345344 | P28: 39.81448448 | Q28: 40.74206208 | R28: 19.44345344 | S28: 8 | T28: 5.9 | U28: 73 | V28: 3.3 | W28: 38672.84072 | X28: 2.4 | Y28: Agriculture, Forestry and Fishing | Z28: 406 | AA28: Data not yet available | AB28: Data not yet available | AC28: Data not yet available | AD28: Data not yet available | AE28: 19.29 | AF28: 6.8333 | AG28: 40.74 | AH28: 59.26358854 | AI28: 6.14 | AJ28: 30.9016 | AK28: 1.647749682 | AL28: 16.9598 | AM28: 18447 | AN28: 23954 | AO28: 300 | AP28: 367.1970624 | AQ28: 817 | AR28: 2713 | AS28: 2852.78654 | AT28: 951 | AU28: 211 | AV28: 1071.06599 | AW28: 197 | AX28: 0 | AY28: 0 | AZ28: 0 | BA28: 146.8345037 | BB28: 22.15422277 | BC28: 3437 | BD28: 18.63175584 | BE28: 2268 | BF28: 12.29468206 | BG28: 686 | BH28: 3.718761858 | BI28: 1112 | BJ28: 6.028080447 | BK28: 1538 | BL28: 8.337399035 | BM28: 8836 | BN28: 47.89938743 | BO28: 570 | BP28: 3.089933322 | BQ28: 1226.186229 | BR28: 244.7377809 | BS28: 623.6175526 | BT28: 396.7178024 | BU28: 548.6978238 | BV28: 185.5155191 | BW28: 203.3535498 | BX28: 124.8662148 | BY28: 3152.336782 | BZ28: Data not yet available | CA28: 413.7086903 | CB28: Data not yet available | CC28: Data not yet available | CD28: Data not yet available | CE28: Data not yet available | CF28: Data not yet available | CG28: Data not yet available | CH28: Data not yet available | CI28: 1084 | CJ28: 44.75025484 | CK28: 2610.548 | CL28: 931.3407064 | CM28: 23.65 | CN28: 2 | CO28: 6 | CP28: Data not yet available | CQ28: Data not yet available | CR28: 3578 | CS28: 3412 | CT28: 104.87 | CU28: 79.66 | CV28: 1.28 | CW28: Y | CX28: 26000 | CY28: 138000 | CZ28: 0 | DA28: 3000 | DB28: 0 | DC28: 390389 | DD28: 1 | DE28: 7775 | DF28: 3 | DG28: 10 | DH28: 280.3 | DI28: 10 | DJ28: 90 | DK28: 0 | DL28: 0 | DM28: 0 | DN28: 50 | DO28: 50 | DP28: 90 | DQ28: 31.14444444
A29: Central Coast | B29: 7 | C29: Metropolitan Fringe | E29: 1681.1 | F29: 335309 | G29: 3.921191854 | H29: 199.5 | I29: 163734 | J29: 48.83077997 | K29: 171575 | L29: 51.16922003 | M29: 25.00201307 | N29: 48.86776078 | O29: 26.13022615 | P29: 36.42133077 | Q29: 37.44844308 | R29: 26.13022615 | S29: 3.8 | T29: 5.9 | U29: 86 | V29: 5.9 | W29: 52697.40708 | X29: 2.5 | Y29: Health Care & Social Assistance | Z29: 22604 | AA29: Data not yet available | AB29: Data not yet available | AC29: Data not yet available | AD29: Data not yet available | AE29: * | AF29: * | AG29: * | AH29: * | AI29: * | AJ29: * | AK29: * | AL29: * | AM29: * | AN29: * | AO29: * | AP29: * | AQ29: * | AR29: * | AS29: * | AT29: * | AU29: * | AV29: * | AW29: * | AX29: * | AY29: * | AZ29: * | BA29: * | BB29: * | BC29: * | BD29: * | BE29: * | BF29: * | BG29: * | BH29: * | BI29: * | BJ29: * | BK29: * | BL29: * | BM29: * | BN29: * | BO29: * | BP29: * | BQ29: * | BR29: * | BS29: * | BT29: * | BU29: * | BV29: * | BW29: * | BX29: * | BY29: * | BZ29: Data not yet available | CA29: * | CB29: Data not yet available | CC29: Data not yet available | CD29: Data not yet available | CE29: Data not yet available | CF29: Data not yet available | CG29: Data not yet available | CH29: Data not yet available | CI29: 57949 | CJ29: 63.46355119 | CK29: 2193.8 | CL29: 6.54262188 | CM29: 3625 | CN29: 14 | CO29: 89 | CP29: Data not yet available | CQ29: Data not yet available | CR29: * | CS29: * | CT29: * | CU29: * | CV29: * | CW29: Y | CX29: * | CY29: * | CZ29: * | DA29: * | DB29: * | DC29: * | DD29: 0 | DE29: 0 | DF29: 0 | DG29: - | DH29: - | DI29: - | DJ29: - | DK29: - | DL29: - | DM29: - | DN29: - | DO29: - | DP29: 1862 | DQ29: 180.0800215
A30: Central Darling | B30: 9 | C30: Rural | E30: 53492.2 | F30: 1875 | G30: -8.936376882 | H30: 0 | I30: 979 | J30: 52.21333333 | K30: 896 | L30: 47.78666667 | M30: 27.46666667 | N30: 50.98666667 | O30: 21.54666667 | P30: 40.32 | Q30: 38.13333333 | R30: 21.54666667 | S30: 39.6 | T30: 2.7 | U30: 2 | V30: 5.4 | W30: 42781.14265 | X30: 2.4 | Y30: Agriculture, Forestry and Fishing | Z30: 155 | AA30: Data not yet available | AB30: Data not yet available | AC30: Data not yet available | AD30: Data not yet available | AE30: 18.2 | AF30: 2.0215 | AG30: 47.4 | AH30: 52.6004028 | AI30: 35.69 | AJ30: 33.2218 | AK30: 1.002979563 | AL30: 1.6092 | AM30: 19491 | AN30: 25323 | AO30: 304 | AP30: 274.8643761 | AQ30: 1106 | AR30: 440 | AS30: 1189.189189 | AT30: 370 | AU30: 41 | AV30: 294.9640288 | AW30: 139 | AX30: 0 | AY30: 0 | AZ30: 0 | BA30: 181.5412076 | BB30: 0 | BC30: 4771 | BD30: 24.47796419 | BE30: 2066 | BF30: 10.59976399 | BG30: 486 | BH30: 2.493458519 | BI30: 336 | BJ30: 1.723872557 | BK30: 729 | BL30: 3.740187779 | BM30: 10622 | BN30: 54.49694731 | BO30: 481 | BP30: 2.467805654 | BQ30: 2544.533333 | BR30: 259.2 | BS30: 929.0666667 | BT30: 179.2 | BU30: 388.8 | BV30: 172.8 | BW30: 256.5333333 | BX30: 0 | BY30: 5665.066667 | BZ30: Data not yet available | CA30: 416.8173599 | CB30: Data not yet available | CC30: Data not yet available | CD30: Data not yet available | CE30: Data not yet available | CF30: Data not yet available | CG30: Data not yet available | CH30: Data not yet available | CI30: 821 | CJ30: 31.81063123 | CK30: 2395.82 | CL30: 1277.770667 | CM30: 1 | CN30: 4 | CO30: 7 | CP30: Data not yet available | CQ30: Data not yet available | CR30: 4462 | CS30: 5619 | CT30: 79.41 | CU30: 0 | CV30: 17.94 | CW30: Y | CX30: 0 | CY30: 0 | CZ30: 0 | DA30: 0 | DB30: 0 | DC30: 202213 | DD30: 0 | DE30: 0 | DF30: 0 | DG30: - | DH30: - | DI30: - | DJ30: - | DK30: - | DL30: - | DM30: - | DN30: - | DO30: - | DP30: 42 | DQ30: 44.64285714
A31: Cessnock | B31: 4 | C31: Regional Town/City | D31: Hunter | E31: 1965.2 | F31: 56762 | G31: 8.148994951 | H31: 28.9 | I31: 28332 | J31: 49.91367464 | K31: 28430 | L31: 50.08632536 | M31: 27.22772277 | N31: 51.07466263 | O31: 21.6976146 | P31: 40.41083824 | Q31: 37.89154716 | R31: 21.6976146 | S31: 7.2 | T31: 1.9 | U31: 12 | V31: 6 | W31: 54341.54884 | X31: 2.6 | Y31: Manufacturing | Z31: 2750 | AA31: Data not yet available | AB31: Data not yet available | AC31: Data not yet available | AD31: Data not yet available | AE31: 3.97 | AF31: 2.4487 | AG31: 63.37 | AH31: 36.62347481 | AI31: 2.04 | AJ31: 8.1082 | AK31: 2.138875743 | AL31: 6.3072 | AM31: 75998 | AN31: 95234 | AO31: 24766 | AP31: 1090.052817 | AQ31: 22720 | AR31: 3023 | AS31: 2708.781362 | AT31: 1116 | AU31: 4691 | AV31: 3056.026059 | AW31: 1535 | AX31: 1046 | AY31: 209200 | AZ31: 5 | BA31: 130.7559603 | BB31: 20.11883803 | BC31: 16061 | BD31: 21.13345088 | BE31: 3698 | BF31: 4.865917524 | BG31: 16294 | BH31: 21.4400379 | BI31: 6070 | BJ31: 7.987052291 | BK31: 10305 | BL31: 13.55956736 | BM31: 20966 | BN31: 27.58756809 | BO31: 2604 | BP31: 3.426405958 | BQ31: 282.9533843 | BR31: 287.0582432 | BS31: 0 | BT31: 106.93774 | BU31: 181.5475142 | BV31: 65.14921955 | BW31: 45.87576195 | BX31: 31.69373877 | BY31: 369.3668299 | BZ31: Data not yet available | CA31: 486.6637324 | CB31: Data not yet available | CC31: Data not yet available | CD31: Data not yet available | CE31: Data not yet available | CF31: Data not yet available | CG31: Data not yet available | CH31: Data not yet available | CI31: 15407 | CJ31: 61.21781156 | CK31: 1025.69 | CL31: 18.07001163 | CM31: 653.12 | CN31: 3 | CO31: 22 | CP31: Data not yet available | CQ31: Data not yet available | CR31: 11551 | CS31: 11303 | CT31: 102.19 | CU31: 100.75 | CV31: 3.4 | CW31: Y | CX31: 51000 | CY31: 272000 | CZ31: 0 | DA31: 7469 | DB31: 700 | DC31: 290056 | DD31: 4 | DE31: 12322 | DF31: 2 | DG31: 13 | DH31: 4366.307692 | DI31: 23.07692308 | DJ31: 76.92307692 | DK31: 0 | DL31: 0 | DM31: 0 | DN31: 69 | DO31: 31 | DP31: 294 | DQ31: 193.0680272
A32: Clarence Valley | B32: 4 | C32: Regional Town/City | E32: 10428.7 | F32: 51367 | G32: 0.1559849475 | H32: 4.9 | I32: 25565 | J32: 49.76930714 | K32: 25802 | L32: 50.23069286 | M32: 22.91354371 | N32: 44.38063348 | O32: 32.7058228 | P32: 31.61757549 | Q32: 35.67660171 | R32: 32.7058228 | S32: 6.3 | T32: 2.1 | U32: 16 | V32: 8.9 | W32: 43075.51702 | X32: 2.3 | Y32: Health Care & Social Assistance | Z32: 3847 | AA32: Data not yet available | AB32: Data not yet available | AC32: Data not yet available | AD32: Data not yet available | AE32: -3.78 | AF32: 4.3933 | AG32: 69.19 | AH32: 30.81235613 | AI32: 6.29 | AJ32: 3.1688 | AK32: 11.33924295 | AL32: 11.9708 | AM32: 146366 | AN32: 134670 | AO32: 21172 | AP32: 940.4344157 | AQ32: 22513 | AR32: 2947 | AS32: 1348.124428 | AT32: 2186 | AU32: 3624 | AV32: 2453.622207 | AW32: 1477 | AX32: 0 | AY32: 0 | AZ32: 0 | BA32: 163.3336862 | BB32: 26.7845245 | BC32: 23697 | BD32: 16.19432922 | BE32: 36558 | BF32: 24.98342776 | BG32: 14181 | BH32: 9.691175365 | BI32: 11118 | BJ32: 7.597947092 | BK32: 10939 | BL32: 7.475620007 | BM32: 39459 | BN32: 26.9659466 | BO32: 10377 | BP32: 7.091553964 | BQ32: 461.3273113 | BR32: 276.0721864 | BS32: 653.104133 | BT32: 216.4424631 | BU32: 212.9577355 | BV32: 58.59793252 | BW32: 202.0168591 | BX32: 33.34825861 | BY32: 768.1780131 | BZ32: Data not yet available | CA32: 264.5582552 | CB32: Data not yet available | CC32: Data not yet available | CD32: Data not yet available | CE32: Data not yet available | CF32: Data not yet available | CG32: Data not yet available | CH32: Data not yet available | CI32: 14483 | CJ32: 51.47260848 | CK32: 2448.57 | CL32: 47.66815271 | CM32: 646 | CN32: 7 | CO32: 25 | CP32: Data not yet available | CQ32: Data not yet available | CR32: 16876 | CS32: 24466 | CT32: 68.98 | CU32: 21.26 | CV32: 3.89 | CW32: Y | CX32: 21000 | CY32: 192000 | CZ32: 0 | DA32: 3000 | DB32: 2000 | DC32: 300356 | DD32: 8 | DE32: 1573 | DF32: 0 | DG32: 9 | DH32: 5707.444444 | DI32: 22 | DJ32: 78 | DK32: 0 | DL32: 0 | DM32: 0 | DN32: 56 | DO32: 44 | DP32: 538 | DQ32: 95.47769517
A33: Cobar | B33: 10 | C33: Large Rural | D33: Orana | E33: 45579.3 | F33: 4764 | G33: -2.437026418 | H33: 0.1 | I33: 2456 | J33: 51.55331654 | K33: 2308 | L33: 48.44668346 | M33: 27.9177162 | N33: 53.42149454 | O33: 18.66078925 | P33: 41.45675903 | Q33: 39.88245172 | R33: 18.66078925 | S33: 13.6 | T33: 4.1 | U33: 58 | V33: 1.7 | W33: 69668.14753 | X33: 2.4 | Y33: Mining | Z33: 462 | AA33: Data not yet available | AB33: Data not yet available | AC33: Data not yet available | AD33: Data not yet available | AE33: 7.48 | AF33: 4.6165 | AG33: 52.07 | AH33: 47.81537451 | AI33: 8.21 | AJ33: 25.1486 | AK33: 0.8249651523 | AL33: 6.2219 | AM33: 32523 | AN33: 36528 | AO33: 2616 | AP33: 1286.768323 | AQ33: 2033 | AR33: 647 | AS33: 1581.90709 | AT33: 409 | AU33: 386 | AV33: 1034.852547 | AW33: 373 | AX33: 1594 | AY33: 54965.51724 | AZ33: 29 | BA33: 42.35724299 | BB33: 13.9695032 | BC33: 2108 | BD33: 6.480775666 | BE33: 4512 | BF33: 13.87325892 | BG33: 786 | BH33: 2.416751222 | BI33: 5657 | BJ33: 17.39384436 | BK33: 3052 | BL33: 9.384128155 | BM33: 15421 | BN33: 47.41646629 | BO33: 987 | BP33: 3.03477539 | BQ33: 442.4853065 | BR33: 164.9874055 | BS33: 809.1939547 | BT33: 1187.447523 | BU33: 640.6381192 | BV33: 137.9093199 | BW33: 207.1788413 | BX33: 89.84047019 | BY33: 3236.985726 | BZ33: Data not yet available | CA33: 278.4062961 | CB33: Data not yet available | CC33: Data not yet available | CD33: Data not yet available | CE33: Data not yet available | CF33: Data not yet available | CG33: Data not yet available | CH33: Data not yet available | CI33: 2168 | CJ33: 42.93235062 | CK33: 2319.98 | CL33: 486.9815281 | CM33: 121 | CN33: 1 | CO33: 4 | CP33: Data not yet available | CQ33: Data not yet available | CR33: 4783 | CS33: 5196 | CT33: 92.05 | CU33: 35.67 | CV33: 6.71 | CW33: Y | CX33: 7000 | CY33: 148000 | CZ33: 0 | DA33: 4000 | DB33: 10000 | DC33: 211825 | DD33: 1 | DE33: 10000 | DF33: 0 | DG33: 12 | DH33: 397 | DI33: 33.33333333 | DJ33: 66.66666667 | DK33: 8.333333333 | DL33: 0 | DM33: 8 | DN33: 42 | DO33: 50 | DP33: 140 | DQ33: 34.02857143
A34: Coffs Harbour | B34: 5 | C34: Regional Town/City | E34: 1173.7 | F34: 74641 | G34: 5.169644367 | H34: 63.6 | I34: 36299 | J34: 48.6314492 | K34: 38342 | L34: 51.3685508 | M34: 24.83487627 | N34: 47.93344141 | O34: 27.23168232 | P34: 35.69351965 | Q34: 37.07479803 | R34: 27.23168232 | S34: 5 | T34: 7.5 | U34: 61 | V34: 6.9 | W34: 45445.70726 | X34: 2.4 | Y34: Health Care & Social Assistance | Z34: 5750 | AA34: Data not yet available | AB34: Data not yet available | AC34: Data not yet available | AD34: Data not yet available | AE34: 18.74 | AF34: 14.7666 | AG34: 74.26 | AH34: 25.69047282 | AI34: 6.62 | AJ34: 3.1342 | AK34: 14.76444218 | AL34: 9.1011 | AM34: 165276 | AN34: 219089 | AO34: 33738 | AP34: 1129.986268 | AQ34: 29857 | AR34: 1480 | AS34: 3566.26506 | AT34: 415 | AU34: 8127 | AV34: 4555.493274 | AW34: 1784 | AX34: 0 | AY34: 0 | AZ34: 0 | BA34: 148.8050124 | BB34: 20.03550256 | BC34: 37058 | BD34: 22.42188824 | BE34: 59458 | BF34: 35.97497519 | BG34: 19463 | BH34: 11.77605944 | BI34: 5332 | BJ34: 3.226118735 | BK34: 11857 | BL34: 7.17406036 | BM34: 24903 | BN34: 15.06752342 | BO34: 7205 | BP34: 4.359374622 | BQ34: 496.4831661 | BR34: 260.754813 | BS34: 750.6330301 | BT34: 71.43527016 | BU34: 158.8537131 | BV34: 45.95329645 | BW34: 96.52871746 | BX34: 29.44762262 | BY34: 333.6370092 | BZ34: Data not yet available | CA34: 613.4909736 | CB34: Data not yet available | CC34: Data not yet available | CD34: Data not yet available | CE34: Data not yet available | CF34: Data not yet available | CG34: Data not yet available | CH34: Data not yet available | CI34: 10044 | CJ34: 70.16751812 | CK34: 873.35 | CL34: 11.70067389 | CM34: 1634 | CN34: 4 | CO34: 14 | CP34: Data not yet available | CQ34: Data not yet available | CR34: 13604 | CS34: 13536 | CT34: 100.5 | CU34: 8.29 | CV34: 0 | CW34: Y | CX34: 72000 | CY34: 204000 | CZ34: 0 | DA34: 28131 | DB34: 10932 | DC34: 309369 | DD34: 4 | DE34: 4658 | DF34: 0 | DG34: 9 | DH34: 8293.444444 | DI34: 50 | DJ34: 50 | DK34: 0 | DL34: 0 | DM34: 0 | DN34: 57 | DO34: 43 | DP34: 550 | DQ34: 135.7109091
A35: Coolamon | B35: 9 | C35: Rural | D35: Riverina | E35: 2430.9 | F35: 4403 | G35: 3.942398489 | H35: 1.8 | I35: 2233 | J35: 50.7154213 | K35: 2170 | L35: 49.2845787 | M35: 26.82262094 | N35: 43.78832614 | O35: 29.38905292 | P35: 35.52123552 | Q35: 35.08971156 | R35: 29.38905292 | S35: 3.2 | T35: 1.2 | U35: 71 | V35: 3.2 | W35: 45067.01896 | X35: 2.5 | Y35: Agriculture, Forestry and Fishing | Z35: 279 | AA35: Data not yet available | AB35: Data not yet available | AC35: Data not yet available | AD35: Data not yet available | AE35: 18.92 | AF35: 8.4072 | AG35: 43.4 | AH35: 56.5967798 | AI35: 5.73 | AJ35: 81.5556 | AK35: 0.4525171265 | AL35: 19.7067 | AM35: 13127 | AN35: 17266 | AO35: 578 | AP35: 329.9086758 | AQ35: 1752 | AR35: 1567 | AS35: 1758.698092 | AT35: 891 | AU35: 94 | AV35: 396.6244726 | AW35: 237 | AX35: 0 | AY35: 0 | AZ35: 0 | BA35: 231.0618267 | BB35: 23.45890411 | BC35: 728 | BD35: 5.547512002 | BE35: 987 | BF35: 7.521146079 | BG35: 753 | BH35: 5.738017222 | BI35: 1808 | BJ35: 13.7773375 | BK35: 1134 | BL35: 8.641316772 | BM35: 4884 | BN35: 37.21709975 | BO35: 2829 | BP35: 21.55757068 | BQ35: 165.3418124 | BR35: 171.0197593 | BS35: 121.7351806 | BT35: 410.6291165 | BU35: 257.5516693 | BV35: 102.4301613 | BW35: 642.516466 | BX35: 47.24051783 | BY35: 1109.243697 | BZ35: Data not yet available | CA35: 264.2694064 | CB35: Data not yet available | CC35: Data not yet available | CD35: Data not yet available | CE35: Data not yet available | CF35: Data not yet available | CG35: Data not yet available | CH35: Data not yet available | CI35: 1896 | CJ35: 45.20231214 | CK35: 1338.67 | CL35: 304.0358846 | CM35: 13 | CN35: 3 | CO35: 7 | CP35: Data not yet available | CQ35: Data not yet available | CR35: 4315 | CS35: 3099 | CT35: 139.24 | CU35: 107.43 | CV35: 1.18 | CW35: Y | CX35: 10000 | CY35: 90000 | CZ35: 0 | DA35: 0 | DB35: 0 | DC35: 197580 | DD35: 0 | DE35: 0 | DF35: 0 | DG35: 9 | DH35: 489.2222222 | DI35: 22 | DJ35: 78 | DK35: 0 | DL35: 0 | DM35: 0 | DN35: 77.77777778 | DO35: 22.22222222 | DP35: 68 | DQ35: 64.75
A36: Coonamble | B36: 9 | C36: Rural | E36: 9916.1 | F36: 4082 | G36: -3.40747752 | H36: 0.4 | I36: 2035 | J36: 49.85301323 | K36: 2047 | L36: 50.14698677 | M36: 25.74718275 | N36: 48.72611465 | O36: 25.5267026 | P36: 37.50612445 | Q36: 36.96717295 | R36: 25.5267026 | S36: 30.2 | T36: 1.3 | U36: 5 | V36: 5.5 | W36: 41592.89238 | X36: 2.4 | Y36: Agriculture, Forestry and Fishing | Z36: 632 | AA36: Data not yet available | AB36: Data not yet available | AC36: Data not yet available | AD36: Data not yet available | AE36: 18.25 | AF36: 6.1049 | AG36: 55.13 | AH36: 44.76795271 | AI36: 7.3 | AJ36: 158.3621 | AK36: 0.2501401647 | AL36: 19.9048 | AM36: 18955 | AN36: 25038 | AO36: 510 | AP36: 342.5117529 | AQ36: 1489 | AR36: 3751 | AS36: 4243.21267 | AT36: 884 | AU36: 147 | AV36: 700 | AW36: 210 | AX36: 0 | AY36: 0 | AZ36: 0 | BA36: 207.4646642 | BB36: 22.49832102 | BC36: 7138 | BD36: 37.65761013 | BE36: 2489 | BF36: 13.13109997 | BG36: 771 | BH36: 4.067528357 | BI36: 490 | BJ36: 2.585069902 | BK36: 1426 | BL36: 7.523080981 | BM36: 4942 | BN36: 26.07227644 | BO36: 1699 | BP36: 8.963334213 | BQ36: 1748.652621 | BR36: 188.878001 | BS36: 471.3375796 | BT36: 120.0391965 | BU36: 349.3385595 | BV36: 138.4125429 | BW36: 416.2175404 | BX36: 83.29250367 | BY36: 1210.681039 | BZ36: Data not yet available | CA36: 298.8582942 | CB36: Data not yet available | CC36: Data not yet available | CD36: Data not yet available | CE36: Data not yet available | CF36: Data not yet available | CG36: Data not yet available | CH36: Data not yet available | CI36: 1703 | CJ36: 54.88741722 | CK36: 1657.04 | CL36: 405.9382656 | CM36: 30 | CN36: 3 | CO36: 3 | CP36: Data not yet available | CQ36: Data not yet available | CR36: 2876 | CS36: 1095 | CT36: 262.65 | CU36: 108.72 | CV36: 0.98 | CW36: Y | CX36: 17000 | CY36: 86000 | CZ36: 0 | DA36: 9719 | DB36: 0 | DC36: 265616 | DD36: 0 | DE36: 0 | DF36: 0 | DG36: 7 | DH36: 583.1428571 | DI36: 14 | DJ36: 86 | DK36: 28.57142857 | DL36: 14.28571429 | DM36: 0 | DN36: 57.14285714 | DO36: 42.85714286 | DP36: 91 | DQ36: 44.85714286
A37: Cootamundra-Gundagai Regional | B37: 11 | C37: Large Rural | D37: Riverina | E37: 3980.9 | F37: 11286 | G37: -0.3 | H37: =F37/E37 -> 2.835037303 | I37: 5619 | J37: 49.78734716 | K37: 5667 | L37: =K37/F37*100 -> 50.21265284 | M37: 24.12723729 | N37: 43.97483608 | O37: 31.9 | P37: 32.98777246 | Q37: 35.1143009 | R37: 31.9 | S37: 4.6 | T37: 2 | U37: 27 | V37: 4.9 | W37: 43761 | X37: 2.3 | Y37: Agriculture, Forestry and Fishing | Z37: 1156 | AA37: Data not yet available | AB37: Data not yet available | AC37: Data not yet available | AD37: Data not yet available | AE37: * | AF37: * | AG37: * | AH37: * | AI37: * | AJ37: * | AK37: * | AL37: * | AM37: * | AN37: * | AO37: * | AP37: * | AQ37: * | AR37: * | AS37: * | AT37: * | AU37: * | AV37: * | AW37: * | AX37: * | AY37: * | AZ37: * | BA37: * | BB37: * | BC37: * | BD37: * | BE37: * | BF37: * | BG37: * | BH37: * | BI37: * | BJ37: * | BK37: * | BL37: * | BM37: * | BN37: * | BO37: * | BP37: * | BQ37: * | BR37: * | BS37: * | BT37: * | BU37: * | BV37: * | BW37: * | BX37: * | BY37: * | BZ37: Data not yet available | CA37: * | CB37: Data not yet available | CC37: Data not yet available | CD37: Data not yet available | CE37: Data not yet available | CF37: Data not yet available | CG37: Data not yet available | CH37: Data not yet available | CI37: 4440 | CJ37: 41.4556962 | CK37: 1397 | CL37: 123.7816764 | CM37: 143 | CN37: 2 | CO37: 7 | CP37: Data not yet available | CQ37: Data not yet available | CR37: * | CS37: * | CT37: * | CU37: * | CV37: * | CW37: Y | CX37: * | CY37: * | CZ37: * | DA37: * | DB37: * | DC37: * | DD37: 1 | DE37: 650 | DF37: 0 | DG37: - | DH37: - | DI37: - | DJ37: - | DK37: - | DL37: - | DM37: - | DN37: - | DO37: - | DP37: 140 | DQ37: 80.61428571
A38: Cowra | B38: 11 | C38: Large Rural | D38: Central NSW | E38: 2808.8 | F38: 12673 | G38: 1.197796055 | H38: 4.5 | I38: 6334 | J38: 49.98027302 | K38: 6339 | L38: 50.01972698 | M38: 23.78284542 | N38: 44.9301665 | O38: 31.28698808 | P38: 33.87516768 | Q38: 34.83784424 | R38: 31.28698808 | S38: 7.9 | T38: 2.6 | U38: 19 | V38: 6.1 | W38: 41221.26056 | X38: 2.3 | Y38: Agriculture, Forestry and Fishing | Z38: 1328 | AA38: Data not yet available | AB38: Data not yet available | AC38: Data not yet available | AD38: Data not yet available | AE38: 11.16 | AF38: 3.9557 | AG38: 71.31 | AH38: 28.59260676 | AI38: 9.02 | AJ38: 4.8054 | AK38: 6.350322791 | AL38: 8.9314 | AM38: 35368 | AN38: 41822 | AO38: 2152 | AP38: 416.0866203 | AQ38: 5172 | AR38: 2848 | AS38: 1754.775108 | AT38: 1623 | AU38: 1244 | AV38: 3056.511057 | AW38: 407 | AX38: 19 | AY38: 19000 | AZ38: 1 | BA38: 145.6036495 | BB38: 26.54679041 | BC38: 3707 | BD38: 10.48122597 | BE38: 11284 | BF38: 31.90454648 | BG38: 4214 | BH38: 11.91472518 | BI38: 2073 | BJ38: 5.861230491 | BK38: 3183 | BL38: 8.99966071 | BM38: 3038 | BN38: 8.589685591 | BO38: 7869 | BP38: 22.24892558 | BQ38: 292.5116389 | BR38: 332.5179516 | BS38: 841.2372761 | BT38: 163.5761067 | BU38: 251.1638917 | BV38: 49.15963071 | BW38: 620.9263789 | BX38: 32.27333702 | BY38: 239.7222441 | BZ38: Data not yet available | CA38: 401.1987626 | CB38: Data not yet available | CC38: Data not yet available | CD38: Data not yet available | CE38: Data not yet available | CF38: Data not yet available | CG38: Data not yet available | CH38: Data not yet available | CI38: 5256 | CJ38: 38.48314607 | CK38: 1266.47 | CL38: 99.93450643 | CM38: 48 | CN38: 1 | CO38: 1 | CP38: Data not yet available | CQ38: Data not yet available | CR38: 8951 | CS38: 8496 | CT38: 105.36 | CU38: 44.58 | CV38: 1 | CW38: Y | CX38: 56000 | CY38: 124000 | CZ38: 0 | DA38: 35000 | DB38: 1000 | DC38: 220153 | DD38: 1 | DE38: 1000 | DF38: 2 | DG38: 9 | DH38: 1408.111111 | DI38: 22 | DJ38: 78 | DK38: 0 | DL38: 0 | DM38: 0 | DN38: 33.33333333 | DO38: 66.66666667 | DP38: 165 | DQ38: 76.80606061
A39: Cumberland | B39: 3 | C39: Metropolitan | E39: 71.6 | F39: 226051 | G39: 11.25597374 | H39: 3159.3 | I39: 116855 | J39: 51.69408673 | K39: 109196 | L39: 48.30591327 | M39: 26.21222644 | N39: 58.55537025 | O39: 15.23240331 | P39: 44.80758767 | Q39: 39.96000902 | R39: 15.23240331 | S39: 0.6 | T39: 65.6 | U39: 69 | V39: 7 | W39: 48153.01407 | X39: 3.2 | Y39: Manufacturing | Z39: 20369 | AA39: Data not yet available | AB39: Data not yet available | AC39: Data not yet available | AD39: Data not yet available | AE39: * | AF39: * | AG39: * | AH39: * | AI39: * | AJ39: * | AK39: * | AL39: * | AM39: * | AN39: * | AO39: * | AP39: * | AQ39: * | AR39: * | AS39: * | AT39: * | AU39: * | AV39: * | AW39: * | AX39: * | AY39: * | AZ39: * | BA39: * | BB39: * | BC39: * | BD39: * | BE39: * | BF39: * | BG39: * | BH39: * | BI39: * | BJ39: * | BK39: * | BL39: * | BM39: * | BN39: * | BO39: * | BP39: * | BQ39: * | BR39: * | BS39: * | BT39: * | BU39: * | BV39: * | BW39: * | BX39: * | BY39: * | BZ39: Data not yet available | CA39: * | CB39: Data not yet available | CC39: Data not yet available | CD39: Data not yet available | CE39: Data not yet available | CF39: Data not yet available | CG39: Data not yet available | CH39: Data not yet available | CI39: 14377 | CJ39: 57.70475406 | CK39: 622 | CL39: 2.751591455 | CM39: 643.797 | CN39: 5 | CO39: 12 | CP39: Data not yet available | CQ39: Data not yet available | CR39: * | CS39: * | CT39: * | CU39: * | CV39: * | CW39: Y | CX39: * | CY39: * | CZ39: * | DA39: * | DB39: * | DC39: * | DD39: 0 | DE39: 0 | DF39: 0 | DG39: - | DH39: - | DI39: - | DJ39: - | DK39: - | DL39: - | DM39: - | DN39: - | DO39: - | DP39: 796 | DQ39: 283.9836683
A40: Dubbo Regional | B40: 4 | C40: Regional Town/City | E40: 7534.5 | F40: 51429 | G40: 4.788198619 | H40: 6.8 | I40: 25285 | J40: 49.16486807 | K40: 26144 | L40: 50.83513193 | M40: 27.61671431 | N40: 50.90513135 | O40: 21.47815435 | P40: 41.32298898 | Q40: 37.19885668 | R40: 21.47815435 | S40: 15.5 | T40: 4.7 | U40: 60 | V40: 2.9 | W40: 49021.36098 | X40: 2.5 | Y40: Health Care & Social Assistance | Z40: 5054 | AA40: Data not yet available | AB40: Data not yet available | AC40: Data not yet available | AD40: Data not yet available | AE40: * | AF40: * | AG40: * | AH40: * | AI40: * | AJ40: * | AK40: * | AL40: * | AM40: * | AN40: * | AO40: * | AP40: * | AQ40: * | AR40: * | AS40: * | AT40: * | AU40: * | AV40: * | AW40: * | AX40: * | AY40: * | AZ40: * | BA40: * | BB40: * | BC40: * | BD40: * | BE40: * | BF40: * | BG40: * | BH40: * | BI40: * | BJ40: * | BK40: * | BL40: * | BM40: * | BN40: * | BO40: * | BP40: * | BQ40: * | BR40: * | BS40: * | BT40: * | BU40: * | BV40: * | BW40: * | BX40: * | BY40: * | BZ40: Data not yet available | CA40: * | CB40: Data not yet available | CC40: Data not yet available | CD40: Data not yet available | CE40: Data not yet available | CF40: Data not yet available | CG40: Data not yet available | CH40: Data not yet available | CI40: 15118 | CJ40: 51.5402122 | CK40: 2710.2 | CL40: 52.69789418 | CM40: 1051 | CN40: 3 | CO40: 7 | CP40: Data not yet available | CQ40: Data not yet available | CR40: * | CS40: * | CT40: * | CU40: * | CV40: * | CW40: Y | CX40: * | CY40: * | CZ40: * | DA40: * | DB40: * | DC40: * | DD40: 0 | DE40: 0 | DF40: 0 | DG40: - | DH40: - | DI40: - | DJ40: - | DK40: - | DL40: - | DM40: - | DN40: - | DO40: - | DP40: 432 | DQ40: 119.0486111
A41: Dungog | B41: 10 | C41: Large Rural | D41: Hunter | E41: 2250 | F41: 9114 | G41: 6.52173913 | H41: 4.1 | I41: 4583 | J41: 50.2852754 | K41: 4531 | L41: 49.7147246 | M41: 25.35659425 | N41: 48.02501646 | O41: 26.61838929 | P41: 34.10138249 | Q41: 39.28022822 | R41: 26.61838929 | S41: 5 | T41: 0.8 | U41: 83 | V41: 3.1 | W41: 53793.59633 | X41: 2.5 | Y41: Agriculture, Forestry and Fishing | Z41: 1036 | AA41: Data not yet available | AB41: Data not yet available | AC41: Data not yet available | AD41: Data not yet available | AE41: -17.51 | AF41: 8.2407 | AG41: 40.49 | AH41: 59.48918056 | AI41: 6.03 | AJ41: 11.5318 | AK41: 1.823281907 | AL41: 8.3059 | AM41: 20420 | AN41: 22552 | AO41: 2897 | AP41: 831.0384395 | AQ41: 3486 | AR41: 2083 | AS41: 2132.036847 | AT41: 977 | AU41: 323 | AV41: 880.1089918 | AW41: 367 | AX41: 0 | AY41: 0 | AZ41: 0 | BA41: 245.1775751 | BB41: 22.14572576 | BC41: 2550 | BD41: 12.48980129 | BE41: 708 | BF41: 3.467108041 | BG41: 2068 | BH41: 10.12708959 | BI41: 2069 | BJ41: 10.13198663 | BK41: 1574 | BL41: 7.707949232 | BM41: 10530 | BN41: 51.56588654 | BO41: 921 | BP41: 4.51017868 | BQ41: 279.7893351 | BR41: 226.9036647 | BS41: 0 | BT41: 227.013386 | BU41: 172.7013386 | BV41: 77.68268598 | BW41: 101.0533246 | BX41: 23.91924512 | BY41: 1155.365372 | BZ41: Data not yet available | CA41: 376.9363167 | CB41: Data not yet available | CC41: Data not yet available | CD41: Data not yet available | CE41: Data not yet available | CF41: Data not yet available | CG41: Data not yet available | CH41: Data not yet available | CI41: 2440 | CJ41: 62.28748068 | CK41: 725.16 | CL41: 79.56550362 | CM41: 71.41 | CN41: 2 | CO41: 7 | CP41: Data not yet available | CQ41: Data not yet available | CR41: 3414 | CS41: 4720 | CT41: 72.33 | CU41: 93.1 | CV41: 4.78 | CW41: Y | CX41: 6000 | CY41: 91000 | CZ41: 0 | DA41: 0 | DB41: 0 | DC41: 226207 | DD41: 2 | DE41: 1485 | DF41: 0 | DG41: 9 | DH41: 1012.666667 | DI41: 33.33333333 | DJ41: 66.66666667 | DK41: 0 | DL41: 0 | DM41: 0 | DN41: 55.55555556 | DO41: 44.44444444 | DP41: 66 | DQ41: 138.0909091
A42: Edward River | B42: 10 | C42: Large Rural | D42: Riverina and Murray | E42: 8883.5 | F42: 8951 | G42: 0.7088208821 | H42: 1 | I42: 4451 | J42: 49.72628757 | K42: 4500 | L42: 50.27371243 | M42: 24.32130488 | N42: 47.60361971 | O42: 28.07507541 | P42: 35.48206904 | Q42: 36.44285555 | R42: 28.07507541 | S42: 4 | T42: 3.3 | U42: 43 | V42: 5.9 | W42: 44465.31347 | X42: 2.3 | Y42: Agriculture, Forestry and Fishing | Z42: 893 | AA42: Data not yet available | AB42: Data not yet available | AC42: Data not yet available | AD42: Data not yet available | AE42: * | AF42: * | AG42: * | AH42: * | AI42: * | AJ42: * | AK42: * | AL42: * | AM42: * | AN42: * | AO42: * | AP42: * | AQ42: * | AR42: * | AS42: * | AT42: * | AU42: * | AV42: * | AW42: * | AX42: * | AY42: * | AZ42: * | BA42: * | BB42: * | BC42: * | BD42: * | BE42: * | BF42: * | BG42: * | BH42: * | BI42: * | BJ42: * | BK42: * | BL42: * | BM42: * | BN42: * | BO42: * | BP42: * | BQ42: * | BR42: * | BS42: * | BT42: * | BU42: * | BV42: * | BW42: * | BX42: * | BY42: * | BZ42: Data not yet available | CA42: * | CB42: Data not yet available | CC42: Data not yet available | CD42: Data not yet available | CE42: Data not yet available | CF42: Data not yet available | CG42: Data not yet available | CH42: Data not yet available | CI42: 2803 | CJ42: 33.51518027 | CK42: 1598.76 | CL42: 178.6124455 | CM42: 1162.5 | CN42: 1 | CO42: 10 | CP42: Data not yet available | CQ42: Data not yet available | CR42: * | CS42: * | CT42: * | CU42: * | CV42: * | CW42: Y | CX42: * | CY42: * | CZ42: * | DA42: * | DB42: * | DC42: * | DD42: 0 | DE42: 0 | DF42: 0 | DG42: - | DH42: - | DI42: - | DJ42: - | DK42: - | DL42: - | DM42: - | DN42: - | DO42: - | DP42: 99 | DQ42: 90.41414141
A43: Eurobodalla | B43: 4 | C43: Regional Town/City | D43: Canberra | E43: 3428.2 | F43: 37968 | G43: 2.389299391 | H43: 11.1 | I43: 18649 | J43: 49.11767804 | K43: 19319 | L43: 50.88232196 | M43: 19.59018121 | N43: 41.60872314 | O43: 38.80109566 | P43: 26.98061525 | Q43: 34.21828909 | R43: 38.80109566 | S43: 5.6 | T43: 3.8 | U43: 40 | V43: 8.1 | W43: 40080.6691 | X43: 2.2 | Y43: Retail Trade | Z43: 2838 | AA43: Data not yet available | AB43: Data not yet available | AC43: Data not yet available | AD43: Data not yet available | AE43: 9.7 | AF43: 2.3812 | AG43: 71.32 | AH43: 28.67973696 | AI43: 2.5 | AJ43: 3.4344 | AK43: 10.99215867 | AL43: 14.6676 | AM43: 105839 | AN43: 129051 | AO43: 21809 | AP43: 922.5465313 | AQ43: 23640 | AR43: 401 | AS43: 1427.046263 | AT43: 281 | AU43: 4075 | AV43: 3280.99839 | AW43: 1242 | AX43: 0 | AY43: 0 | AZ43: 0 | BA43: 184.9406901 | BB43: 21.20981387 | BC43: 757 | BD43: 0.7148219916 | BE43: 38729 | BF43: 36.58904254 | BG43: 14379 | BH43: 13.58449334 | BI43: 15838 | BJ43: 14.9628768 | BK43: 10035 | BL43: 9.480519555 | BM43: 19114 | BN43: 18.05786256 | BO43: 6997 | BP43: 6.610383192 | BQ43: 19.93784239 | BR43: 378.7136536 | BS43: 930.6521281 | BT43: 417.1407501 | BU43: 264.3015171 | BV43: 89.39106616 | BW43: 184.2867678 | BX43: 47.48735777 | BY43: 503.4239359 | BZ43: Data not yet available | CA43: 222.927242 | CB43: Data not yet available | CC43: Data not yet available | CD43: Data not yet available | CE43: Data not yet available | CF43: Data not yet available | CG43: Data not yet available | CH43: Data not yet available | CI43: 9923 | CJ43: 51.67527028 | CK43: 1008.1 | CL43: 26.55130636 | CM43: 1083.66 | CN43: 3 | CO43: 15 | CP43: Data not yet available | CQ43: Data not yet available | CR43: 15306 | CS43: 15306 | CT43: 100 | CU43: 79.13 | CV43: 7.25 | CW43: Y | CX43: 145000 | CY43: 204000 | CZ43: 0 | DA43: 44000 | DB43: 7000 | DC43: 296866 | DD43: 12 | DE43: 10447 | DF43: 1 | DG43: 9 | DH43: 4218.666667 | DI43: 44 | DJ43: 56 | DK43: 0 | DL43: 0 | DM43: 0 | DN43: 44 | DO43: 56 | DP43: 427 | DQ43: 88.91803279
A44: Fairfield | B44: 3 | C44: Metropolitan | E44: 101.5 | F44: 206436 | G44: 5.067717161 | H44: 2033.7 | I44: 102409 | J44: 49.60811099 | K44: 104027 | L44: 50.39188901 | M44: 26.35829022 | N44: 54.68571373 | O44: 18.95599605 | P44: 41.85268073 | Q44: 39.19132322 | R44: 18.95599605 | S44: 0.7 | T44: 70.8 | U44: 8 | V44: 9.2 | W44: 46222.7957 | X44: 3.3 | Y44: Manufacturing | Z44: 15099 | AA44: Data not yet available | AB44: Data not yet available | AC44: Data not yet available | AD44: Data not yet available | AE44: 11.37 | AF44: 3.0936 | AG44: 77.03 | AH44: 22.52074279 | AI44: 3.15 | AJ44: 146.2614 | AK44: 0.2034552716 | AL44: 4.9284 | AM44: 153336 | AN44: 194887 | AO44: 44527 | AP44: 776.8414809 | AQ44: 57318 | AR44: 230 | AS44: 2053.571429 | AT44: 112 | AU44: 31530 | AV44: 7544.867193 | AW44: 4179 | AX44: 0 | AY44: 0 | AZ44: 0 | BA44: 348.5728404 | BB44: 21.72964863 | BC44: 36699 | BD44: 23.9337142 | BE44: 7148 | BF44: 4.661658058 | BG44: 36557 | BH44: 23.84110711 | BI44: 18912 | BJ44: 12.33369854 | BK44: 23717 | BL44: 15.4673397 | BM44: 21429 | BN44: 13.97519174 | BO44: 8874 | BP44: 5.787290656 | BQ44: 177.7742254 | BR44: 177.0863609 | BS44: 0 | BT44: 91.61192815 | BU44: 114.8879071 | BV44: 34.62574357 | BW44: 42.98668837 | BX44: 32.0825825 | BY44: 103.804569 | BZ44: Data not yet available | CA44: 499.6510695 | CB44: Data not yet available | CC44: Data not yet available | CD44: Data not yet available | CE44: Data not yet available | CF44: Data not yet available | CG44: Data not yet available | CH44: Data not yet available | CI44: 9322 | CJ44: 75.05819398 | CK44: 680.3 | CL44: 3.295452344 | CM44: 959 | CN44: 3 | CO44: 23 | CP44: Data not yet available | CQ44: Data not yet available | CR44: 30394 | CS44: 30151 | CT44: 100.81 | CU44: 0 | CV44: 1.89 | CW44: Y | CX44: 71000 | CY44: 359000 | CZ44: 0 | DA44: 0 | DB44: 0 | DC44: 418077 | DD44: 0 | DE44: 0 | DF44: 0 | DG44: 13 | DH44: 15879.69231 | DI44: 31 | DJ44: 69 | DK44: 0 | DL44: 69 | DM44: 15 | DN44: 62 | DO44: 23 | DP44: 735 | DQ44: 280.8653061
A45: Federation | B45: 11 | C45: Large Rural | D45: Riverina and Murray | E45: 5685.1 | F45: 12411 | G45: -0.7834359261 | H45: 2.2 | I45: 6194 | J45: 49.90734026 | K45: 6217 | L45: 50.09265974 | M45: 22.96350012 | N45: 42.6154218 | O45: 34.42107808 | P45: 31.60905648 | Q45: 33.96986544 | R45: 34.42107808 | S45: 1.7 | T45: 2 | U45: 37 | V45: 4.9 | W45: 44550.19789 | X45: 2.3 | Y45: Manufacturing | Z45: 1260 | AA45: Data not yet available | AB45: Data not yet available | AC45: Data not yet available | AD45: Data not yet available | AE45: * | AF45: * | AG45: * | AH45: * | AI45: * | AJ45: * | AK45: * | AL45: * | AM45: * | AN45: * | AO45: * | AP45: * | AQ45: * | AR45: * | AS45: * | AT45: * | AU45: * | AV45: * | AW45: * | AX45: * | AY45: * | AZ45: * | BA45: * | BB45: * | BC45: * | BD45: * | BE45: * | BF45: * | BG45: * | BH45: * | BI45: * | BJ45: * | BK45: * | BL45: * | BM45: * | BN45: * | BO45: * | BP45: * | BQ45: * | BR45: * | BS45: * | BT45: * | BU45: * | BV45: * | BW45: * | BX45: * | BY45: * | BZ45: Data not yet available | CA45: * | CB45: Data not yet available | CC45: Data not yet available | CD45: Data not yet available | CE45: Data not yet available | CF45: Data not yet available | CG45: Data not yet available | CH45: Data not yet available | CI45: 3218 | CJ45: 55.84522503 | CK45: 2308.14 | CL45: 185.9753445 | CM45: 327.73 | CN45: 5 | CO45: 9 | CP45: Data not yet available | CQ45: Data not yet available | CR45: * | CS45: * | CT45: * | CU45: * | CV45: * | CW45: Y | CX45: * | CY45: * | CZ45: * | DA45: * | DB45: * | DC45: * | DD45: 0 | DE45: 0 | DF45: 0 | DG45: - | DH45: - | DI45: - | DJ45: - | DK45: - | DL45: - | DM45: - | DN45: - | DO45: - | DP45: 136 | DQ45: 91.25735294
A46: Forbes | B46: 10 | C46: Large Rural | D46: Central NSW | E46: 4710.1 | F46: 9808 | G46: 3.580103496 | H46: 2.1 | I46: 4919 | J46: 50.15293638 | K46: 4889 | L46: 49.84706362 | M46: 27.93637847 | N46: 44.93270799 | O46: 27.13091354 | P46: 38.71329527 | Q46: 34.15579119 | R46: 27.13091354 | S46: 11.1 | T46: 2.1 | U46: 39 | V46: 4 | W46: 45101.33293 | X46: 2.4 | Y46: Agriculture, Forestry and Fishing | Z46: 1137 | AA46: Data not yet available | AB46: Data not yet available | AC46: Data not yet available | AD46: Data not yet available | AE46: -0.46 | AF46: 7.4365 | AG46: 68.29 | AH46: 31.55805671 | AI46: 10.29 | AJ46: 3.8235 | AK46: 6.250172619 | AL46: 15.3842 | AM46: 36373 | AN46: 36783 | AO46: 2471 | AP46: 749.9241275 | AQ46: 3295 | AR46: 3285 | AS46: 2279.666898 | AT46: 1441 | AU46: 1157 | AV46: 2672.055427 | AW46: 433 | AX46: 0 | AY46: 0 | AZ46: 0 | BA46: 106.0840823 | BB46: 22.6707132 | BC46: 3509 | BD46: 9.647265829 | BE46: 6352 | BF46: 17.46350315 | BG46: 1900 | BH46: 5.223654909 | BI46: 889 | BJ46: 2.444120639 | BK46: 3019 | BL46: 8.300112721 | BM46: 15155 | BN46: 41.66552113 | BO46: 5549 | BP46: 15.25582163 | BQ46: 357.769168 | BR46: 193.7194127 | BS46: 554.139478 | BT46: 90.64029364 | BU46: 307.8099511 | BV46: 93.49510604 | BW46: 565.7626427 | BX46: 33.54404568 | BY46: 1545.16721 | BZ46: Data not yet available | CA46: 341.1229135 | CB46: Data not yet available | CC46: Data not yet available | CD46: Data not yet available | CE46: Data not yet available | CF46: Data not yet available | CG46: Data not yet available | CH46: Data not yet available | CI46: 3613 | CJ46: 28.21378899 | CK46: 1869.17 | CL46: 190.5760604 | CM46: 48 | CN46: 1 | CO46: 1 | CP46: Data not yet available | CQ46: Data not yet available | CR46: 8589 | CS46: 9138 | CT46: 93.99 | CU46: 34.77 | CV46: 3.68 | CW46: Y | CX46: 40000 | CY46: 127000 | CZ46: 0 | DA46: 18000 | DB46: 1000 | DC46: 235599 | DD46: 0 | DE46: 0 | DF46: 0 | DG46: 9 | DH46: 1089.777778 | DI46: 44 | DJ46: 56 | DK46: 0 | DL46: 22 | DM46: 0 | DN46: 56 | DO46: 44 | DP46: 120 | DQ46: 81.73333333
A47: Georges River | B47: 3 | C47: Metropolitan | E47: 38.3 | F47: 153452 | G47: 8.273711246 | H47: 4004.6 | I47: 75706 | J47: 49.33529703 | K47: 77746 | L47: 50.66470297 | M47: 22.911399 | N47: 57.14229857 | O47: 19.94630243 | P47: 40.06985898 | Q47: 39.98383859 | R47: 19.94630243 | S47: 0.5 | T47: 53.5 | U47: 107 | V47: 3.4 | W47: 57447.94396 | X47: 2.9 | Y47: Health Care & Social Assistance | Z47: 15369 | AA47: Data not yet available | AB47: Data not yet available | AC47: Data not yet available | AD47: Data not yet available | AE47: * | AF47: * | AG47: * | AH47: * | AI47: * | AJ47: * | AK47: * | AL47: * | AM47: * | AN47: * | AO47: * | AP47: * | AQ47: * | AR47: * | AS47: * | AT47: * | AU47: * | AV47: * | AW47: * | AX47: * | AY47: * | AZ47: * | BA47: * | BB47: * | BC47: * | BD47: * | BE47: * | BF47: * | BG47: * | BH47: * | BI47: * | BJ47: * | BK47: * | BL47: * | BM47: * | BN47: * | BO47: * | BP47: * | BQ47: * | BR47: * | BS47: * | BT47: * | BU47: * | BV47: * | BW47: * | BX47: * | BY47: * | BZ47: Data not yet available | CA47: * | CB47: Data not yet available | CC47: Data not yet available | CD47: Data not yet available | CE47: Data not yet available | CF47: Data not yet available | CG47: Data not yet available | CH47: Data not yet available | CI47: 12303 | CJ47: 57.06058914 | CK47: 409.197 | CL47: 2.666612361 | CM47: 427.1 | CN47: 7 | CO47: 16 | CP47: Data not yet available | CQ47: Data not yet available | CR47: * | CS47: * | CT47: * | CU47: * | CV47: * | CW47: Y | CX47: * | CY47: * | CZ47: * | DA47: * | DB47: * | DC47: * | DD47: 0 | DE47: 0 | DF47: 0 | DG47: - | DH47: - | DI47: - | DJ47: - | DK47: - | DL47: - | DM47: - | DN47: - | DO47: - | DP47: 528 | DQ47: 290.6287879
A48: Gilgandra | B48: 9 | C48: Rural | D48: Orana | E48: 4831.5 | F48: 4309 | G48: -4.562569214 | H48: 0.9 | I48: 2124 | J48: 49.29217916 | K48: 2185 | L48: 50.70782084 | M48: 25.11023439 | N48: 45.53260617 | O48: 29.35715943 | P48: 36.18008819 | Q48: 34.46275238 | R48: 29.35715943 | S48: 14 | T48: 2.1 | U48: 14 | V48: 3.5 | W48: 40823.75657 | X48: 2.4 | Y48: Agriculture, Forestry and Fishing | Z48: 597 | AA48: Data not yet available | AB48: Data not yet available | AC48: Data not yet available | AD48: Data not yet available | AE48: 19.35 | AF48: 1.2744 | AG48: 63.5 | AH48: 36.48336992 | AI48: 6.51 | AJ48: 18.3633 | AK48: 1.796286135 | AL48: 9.7576 | AM48: 27926 | AN48: 35989 | AO48: 872 | AP48: 651.2322629 | AQ48: 1339 | AR48: 3471 | AS48: 4269.372694 | AT48: 813 | AU48: 233 | AV48: 1054.298643 | AW48: 221 | AX48: 0 | AY48: 0 | AZ48: 0 | BA48: 108.8206954 | BB48: 28.00597461 | BC48: 8329 | BD48: 29.82525245 | BE48: 2610 | BF48: 9.346129055 | BG48: 700 | BH48: 2.506624651 | BI48: 7507 | BJ48: 26.88175893 | BK48: 904 | BL48: 3.237126692 | BM48: 7125 | BN48: 25.51385805 | BO48: 751 | BP48: 2.689250161 | BQ48: 1932.931074 | BR48: 162.4506846 | BS48: 391.2740775 | BT48: 1742.167556 | BU48: 209.7934556 | BV48: 214.4349037 | BW48: 174.2863773 | BX48: 64.98027385 | BY48: 1653.515897 | BZ48: Data not yet available | CA48: 309.9327857 | CB48: Data not yet available | CC48: Data not yet available | CD48: Data not yet available | CE48: Data not yet available | CF48: Data not yet available | CG48: Data not yet available | CH48: Data not yet available | CI48: 1605 | CJ48: 45.6300813 | CK48: 1361.41 | CL48: 315.9456951 | CM48: 5 | CN48: 1 | CO48: 4 | CP48: Data not yet available | CQ48: Data not yet available | CR48: 4916 | CS48: 4808 | CT48: 102.25 | CU48: 192.9 | CV48: 2.33 | CW48: Y | CX48: 32000 | CY48: 124000 | CZ48: 0 | DA48: 7746 | DB48: 0 | DC48: 225000 | DD48: 0 | DE48: 0 | DF48: 0 | DG48: 9 | DH48: 478.7777778 | DI48: 33 | DJ48: 67 | DK48: 11 | DL48: 0 | DM48: 0 | DN48: 44 | DO48: 56 | DP48: 176 | DQ48: 24.48295455
A49: Glen Innes Severn | B49: 10 | C49: Large Rural | D49: New England | E49: 5480 | F49: 8942 | G49: 0.347884637 | H49: 1.6 | I49: 4449 | J49: 49.75397003 | K49: 4493 | L49: 50.24602997 | M49: 23.05971818 | N49: 44.86692015 | O49: 32.07336166 | P49: 32.38649072 | Q49: 35.54014762 | R49: 32.07336166 | S49: 6 | T49: 2.1 | U49: 18 | V49: 9.9 | W49: 39281.20082 | X49: 2.2 | Y49: Agriculture, Forestry and Fishing | Z49: 1087 | AA49: Data not yet available | AB49: Data not yet available | AC49: Data not yet available | AD49: Data not yet available | AE49: 12.84 | AF49: 5.1965 | AG49: 58.7 | AH49: 41.29729404 | AI49: 4.72 | AJ49: 4.2956 | AK49: 7.56976885 | AL49: 9.9053 | AM49: 26995 | AN49: 31842 | AO49: 2754 | AP49: 734.2042122 | AQ49: 3751 | AR49: 2861 | AS49: 2793.945312 | AT49: 1024 | AU49: 570 | AV49: 1469.072165 | AW49: 388 | AX49: 0 | AY49: 0 | AZ49: 1 | BA49: 124.1116658 | BB49: 31.64489469 | BC49: 4788 | BD49: 17.73661789 | BE49: 3966 | BF49: 14.69160956 | BG49: 1298 | BH49: 4.808297833 | BI49: 4185 | BJ49: 15.5028709 | BK49: 2296 | BL49: 8.505278755 | BM49: 5235 | BN49: 19.39248009 | BO49: 5227 | BP49: 19.36284497 | BQ49: 535.4506822 | BR49: 145.1576828 | BS49: 346.902259 | BT49: 468.0161038 | BU49: 256.7658242 | BV49: 96.62267949 | BW49: 584.5448446 | BX49: 59.83001566 | BY49: 585.439499 | BZ49: Data not yet available | CA49: 309.7840576 | CB49: Data not yet available | CC49: Data not yet available | CD49: Data not yet available | CE49: Data not yet available | CF49: Data not yet available | CG49: Data not yet available | CH49: Data not yet available | CI49: 1267 | CJ49: 81.95413759 | CK49: 1167.39 | CL49: 130.5513308 | CM49: 118 | CN49: 2 | CO49: 5 | CP49: Data not yet available | CQ49: Data not yet available | CR49: 3515 | CS49: 3515 | CT49: 100 | CU49: 73.31 | CV49: 9.74 | CW49: Y | CX49: 20000 | CY49: 102000 | CZ49: 0 | DA49: 5266 | DB49: 4624 | DC49: 215520 | DD49: 0 | DE49: 0 | DF49: 0 | DG49: 7 | DH49: 1277.428571 | DI49: 29 | DJ49: 71 | DK49: 14 | DL49: 0 | DM49: 0 | DN49: 57.14285714 | DO49: 43 | DP49: 133 | DQ49: 67.23308271
A50: Goulburn Mulwaree | B50: 4 | C50: Regional Town/City | D50: Canberra | E50: 3220.1 | F50: 30150 | G50: 6.300461869 | H50: 9.4 | I50: 15338 | J50: 50.87230514 | K50: 14812 | L50: 49.12769486 | M50: 24.35820896 | N50: 50.84577114 | O50: 24.7960199 | P50: 36.83250415 | Q50: 38.37147595 | R50: 24.7960199 | S50: 4 | T50: 4.7 | U50: 52 | V50: 5.7 | W50: 51143.67708 | X50: 2.4 | Y50: Health Care & Social Assistance | Z50: 2264 | AA50: Data not yet available | AB50: Data not yet available | AC50: Data not yet available | AD50: Data not yet available | AE50: 7.86 | AF50: 3.5595 | AG50: 60.96 | AH50: 38.94363614 | AI50: 3.12 | AJ50: 5.7028 | AK50: 6.974668879 | AL50: 24.4674 | AM50: 62866 | AN50: 81790 | AO50: 11517 | AP50: 897.5917699 | AQ50: 12831 | AR50: 2372 | AS50: 1642.65928 | AT50: 1444 | AU50: 4342 | AV50: 5042.973287 | AW50: 861 | AX50: 0 | AY50: 0 | AZ50: 0 | BA50: 143.4539121 | BB50: 17.7149092 | BC50: 10028 | BD50: 15.95138867 | BE50: 16564 | BF50: 26.34810549 | BG50: 6409 | BH50: 10.19469984 | BI50: 2576 | BJ50: 4.097604428 | BK50: 7076 | BL50: 11.2556867 | BM50: 16047 | BN50: 25.52572138 | BO50: 4166 | BP50: 6.626793497 | BQ50: 332.6036484 | BR50: 212.5704809 | BS50: 480.4975124 | BT50: 85.43946932 | BU50: 234.6932007 | BV50: 68.88888889 | BW50: 138.1757877 | BX50: 45.10779436 | BY50: 532.238806 | BZ50: Data not yet available | CA50: 236.9261944 | CB50: Data not yet available | CC50: Data not yet available | CD50: Data not yet available | CE50: Data not yet available | CF50: Data not yet available | CG50: Data not yet available | CH50: Data not yet available | CI50: 10468 | CJ50: 45.26535948 | CK50: 1161.28564 | CL50: 38.51693665 | CM50: 1232 | CN50: 1 | CO50: 5 | CP50: Data not yet available | CQ50: Data not yet available | CR50: 11951 | CS50: 11961 | CT50: 99.92 | CU50: 64.93 | CV50: 2.52 | CW50: Y | CX50: 44000 | CY50: 207000 | CZ50: 0 | DA50: 9000 | DB50: 1000 | DC50: 312968 | DD50: 0 | DE50: 0 | DF50: 0 | DG50: 9 | DH50: 3350 | DI50: 33 | DJ50: 67 | DK50: 11.11111111 | DL50: 0 | DM50: 22.22222222 | DN50: 33.33333333 | DO50: 44 | DP50: 257 | DQ50: 117.3151751
A51: Greater Hume | B51: 11 | C51: Large Rural | D51: Riverina | E51: 5749.5 | F51: 10509 | G51: 4.338760921 | H51: 1.8 | I51: 5296 | J51: 50.39489961 | K51: 5213 | L51: 49.60510039 | M51: 28.92758588 | N51: 45.0851651 | O51: 25.98724902 | P51: 36.92073461 | Q51: 37.09201637 | R51: 25.98724902 | S51: 3.2 | T51: 2 | U51: 79 | V51: 3 | W51: 43722.16603 | X51: 2.5 | Y51: Agriculture, Forestry and Fishing | Z51: 1358 | AA51: Data not yet available | AB51: Data not yet available | AC51: Data not yet available | AD51: Data not yet available | AE51: 12.99 | AF51: 5.4679 | AG51: 48.54 | AH51: 51.45848526 | AI51: 6.65 | AJ51: 13.1534 | AK51: 2.826040161 | AL51: 12.9646 | AM51: 30713 | AN51: 38396 | AO51: 2428 | AP51: 657.8163099 | AQ51: 3691 | AR51: 4692 | AS51: 2014.59854 | AT51: 2329 | AU51: 148 | AV51: 302.6584867 | AW51: 489 | AX51: 0 | AY51: 0 | AZ51: 0 | BA51: 222.3441373 | BB51: 23.78759144 | BC51: 3227 | BD51: 10.50695145 | BE51: 5296 | BF51: 17.24351252 | BG51: 1680 | BH51: 5.469996418 | BI51: 1684 | BJ51: 5.483020219 | BK51: 4541 | BL51: 14.78527008 | BM51: 13186 | BN51: 42.93295998 | BO51: 1099 | BP51: 3.578289324 | BQ51: 307.0701304 | BR51: 159.8629746 | BS51: 364.2592064 | BT51: 160.2436007 | BU51: 432.1058141 | BV51: 139.6897897 | BW51: 104.5770292 | BX51: 54.90531925 | BY51: 1254.734037 | BZ51: Data not yet available | CA51: 179.084259 | CB51: Data not yet available | CC51: Data not yet available | CD51: Data not yet available | CE51: Data not yet available | CF51: Data not yet available | CG51: Data not yet available | CH51: Data not yet available | CI51: 3117 | CJ51: 60.1559504 | CK51: 2075.98 | CL51: 197.5430583 | CM51: 117.5 | CN51: 5 | CO51: 15 | CP51: Data not yet available | CQ51: Data not yet available | CR51: 8598 | CS51: 5930 | CT51: 144.99 | CU51: 121.89 | CV51: 0.07 | CW51: Y | CX51: 33000 | CY51: 105000 | CZ51: 0 | DA51: 5000 | DB51: 0 | DC51: 208000 | DD51: 0 | DE51: 0 | DF51: 0 | DG51: 9 | DH51: 1167.666667 | DI51: 44 | DJ51: 56 | DK51: 0 | DL51: 0 | DM51: 0 | DN51: 22 | DO51: 78 | DP51: 107 | DQ51: 98.21495327
A52: Griffith | B52: 4 | C52: Regional Town/City | D52: Riverina and Murray | E52: 1639.2 | F52: 26422 | G52: 4.04410317 | H52: 16.1 | I52: 13273 | J52: 50.23465294 | K52: 13149 | L52: 49.76534706 | M52: 27.8252971 | N52: 51.34357732 | O52: 20.83112558 | P52: 41.48058436 | Q52: 37.68829006 | R52: 20.83112558 | S52: 4.8 | T52: 20.9 | U52: 48 | V52: 4.4 | W52: 44049.46294 | X52: 2.7 | Y52: Manufacturing | Z52: 3184 | AA52: Data not yet available | AB52: Data not yet available | AC52: Data not yet available | AD52: Data not yet available | AE52: 15.06 | AF52: 2.5266 | AG52: 74.31 | AH52: 25.54914925 | AI52: 6.83 | AJ52: 7.9501 | AK52: 4.564061624 | AL52: 7.0846 | AM52: 50006 | AN52: 63826 | AO52: 7921 | AP52: 939.9549068 | AQ52: 8427 | AR52: 5025 | AS52: 3511.530398 | AT52: 1431 | AU52: 2548 | AV52: 2461.835749 | AW52: 1035 | AX52: 0 | AY52: 0 | AZ52: 0 | BA52: 86.86736027 | BB52: 17.14726474 | BC52: 7648 | BD52: 15.2941647 | BE52: 14307 | BF52: 28.61056673 | BG52: 5326 | BH52: 10.65072191 | BI52: 4231 | BJ52: 8.460984682 | BK52: 8317 | BL52: 16.63200416 | BM52: 8534 | BN52: 17.06595209 | BO52: 1643 | BP52: 3.285605727 | BQ52: 289.4557566 | BR52: 201.5744455 | BS52: 481.1899175 | BT52: 160.1317084 | BU52: 314.7755658 | BV52: 60.29066687 | BW52: 62.18302929 | BX52: 35.65210809 | BY52: 322.9884187 | BZ52: Data not yet available | CA52: 290.494838 | CB52: Data not yet available | CC52: Data not yet available | CD52: Data not yet available | CE52: Data not yet available | CF52: Data not yet available | CG52: Data not yet available | CH52: Data not yet available | CI52: 3559 | CJ52: 63.29035585 | CK52: 1288.29 | CL52: 48.75823178 | CM52: 435.87 | CN52: 1 | CO52: 6 | CP52: Data not yet available | CQ52: Data not yet available | CR52: 7006 | CS52: 7006 | CT52: 100 | CU52: 63.69 | CV52: 1.68 | CW52: Y | CX52: 109000 | CY52: 260000 | CZ52: 0 | DA52: 0 | DB52: 0 | DC52: 278613 | DD52: 5 | DE52: 19225 | DF52: 0 | DG52: 12 | DH52: 2201.833333 | DI52: 33.33333333 | DJ52: 66.66666667 | DK52: 0 | DL52: 25 | DM52: 0 | DN52: 58.33333333 | DO52: 41.66666667 | DP52: 287 | DQ52: 92.06271777
A53: Gunnedah | B53: 11 | C53: Large Rural | D53: Namoi | E53: 4987 | F53: 12551 | G53: 0.2556114706 | H53: 2.5 | I53: 6309 | J53: 50.266911 | K53: 6242 | L53: 49.733089 | M53: 27.06557246 | N53: 49.61357661 | O53: 23.32085093 | P53: 39.7816907 | Q53: 36.89745837 | R53: 23.32085093 | S53: 12.8 | T53: 2.2 | U53: 46 | V53: 6.8 | W53: 53113.61179 | X53: 2.5 | Y53: Agriculture, Forestry and Fishing | Z53: 1548 | AA53: Data not yet available | AB53: Data not yet available | AC53: Data not yet available | AD53: Data not yet available | AE53: 19.94 | AF53: 6.0589 | AG53: 65.11 | AH53: 34.88322627 | AI53: 4.34 | AJ53: 18.6588 | AK53: 2.281419848 | AL53: 28.2224 | AM53: 35796 | AN53: 47014 | AO53: 3880 | AP53: 829.9465241 | AQ53: 4675 | AR53: 4820 | AS53: 4322.869955 | AT53: 1115 | AU53: 2037 | AV53: 4343.283582 | AW53: 469 | AX53: 1177 | AY53: 235400 | AZ53: 5 | BA53: 134.7049144 | BB53: 19.44385027 | BC53: 1984 | BD53: 5.542518717 | BE53: 5169 | BF53: 14.44016091 | BG53: 4080 | BH53: 11.39792156 | BI53: 4321 | BJ53: 12.07118114 | BK53: 4618 | BL53: 12.90088278 | BM53: 12601 | BN53: 35.20225724 | BO53: 3023 | BP53: 8.445077662 | BQ53: 158.0750538 | BR53: 325.0736993 | BS53: 354.9517967 | BT53: 344.2753565 | BU53: 367.9388097 | BV53: 56.88789738 | BW53: 240.8573022 | BX53: 32.26834515 | BY53: 1003.983746 | BZ53: Data not yet available | CA53: 450.0534759 | CB53: Data not yet available | CC53: Data not yet available | CD53: Data not yet available | CE53: Data not yet available | CF53: Data not yet available | CG53: Data not yet available | CH53: Data not yet available | CI53: 5562 | CJ53: 43.83520145 | CK53: 1469.65 | CL53: 117.0942554 | CM53: 517.9429 | CN53: 1 | CO53: 15 | CP53: Data not yet available | CQ53: Data not yet available | CR53: 5050 | CS53: 4200 | CT53: 120.24 | CU53: 91.59 | CV53: 2.44 | CW53: Y | CX53: 63000 | CY53: 121000 | CZ53: 10000 | DA53: 9000 | DB53: 2000 | DC53: 239922 | DD53: 2 | DE53: 4125 | DF53: 1 | DG53: 9 | DH53: 1394.555556 | DI53: 33 | DJ53: 67 | DK53: 0 | DL53: 0 | DM53: 11 | DN53: 22 | DO53: 67 | DP53: 171 | DQ53: 73.39766082
A54: Gwydir | B54: 10 | C54: Large Rural | D54: Namoi | E54: 9259.7 | F54: 5326 | G54: 4.390435123 | H54: 0.6 | I54: 2713 | J54: 50.93879084 | K54: 2613 | L54: 49.06120916 | M54: 22.96282388 | N54: 44.89297784 | O54: 32.14419827 | P54: 31.6184754 | Q54: 36.23732632 | R54: 32.14419827 | S54: 5.8 | T54: 1.1 | U54: 38 | V54: 5.5 | W54: 41675.81848 | X54: 2.3 | Y54: Agriculture, Forestry and Fishing | Z54: 728 | AA54: Data not yet available | AB54: Data not yet available | AC54: Data not yet available | AD54: Data not yet available | AE54: 16.52 | AF54: 2.0166 | AG54: 52 | AH54: 47.9985755 | AI54: 4.42 | AJ54: 6.8119 | AK54: 6.449035913 | AL54: 5.1212 | AM54: 24947 | AN54: 28080 | AO54: 1147 | AP54: 663.7731481 | AQ54: 1728 | AR54: 5984 | AS54: 5262.972735 | AT54: 1137 | AU54: 188 | AV54: 866.359447 | AW54: 217 | AX54: 0 | AY54: 0 | AZ54: 0 | BA54: 175.1050663 | BB54: 36.28472222 | BC54: 4717 | BD54: 18.90808514 | BE54: 3277 | BF54: 13.135848 | BG54: -950 | BH54: -3.808073115 | BI54: 4852 | BJ54: 19.44923237 | BK54: 2165 | BL54: 8.678398204 | BM54: 9359 | BN54: 37.51553293 | BO54: 1527 | BP54: 6.12097647 | BQ54: 885.655276 | BR54: -178.3702591 | BS54: 390.5369884 | BT54: 911.0026286 | BU54: 406.4964326 | BV54: 224.7465265 | BW54: 286.7067217 | BX54: 45.24971836 | BY54: 1757.228689 | BZ54: Data not yet available | CA54: 314.2361111 | CB54: Data not yet available | CC54: Data not yet available | CD54: Data not yet available | CE54: Data not yet available | CF54: Data not yet available | CG54: Data not yet available | CH54: Data not yet available | CI54: 2481 | CJ54: 36.95044473 | CK54: 2018.66 | CL54: 379.0199024 | CM54: 131 | CN54: 2 | CO54: 13 | CP54: Data not yet available | CQ54: Data not yet available | CR54: 3586 | CS54: 3586 | CT54: 100 | CU54: 113.48 | CV54: 3.11 | CW54: Y | CX54: 3000 | CY54: 133000 | CZ54: 0 | DA54: 18000 | DB54: 0 | DC54: 311601 | DD54: 0 | DE54: 0 | DF54: 0 | DG54: 9 | DH54: 591.7777778 | DI54: 44.44444444 | DJ54: 55.55555556 | DK54: 0 | DL54: 0 | DM54: 0 | DN54: 22.22222222 | DO54: 77.77777778 | DP54: 155 | DQ54: 34.36129032
A55: Hawkesbury | B55: 6 | C55: Metropolitan Fringe | E55: 2775.1 | F55: 66136 | G55: 2.770655603 | H55: 23.8 | I55: 32952 | J55: 49.82460385 | K55: 33184 | L55: 50.17539615 | M55: 27.41623322 | N55: 53.5094351 | O55: 19.07433168 | P55: 41.38744405 | Q55: 39.53822427 | R55: 19.07433168 | S55: 3.7 | T55: 6 | U55: 99 | V55: 6.1 | W55: 55651.85352 | X55: 2.8 | Y55: Construction | Z55: 6763 | AA55: Data not yet available | AB55: Data not yet available | AC55: Data not yet available | AD55: Data not yet available | AE55: -6.61 | AF55: 3.3001 | AG55: 68.44 | AH55: 30.1967248 | AI55: 5.46 | AJ55: 11.5368 | AK55: 1.73596469 | AL55: 8.9063 | AM55: 76266 | AN55: 94040 | AO55: 25454 | AP55: 1079.611486 | AQ55: 23577 | AR55: 1491 | AS55: 2593.043478 | AT55: 575 | AU55: 3000 | AV55: 1980.19802 | AW55: 1515 | AX55: 0 | AY55: 0 | AZ55: 0 | BA55: 288.4722582 | BB55: 13.26716715 | BC55: 9842 | BD55: 12.90483308 | BE55: 14355 | BF55: 18.82227992 | BG55: 17481 | BH55: 22.92109197 | BI55: 3518 | BJ55: 4.612802559 | BK55: 12237 | BL55: 16.04515774 | BM55: 16400 | BN55: 21.50368447 | BO55: 2433 | BP55: 3.190150264 | BQ55: 148.8145639 | BR55: 264.3189791 | BS55: 143.4317165 | BT55: 53.19341962 | BU55: 185.0278215 | BV55: 73.62102335 | BW55: 36.78783114 | BX55: 33.91496311 | BY55: 247.973872 | BZ55: Data not yet available | CA55: 486.4910718 | CB55: Data not yet available | CC55: Data not yet available | CD55: Data not yet available | CE55: Data not yet available | CF55: Data not yet available | CG55: Data not yet available | CH55: Data not yet available | CI55: 16722 | CJ55: 65.20164815 | CK55: 1042.17 | CL55: 15.75798355 | CM55: 289.45 | CN55: 2 | CO55: 25 | CP55: Data not yet available | CQ55: Data not yet available | CR55: 12749 | CS55: 13390 | CT55: 95.21 | CU55: 101.01 | CV55: 2.81 | CW55: Y | CX55: 57000 | CY55: 266000 | CZ55: 0 | DA55: 40122 | DB55: 18500 | DC55: 280000 | DD55: 6 | DE55: 13051 | DF55: 0 | DG55: 12 | DH55: 5511.333333 | DI55: 50 | DJ55: 50 | DK55: 0 | DL55: 0 | DM55: 8 | DN55: 67 | DO55: 25 | DP55: 293 | DQ55: 225.7201365
A56: Hay | B56: 9 | C56: Rural | D56: Riverina and Murray | E56: 11325.9 | F56: 2975 | G56: -3.565640194 | H56: 0.3 | I56: 1501 | J56: 50.45378151 | K56: 1474 | L56: 49.54621849 | M56: 24.13445378 | N56: 49.17647059 | O56: 26.68907563 | P56: 34.99159664 | Q56: 38.31932773 | R56: 26.68907563 | S56: 6 | T56: 3.8 | U56: 26 | V56: 4.7 | W56: 41448.41809 | X56: 2.3 | Y56: Agriculture, Forestry and Fishing | Z56: 374 | AA56: Data not yet available | AB56: Data not yet available | AC56: Data not yet available | AD56: Data not yet available | AE56: 11.3 | AF56: 4.9725 | AG56: 39.13 | AH56: 60.59889094 | AI56: 13.33 | AJ56: 15.8105 | AK56: 2.191464821 | AL56: 12.1885 | AM56: 11536 | AN56: 13525 | AO56: 752 | AP56: 571.8631179 | AQ56: 1315 | AR56: 1114 | AS56: 3052.054795 | AT56: 365 | AU56: 309 | AV56: 1485.576923 | AW56: 208 | AX56: 0 | AY56: 0 | AZ56: 0 | BA56: 78.02368966 | BB56: 18.93536122 | BC56: 1610 | BD56: 13.95631068 | BE56: 2828 | BF56: 24.51456311 | BG56: 797 | BH56: 6.908807212 | BI56: 1504 | BJ56: 13.03744799 | BK56: 1247 | BL56: 10.80963939 | BM56: 2987 | BN56: 25.89285714 | BO56: 563 | BP56: 4.88037448 | BQ56: 541.1764706 | BR56: 267.8991597 | BS56: 769.7478992 | BT56: 505.5462185 | BU56: 419.1596639 | BV56: 180.8403361 | BW56: 189.2436975 | BX56: 86.72268908 | BY56: 1004.033613 | BZ56: Data not yet available | CA56: 218.2509506 | CB56: Data not yet available | CC56: Data not yet available | CD56: Data not yet available | CE56: Data not yet available | CF56: Data not yet available | CG56: Data not yet available | CH56: Data not yet available | CI56: 1466 | CJ56: 36.12200436 | CK56: 941.36 | CL56: 316.4235294 | CM56: 128.78 | CN56: 1 | CO56: 6 | CP56: Data not yet available | CQ56: Data not yet available | CR56: 1632 | CS56: 2255 | CT56: 72.37 | CU56: 76 | CV56: 3.07 | CW56: Y | CX56: 47000 | CY56: 92000 | CZ56: 0 | DA56: 39470 | DB56: 2720 | DC56: 189842 | DD56: 1 | DE56: 0 | DF56: 0 | DG56: 8 | DH56: 371.875 | DI56: 12.5 | DJ56: 87.5 | DK56: 0 | DL56: 0 | DM56: 0 | DN56: 50 | DO56: 50 | DP56: 51 | DQ56: 58.33333333
A57: Hills | B57: 7 | C57: Metropolitan Fringe | E57: 386.2 | F57: 162539 | G57: 9.987887318 | H57: 420.9 | I57: 80553 | J57: 49.55918272 | K57: 81986 | L57: 50.44081728 | M57: 28.75925163 | N57: 52.72088545 | O57: 18.51986293 | P57: 40.4149158 | Q57: 41.06522127 | R57: 18.51986293 | S57: 0.5 | T57: 31.9 | U57: 122 | V57: 3.9 | W57: 70555.15243 | X57: 3.2 | Y57: Retail Trade | Z57: 20260 | AA57: Data not yet available | AB57: Data not yet available | AC57: Data not yet available | AD57: Data not yet available | AE57: 16.19 | AF57: 8.4548 | AG57: 50.47 | AH57: 49.22544457 | AI57: 4.23 | AJ57: 0 | AK57: 0 | AL57: 42.5451 | AM57: 130154 | AN57: 257438 | AO57: 56705 | AP57: 1047.319136 | AQ57: 54143 | AR57: 517 | AS57: 1529.585799 | AT57: 338 | AU57: 6908 | AV57: 1937.72791 | AW57: 3565 | AX57: 0 | AY57: 0 | AZ57: 0 | BA57: 469.9598059 | BB57: 12.12345086 | BC57: 6866 | BD57: 5.275293326 | BE57: 5093 | BF57: 3.913059847 | BG57: 32815 | BH57: 25.21246002 | BI57: 32983 | BJ57: 25.34153798 | BK57: 24005 | BL57: 18.44389603 | BM57: 25255 | BN57: 19.40429753 | BO57: 3136 | BP57: 2.409455268 | BQ57: 42.24216957 | BR57: 201.8900079 | BS57: 0 | BT57: 202.923606 | BU57: 147.6876319 | BV57: 31.3340183 | BW57: 19.29383102 | BX57: 41.50388522 | BY57: 155.3780939 | BZ57: Data not yet available | CA57: 403.0807307 | CB57: Data not yet available | CC57: Data not yet available | CD57: Data not yet available | CE57: Data not yet available | CF57: Data not yet available | CG57: Data not yet available | CH57: Data not yet available | CI57: 22748 | CJ57: 57.73554057 | CK57: 938.19 | CL57: 5.772091621 | CM57: 1165.54 | CN57: 1 | CO57: 64 | CP57: Data not yet available | CQ57: Data not yet available | CR57: 16315 | CS57: 10591 | CT57: 154.05 | CU57: 201.37 | CV57: 0 | CW57: Y | CX57: 109000 | CY57: 323000 | CZ57: 0 | DA57: 68000 | DB57: 32000 | DC57: 402807 | DD57: 3 | DE57: 1512 | DF57: 0 | DG57: 13 | DH57: 12503 | DI57: 25 | DJ57: 75 | DK57: 0 | DL57: 0 | DM57: 0 | DN57: 78 | DO57: 22 | DP57: 512 | DQ57: 317.4589844
A58: Hilltops | B58: 11 | C58: Large Rural | D58: Canberra | E58: 7140.9 | F58: 18841 | G58: 0.25541425 | H58: 2.6 | I58: 9271 | J58: 49.2065177 | K58: 9570 | L58: 50.7934823 | M58: 26.08672576 | N58: 45.49121597 | O58: 28.42205828 | P58: 35.8208163 | Q58: 35.75712542 | R58: 28.42205828 | S58: 4.4 | T58: 3.4 | U58: 32 | V58: 5.9 | W58: 41784.04328 | X58: 2.4 | Y58: Agriculture, Forestry and Fishing | Z58: 2202 | AA58: Data not yet available | AB58: Data not yet available | AC58: Data not yet available | AD58: Data not yet available | AE58: * | AF58: * | AG58: * | AH58: * | AI58: * | AJ58: * | AK58: * | AL58: * | AM58: * | AN58: * | AO58: * | AP58: * | AQ58: * | AR58: * | AS58: * | AT58: * | AU58: * | AV58: * | AW58: * | AX58: * | AY58: * | AZ58: * | BA58: * | BB58: * | BC58: * | BD58: * | BE58: * | BF58: * | BG58: * | BH58: * | BI58: * | BJ58: * | BK58: * | BL58: * | BM58: * | BN58: * | BO58: * | BP58: * | BQ58: * | BR58: * | BS58: * | BT58: * | BU58: * | BV58: * | BW58: * | BX58: * | BY58: * | BZ58: Data not yet available | CA58: * | CB58: Data not yet available | CC58: Data not yet available | CD58: Data not yet available | CE58: Data not yet available | CF58: Data not yet available | CG58: Data not yet available | CH58: Data not yet available | CI58: 6706 | CJ58: 37.83257625 | CK58: 2769.75 | CL58: 147.0065283 | CM58: 233 | CN58: 4 | CO58: 15 | CP58: Data not yet available | CQ58: Data not yet available | CR58: * | CS58: * | CT58: * | CU58: * | CV58: * | CW58: Y | CX58: * | CY58: * | CZ58: * | DA58: * | DB58: * | DC58: * | DD58: 0 | DE58: 0 | DF58: 0 | DG58: - | DH58: - | DI58: - | DJ58: - | DK58: - | DL58: - | DM58: - | DN58: - | DO58: - | DP58: 221 | DQ58: 85.25339367
A59: Hornsby | B59: 7 | C59: Metropolitan Fringe | E59: 455 | F59: 147661 | G59: 3.062684525 | H59: 324.5 | I59: 72587 | J59: 49.15786836 | K59: 75074 | L59: 50.84213164 | M59: 26.45112792 | N59: 52.48034349 | O59: 21.06852859 | P59: 37.64027062 | Q59: 41.29120079 | R59: 21.06852859 | S59: 0.5 | T59: 31.1 | U59: 120 | V59: 5.5 | W59: 69998.23558 | X59: 2.9 | Y59: Health Care & Social Assistance | Z59: 13536 | AA59: Data not yet available | AB59: Data not yet available | AC59: Data not yet available | AD59: Data not yet available | AE59: 6.86 | AF59: 3.9435 | AG59: 79.32 | AH59: 18.52561772 | AI59: 1.91 | AJ59: 10.7426 | AK59: 1.893897703 | AL59: 20.7009 | AM59: 118478 | AN59: 162251 | AO59: 55111 | AP59: 1119.93741 | AQ59: 49209 | AR59: 561 | AS59: 1809.677419 | AT59: 310 | AU59: 7487 | AV59: 3033.63047 | AW59: 2468 | AX59: 0 | AY59: 0 | AZ59: 0 | BA59: 391.4008892 | BB59: 13.03013676 | BC59: 18175 | BD59: 15.34040075 | BE59: 3734 | BF59: 3.151639967 | BG59: 36543 | BH59: 30.84370094 | BI59: 16186 | BJ59: 13.66160806 | BK59: 27393 | BL59: 23.12074816 | BM59: 14357 | BN59: 12.11786154 | BO59: 2090 | BP59: 1.764040581 | BQ59: 123.0859875 | BR59: 247.4790229 | BS59: 0 | BT59: 109.6159446 | BU59: 185.5127623 | BV59: 25.28765212 | BW59: 14.15404203 | BX59: 45.65186474 | BY59: 97.22946479 | BZ59: Data not yet available | CA59: 499.685017 | CB59: Data not yet available | CC59: Data not yet available | CD59: Data not yet available | CE59: Data not yet available | CF59: Data not yet available | CG59: Data not yet available | CH59: Data not yet available | CI59: 14673 | CJ59: 69.02666076 | CK59: 600.77 | CL59: 4.068575995 | CM59: 1181.51 | CN59: 3 | CO59: 25 | CP59: Data not yet available | CQ59: Data not yet available | CR59: 8216 | CS59: 8736 | CT59: 94.05 | CU59: 90.67 | CV59: 0.87 | CW59: Y | CX59: 0 | CY59: 303000 | CZ59: 0 | DA59: 0 | DB59: 0 | DC59: 352278 | DD59: 0 | DE59: 500 | DF59: 0 | DG59: 10 | DH59: 14766.1 | DI59: 27 | DJ59: 73 | DK59: 0 | DL59: 0 | DM59: 9 | DN59: 55 | DO59: 36 | DP59: 485 | DQ59: 304.4556701
A60: Hunters Hill | B60: 2 | C60: Metropolitan | E60: 5.7 | F60: 14638 | G60: 5.332086062 | H60: 2560.5 | I60: 7410 | J60: 50.62166963 | K60: 7228 | L60: 49.37833037 | M60: 27.00505534 | N60: 46.32463451 | O60: 26.67031015 | P60: 36.26861593 | Q60: 37.06107392 | R60: 26.67031015 | S60: 0.6 | T60: 19.5 | U60: 125 | V60: 3.8 | W60: 103178.5571 | X60: 2.7 | Y60: Professional Scientific & Technical Services | Z60: 1982 | AA60: Data not yet available | AB60: Data not yet available | AC60: Data not yet available | AD60: Data not yet available | AE60: -4.24 | AF60: 7.3458 | AG60: 90.68 | AH60: 9.285164271 | AI60: 2.95 | AJ60: 23.0286 | AK60: 0.4625652547 | AL60: 16.5045 | AM60: 16070 | AN60: 15584 | AO60: 8322 | AP60: 1743.192292 | AQ60: 4774 | AR60: 0 | AS60: 0 | AT60: 0 | AU60: 257 | AV60: 1117.391304 | AW60: 230 | AX60: 0 | AY60: 0 | AZ60: 0 | BA60: 641.5993962 | BB60: 7.017176372 | BC60: 4953 | BD60: 30.82140635 | BE60: 838 | BF60: 5.21468575 | BG60: 2927 | BH60: 18.21406347 | BI60: 2224 | BJ60: 13.8394524 | BK60: 2479 | BL60: 15.42626011 | BM60: 2459 | BN60: 15.3018046 | BO60: 190 | BP60: 1.182327318 | BQ60: 338.365897 | BR60: 199.9590108 | BS60: 0 | BT60: 151.9333242 | BU60: 169.3537368 | BV60: 57.24825796 | BW60: 12.97991529 | BX60: 48.70884001 | BY60: 167.98743 | BZ60: Data not yet available | CA60: 515.7100964 | CB60: Data not yet available | CC60: Data not yet available | CD60: Data not yet available | CE60: Data not yet available | CF60: Data not yet available | CG60: Data not yet available | CH60: Data not yet available | CI60: 2169 | CJ60: 50.68212824 | CK60: 65 | CL60: 4.440497336 | CM60: 102.6 | CN60: 1 | CO60: 6 | CP60: Data not yet available | CQ60: Data not yet available | CR60: 1267 | CS60: 1198 | CT60: 105.76 | CU60: 68.07 | CV60: 1.65 | CW60: Y | CX60: 27000 | CY60: 173000 | CZ60: 0 | DA60: 6595 | DB60: 1539 | DC60: 231810 | DD60: 0 | DE60: 0 | DF60: 0 | DG60: 7 | DH60: 2091.142857 | DI60: 28.57142857 | DJ60: 71.42857143 | DK60: 0 | DL60: 0 | DM60: 14.28571429 | DN60: 43 | DO60: 43 | DP60: 57 | DQ60: 256.8070175
A61: Inner West | B61: 3 | C61: Metropolitan | E61: 35.4 | F61: 192030 | G61: 6.505232916 | H61: 5429 | I61: 94408 | J61: 49.16315159 | K61: 97622 | L61: 50.83684841 | M61: 19.16679685 | N61: 64.18424205 | O61: 16.6489611 | P61: 36.96089153 | Q61: 46.39014737 | R61: 16.6489611 | S61: 1.1 | T61: 28.4 | U61: 118 | V61: 5.5 | W61: 73331.61756 | X61: 2.4 | Y61: Professional Scientific & Technical Services | Z61: 19543 | AA61: Data not yet available | AB61: Data not yet available | AC61: Data not yet available | AD61: Data not yet available | AE61: * | AF61: * | AG61: * | AH61: * | AI61: * | AJ61: * | AK61: * | AL61: * | AM61: * | AN61: * | AO61: * | AP61: * | AQ61: * | AR61: * | AS61: * | AT61: * | AU61: * | AV61: * | AW61: * | AX61: * | AY61: * | AZ61: * | BA61: * | BB61: * | BC61: * | BD61: * | BE61: * | BF61: * | BG61: * | BH61: * | BI61: * | BJ61: * | BK61: * | BL61: * | BM61: * | BN61: * | BO61: * | BP61: * | BQ61: * | BR61: * | BS61: * | BT61: * | BU61: * | BV61: * | BW61: * | BX61: * | BY61: * | BZ61: Data not yet available | CA61: * | CB61: Data not yet available | CC61: Data not yet available | CD61: Data not yet available | CE61: Data not yet available | CF61: Data not yet available | CG61: Data not yet available | CH61: Data not yet available | CI61: 26841 | CJ61: 53.07107265 | CK61: 465 | CL61: 2.421496641 | CM61: 251.14 | CN61: 5 | CO61: 21 | CP61: Data not yet available | CQ61: Data not yet available | CR61: * | CS61: * | CT61: * | CU61: * | CV61: * | CW61: Y | CX61: * | CY61: * | CZ61: * | DA61: * | DB61: * | DC61: * | DD61: 0 | DE61: 0 | DF61: 0 | DG61: - | DH61: - | DI61: - | DJ61: - | DK61: - | DL61: - | DM61: - | DN61: - | DO61: - | DP61: 1091 | DQ61: 176.0128323
A62: Inverell | B62: 11 | C62: Large Rural | D62: New England | E62: 8597.2 | F62: 16778 | G62: 1.169802219 | H62: 2 | I62: 8194 | J62: 48.83776374 | K62: 8584 | L62: 51.16223626 | M62: 27.51817857 | N62: 46.07819764 | O62: 26.40362379 | P62: 38.70544761 | Q62: 34.8909286 | R62: 26.40362379 | S62: 8.5 | T62: 3.1 | U62: 11 | V62: 9.2 | W62: 42066.90732 | X62: 2.4 | Y62: Retail Trade | Z62: 1705 | AA62: Data not yet available | AB62: Data not yet available | AC62: Data not yet available | AD62: Data not yet available | AE62: 20.36 | AF62: 11.9924 | AG62: 61.28 | AH62: 38.68906825 | AI62: 5.84 | AJ62: 19.2867 | AK62: 2.108900577 | AL62: 25.1379 | AM62: 32703 | AN62: 41009 | AO62: 4811 | AP62: 798.2412477 | AQ62: 6027 | AR62: 3470 | AS62: 2576.095026 | AT62: 1347 | AU62: 1889 | AV62: 3385.304659 | AW62: 558 | AX62: 0 | AY62: 0 | AZ62: 0 | BA62: 130.2579225 | BB62: 26.18218019 | BC62: 2504 | BD62: 7.656789897 | BE62: 8900 | BF62: 27.21462863 | BG62: 4859 | BH62: 14.8579641 | BI62: 1419 | BJ62: 4.339051463 | BK62: 2952 | BL62: 9.026694799 | BM62: 10646 | BN62: 32.55358836 | BO62: 1423 | BP62: 4.351282757 | BQ62: 149.2430564 | BR62: 289.6054357 | BS62: 478.4837287 | BT62: 84.57503874 | BU62: 175.9446895 | BV62: 51.97282155 | BW62: 84.81344618 | BX62: 58.11181309 | BY62: 634.5213971 | BZ62: Data not yet available | CA62: 330.8445329 | CB62: Data not yet available | CC62: Data not yet available | CD62: Data not yet available | CE62: Data not yet available | CF62: Data not yet available | CG62: Data not yet available | CH62: Data not yet available | CI62: 5783 | CJ62: 49.18724189 | CK62: 2139.62 | CL62: 127.5253308 | CM62: 260.3 | CN62: 2 | CO62: 15 | CP62: Data not yet available | CQ62: Data not yet available | CR62: 9359 | CS62: 8816 | CT62: 106.16 | CU62: 91.73 | CV62: 0.9 | CW62: Y | CX62: 43000 | CY62: 130000 | CZ62: 0 | DA62: 12000 | DB62: 0 | DC62: 294494 | DD62: 0 | DE62: 0 | DF62: 0 | DG62: 9 | DH62: 1864.222222 | DI62: 33 | DJ62: 67 | DK62: 0 | DL62: 0 | DM62: 0 | DN62: 33.33333333 | DO62: 66.66666667 | DP62: 192 | DQ62: 87.38541667
A63: Junee | B63: 10 | C63: Large Rural | D63: Riverina | E63: 2030 | F63: 6462 | G63: 5.381604697 | H63: 3.2 | I63: 3694 | J63: 57.16496441 | K63: 2768 | L63: 42.83503559 | M63: 23.30547818 | N63: 55.26152894 | O63: 21.43299288 | P63: 37.32590529 | Q63: 41.24110183 | R63: 21.43299288 | S63: 7.8 | T63: 3.1 | U63: 29 | V63: 4.7 | W63: 47564.84915 | X63: 2.5 | Y63: Agriculture, Forestry and Fishing | Z63: 479 | AA63: Data not yet available | AB63: Data not yet available | AC63: Data not yet available | AD63: Data not yet available | AE63: 9.93 | AF63: 1.0289 | AG63: 53.82 | AH63: 45.0560472 | AI63: 8.75 | AJ63: 4.1723 | AK63: 6.310065756 | AL63: 3.0186 | AM63: 14246 | AN63: 16950 | AO63: 1756 | AP63: 847.4903475 | AQ63: 2072 | AR63: 1679 | AS63: 2451.094891 | AT63: 685 | AU63: 302 | AV63: 1548.717949 | AW63: 195 | AX63: 0 | AY63: 0 | AZ63: 0 | BA63: 150.0348675 | BB63: 22.87644788 | BC63: 2032 | BD63: 14.26365296 | BE63: 1071 | BF63: 7.517899761 | BG63: 1049 | BH63: 7.363470448 | BI63: 2078 | BJ63: 14.58655061 | BK63: 2538 | BL63: 17.81552717 | BM63: 5212 | BN63: 36.58570827 | BO63: 266 | BP63: 1.86719079 | BQ63: 314.4537295 | BR63: 162.3336428 | BS63: 103.992572 | BT63: 321.5722686 | BU63: 392.7576602 | BV63: 61.7455896 | BW63: 41.1637264 | BX63: 51.84153513 | BY63: 806.5614361 | BZ63: Data not yet available | CA63: 270.7528958 | CB63: Data not yet available | CC63: Data not yet available | CD63: Data not yet available | CE63: Data not yet available | CF63: Data not yet available | CG63: Data not yet available | CH63: Data not yet available | CI63: 1896 | CJ63: 44.56140351 | CK63: 880.270246 | CL63: 136.2225698 | CM63: 16.37 | CN63: 1 | CO63: 2 | CP63: Data not yet available | CQ63: Data not yet available | CR63: 1017 | CS63: 1253 | CT63: 81.18 | CU63: 158.48 | CV63: 3.22 | CW63: Y | CX63: 21000 | CY63: 95000 | CZ63: 0 | DA63: 2000 | DB63: 0 | DC63: 193935 | DD63: 1 | DE63: 0 | DF63: 0 | DG63: 9 | DH63: 718 | DI63: 22 | DJ63: 78 | DK63: 0 | DL63: 0 | DM63: 0 | DN63: 78 | DO63: 22 | DP63: 59 | DQ63: 109.5254237
A64: Kempsey | B64: 4 | C64: Regional Town/City | D64: Mid North Coast | E64: 3375.7 | F64: 29454 | G64: 1.119198023 | H64: 8.7 | I64: 14807 | J64: 50.27160997 | K64: 14647 | L64: 49.72839003 | M64: 23.5859306 | N64: 45.40979154 | O64: 31.00427786 | P64: 33.50648469 | Q64: 35.48923746 | R64: 31.00427786 | S64: 11.6 | T64: 2.3 | U64: 4 | V64: 6.3 | W64: 41549.09266 | X64: 2.4 | Y64: Health Care & Social Assistance | Z64: 2174 | AA64: Data not yet available | AB64: Data not yet available | AC64: Data not yet available | AD64: Data not yet available | AE64: 1.93 | AF64: 2.6496 | AG64: 72.59 | AH64: 27.4103292 | AI64: 6.66 | AJ64: 3.8148 | AK64: 10.59407948 | AL64: 9.2752 | AM64: 72884 | AN64: 73268 | AO64: 13039 | AP64: 1048.909983 | AQ64: 12431 | AR64: 2828 | AS64: 1957.093426 | AT64: 1445 | AU64: 1845 | AV64: 2283.415842 | AW64: 808 | AX64: 0 | AY64: 0 | AZ64: 0 | BA64: 122.552346 | BB64: 31.71104497 | BC64: 9630 | BD64: 13.21277647 | BE64: 27571 | BF64: 37.82860436 | BG64: 10833 | BH64: 14.86334449 | BI64: 2446 | BJ64: 3.356017782 | BK64: 4583 | BL64: 6.2880742 | BM64: 15125 | BN64: 20.75215411 | BO64: 2696 | BP64: 3.699028593 | BQ64: 326.9504991 | BR64: 367.793848 | BS64: 900.1154342 | BT64: 83.04474774 | BU64: 155.5985605 | BV64: 35.95436953 | BW64: 91.53255924 | BX64: 30.45426767 | BY64: 513.5125959 | BZ64: Data not yet available | CA64: 352.5862762 | CB64: Data not yet available | CC64: Data not yet available | CD64: Data not yet available | CE64: Data not yet available | CF64: Data not yet available | CG64: Data not yet available | CH64: Data not yet available | CI64: 8509 | CJ64: 49.76384461 | CK64: 1188.71 | CL64: 40.35818565 | CM64: 592.72 | CN64: 4 | CO64: 15 | CP64: Data not yet available | CQ64: Data not yet available | CR64: 16378 | CS64: 15262 | CT64: 107.31 | CU64: 38.87 | CV64: 8 | CW64: Y | CX64: 52000 | CY64: 213000 | CZ64: 4000 | DA64: 6000 | DB64: 0 | DC64: 290725 | DD64: 0 | DE64: 0 | DF64: 0 | DG64: 9 | DH64: 3272.666667 | DI64: 33 | DJ64: 67 | DK64: 0 | DL64: 0 | DM64: 11 | DN64: 67 | DO64: 22 | DP64: 272 | DQ64: 108.2867647
A65: Kiama | B65: 4 | C65: Regional Town/City | D65: Illawarra Shoalhaven | E65: 257.7 | F65: 22044 | G65: 5.950206671 | H65: 85.6 | I65: 10840 | J65: 49.17437852 | K65: 11204 | L65: 50.82562148 | M65: 23.06296498 | N65: 46.14861187 | O65: 30.78842315 | P65: 32.65287607 | Q65: 36.55870078 | R65: 30.78842315 | S65: 1.8 | T65: 4.3 | U65: 108 | V65: 2.7 | W65: 58100.50241 | X65: 2.5 | Y65: Education & Training | Z65: 1873 | AA65: Data not yet available | AB65: Data not yet available | AC65: Data not yet available | AD65: Data not yet available | AE65: 4.43 | AF65: 3.8621 | AG65: 60.43 | AH65: 38.62858843 | AI65: 1.47 | AJ65: 8.6802 | AK65: 1.920748785 | AL65: 10.7106 | AM65: 53221 | AN65: 73953 | AO65: 12962 | AP65: 1349.224524 | AQ65: 9607 | AR65: 565 | AS65: 2404.255319 | AT65: 235 | AU65: 1141 | AV65: 1337.631887 | AW65: 853 | AX65: 0 | AY65: 0 | AZ65: 0 | BA65: 311.724305 | BB65: 17.28947642 | BC65: 14484 | BD65: 27.21482122 | BE65: 1846 | BF65: 3.468555645 | BG65: 5804 | BH65: 10.90546965 | BI65: 12597 | BJ65: 23.66922831 | BK65: 5579 | BL65: 10.4827042 | BM65: 3989 | BN65: 7.495161684 | BO65: 8922 | BP65: 16.7640593 | BQ65: 657.0495373 | BR65: 263.2915986 | BS65: 0 | BT65: 571.4480131 | BU65: 253.0847396 | BV65: 83.74160769 | BW65: 404.7359826 | BX65: 49.99092724 | BY65: 180.9562693 | BZ65: Data not yet available | CA65: 513.4797543 | CB65: Data not yet available | CC65: Data not yet available | CD65: Data not yet available | CE65: Data not yet available | CF65: Data not yet available | CG65: Data not yet available | CH65: Data not yet available | CI65: 1511 | CJ65: 82.5418833 | CK65: 275.572 | CL65: 12.500998 | CM65: 342.55 | CN65: 6 | CO65: 20 | CP65: Data not yet available | CQ65: Data not yet available | CR65: 4144 | CS65: 4323 | CT65: 95.86 | CU65: 199.22 | CV65: 0.23 | CW65: Y | CX65: 59000 | CY65: 123000 | CZ65: 1993 | DA65: 34072 | DB65: 8210 | DC65: 282004 | DD65: 3 | DE65: 5478 | DF65: 0 | DG65: 9 | DH65: 2449.333333 | DI65: 11.11111111 | DJ65: 88.88888889 | DK65: 0 | DL65: 0 | DM65: 0 | DN65: 33 | DO65: 67 | DP65: 263 | DQ65: 83.81749049
A66: Ku-ring-gai | B66: 3 | C66: Metropolitan | E66: 85.4 | F66: 123143 | G66: 7.450874315 | H66: 1441.8 | I66: 59536 | J66: 48.34704368 | K66: 63607 | L66: 51.65295632 | M66: 28.06980502 | N66: 49.20701948 | O66: 22.7231755 | P66: 38.13127827 | Q66: 39.14554623 | R66: 22.7231755 | S66: 0.2 | T66: 27.7 | U66: 130 | V66: 3 | W66: 95663.15234 | X66: 2.9 | Y66: Professional Scientific & Technical Services | Z66: 14397 | AA66: Data not yet available | AB66: Data not yet available | AC66: Data not yet available | AD66: Data not yet available | AE66: 8.97 | AF66: 3.2101 | AG66: 82.42 | AH66: 16.46034465 | AI66: 3.27 | AJ66: 13.4575 | AK66: 1.864143184 | AL66: 13.8909 | AM66: 117672 | AN66: 150811 | AO66: 55530 | AP66: 1325.834754 | AQ66: 41883 | AR66: 0 | AS66: 0 | AT66: 0 | AU66: 4123 | AV66: 4030.30303 | AW66: 1023 | AX66: 0 | AY66: 0 | AZ66: 0 | BA66: 465.4227896 | BB66: 6.833321395 | BC66: 28241 | BD66: 23.99976205 | BE66: 4961 | BF66: 4.215956217 | BG66: 25254 | BH66: 21.46135019 | BI66: 11341 | BJ66: 9.637806785 | BK66: 26513 | BL66: 22.53127337 | BM66: 14997 | BN66: 12.74474811 | BO66: 6365 | BP66: 5.40910327 | BQ66: 229.3350008 | BR66: 205.0786484 | BS66: 0 | BT66: 92.09618086 | BU66: 215.3025345 | BV66: 40.28649619 | BW66: 51.68787507 | BX66: 34.65889251 | BY66: 121.7852415 | BZ66: Data not yet available | CA66: 469.5938686 | CB66: Data not yet available | CC66: Data not yet available | CD66: Data not yet available | CE66: Data not yet available | CF66: Data not yet available | CG66: Data not yet available | CH66: Data not yet available | CI66: 4710 | CJ66: 86.39593322 | CK66: 477.7 | CL66: 3.879229838 | CM66: 1461.17 | CN66: 1 | CO66: 24 | CP66: Data not yet available | CQ66: Data not yet available | CR66: 10572 | CS66: 10200 | CT66: 103.65 | CU66: 75.85 | CV66: 4.52 | CW66: Y | CX66: 37000 | CY66: 229000 | CZ66: 0 | DA66: 15210 | DB66: 0 | DC66: 335078 | DD66: 4 | DE66: 4877 | DF66: 0 | DG66: 10 | DH66: 12314.3 | DI66: 30 | DJ66: 70 | DK66: 0 | DL66: 0 | DM66: 10 | DN66: 60 | DO66: 30 | DP66: 417 | DQ66: 295.3069544
A67: Kyogle | B67: 10 | C67: Large Rural | D67: Northern Rivers | E67: 3584.2 | F67: 9072 | G67: -4.87574709 | H67: 2.5 | I67: 4606 | J67: 50.77160494 | K67: 4466 | L67: 49.22839506 | M67: 22.05687831 | N67: 45.94356261 | O67: 31.99955908 | P67: 29.26587302 | Q67: 38.7345679 | R67: 31.99955908 | S67: 4.2 | T67: 2.7 | U67: 13 | V67: 7.2 | W67: 41380.386 | X67: 2.2 | Y67: Agriculture, Forestry and Fishing | Z67: 957 | AA67: Data not yet available | AB67: Data not yet available | AC67: Data not yet available | AD67: Data not yet available | AE67: 17.19 | AF67: 6.3172 | AG67: 49.56 | AH67: 50.44097591 | AI67: 7.21 | AJ67: 27.8797 | AK67: 1.552488008 | AL67: 17.2192 | AM67: 26611 | AN67: 32995 | AO67: 2456 | AP67: 846.3128877 | AQ67: 2902 | AR67: 3104 | AS67: 1523.809524 | AT67: 2037 | AU67: 269 | AV67: 1185.022026 | AW67: 227 | AX67: 0 | AY67: 0 | AZ67: 0 | BA67: 174.396562 | BB67: 37.42246726 | BC67: 2585 | BD67: 9.714028034 | BE67: 3749 | BF67: 14.08815903 | BG67: 1708 | BH67: 6.418398407 | BI67: 924 | BJ67: 3.472248318 | BK67: 2291 | BL67: 8.60922175 | BM67: 14100 | BN67: 52.98560746 | BO67: 1254 | BP67: 4.712337003 | BQ67: 284.9426808 | BR67: 188.2716049 | BS67: 327.3809524 | BT67: 101.8518519 | BU67: 252.5352734 | BV67: 85.8686067 | BW67: 138.2275132 | BX67: 46.40652557 | BY67: 1554.232804 | BZ67: Data not yet available | CA67: 300.137836 | CB67: Data not yet available | CC67: Data not yet available | CD67: Data not yet available | CE67: Data not yet available | CF67: Data not yet available | CG67: Data not yet available | CH67: Data not yet available | CI67: 1997 | CJ67: 54.14466131 | CK67: 1217.33 | CL67: 134.1854056 | CM67: 21 | CN67: 3 | CO67: 4 | CP67: Data not yet available | CQ67: Data not yet available | CR67: 4925 | CS67: 4902 | CT67: 100.47 | CU67: 221.96 | CV67: 10.27 | CW67: Y | CX67: 31000 | CY67: 123000 | CZ67: 0 | DA67: 12000 | DB67: 8000 | DC67: 218716 | DD67: 0 | DE67: 0 | DF67: 0 | DG67: 9 | DH67: 1008 | DI67: 44 | DJ67: 56 | DK67: 0 | DL67: 0 | DM67: 11 | DN67: 33 | DO67: 56 | DP67: 103 | DQ67: 88.0776699
A68: Lachlan | B68: 10 | C68: Large Rural | D68: Central NSW | E68: 14964.3 | F68: 6352 | G68: -5.208177884 | H68: 0.4 | I68: 3177 | J68: 50.01574307 | K68: 3175 | L68: 49.98425693 | M68: 28.05415617 | N68: 46.72544081 | O68: 25.22040302 | P68: 40.14483627 | Q68: 34.63476071 | R68: 25.22040302 | S68: 17.6 | T68: 2.2 | U68: 25 | V68: 5.4 | W68: 40723.21499 | X68: 2.4 | Y68: Agriculture, Forestry and Fishing | Z68: 1004 | AA68: Data not yet available | AB68: Data not yet available | AC68: Data not yet available | AD68: Data not yet available | AE68: 11.33 | AF68: 4.5704 | AG68: 38.29 | AH68: 61.7081923 | AI68: 7.5 | AJ68: 137.9406 | AK68: 0.2771755537 | AL68: 16.8485 | AM68: 35834 | AN68: 39293 | AO68: 1023 | AP68: 447.7232925 | AQ68: 2284 | AR68: 4048 | AS68: 2842.41573 | AT68: 1424 | AU68: 280 | AV68: 615.3846154 | AW68: 455 | AX68: 50 | AY68: 49800 | AZ68: 1 | BA68: 125.8762167 | BB68: 19.2206655 | BC68: 4595 | BD68: 12.82301725 | BE68: 7715 | BF68: 21.529832 | BG68: 2098 | BH68: 5.854774795 | BI68: 6537 | BJ68: 18.2424513 | BK68: 3613 | BL68: 10.08260311 | BM68: 9700 | BN68: 27.06926383 | BO68: 1576 | BP68: 4.398057711 | BQ68: 723.3942065 | BR68: 330.2896725 | BS68: 914.8299748 | BT68: 1029.124685 | BU68: 568.7972292 | BV68: 299.7481108 | BW68: 248.1108312 | BX68: 47.22921914 | BY68: 1527.078086 | BZ68: Data not yet available | CA68: 254.3782837 | CB68: Data not yet available | CC68: Data not yet available | CD68: Data not yet available | CE68: Data not yet available | CF68: Data not yet available | CG68: Data not yet available | CH68: Data not yet available | CI68: 2737 | CJ68: 30.33850853 | CK68: 3981.53 | CL68: 626.8151763 | CM68: 268.5 | CN68: 4 | CO68: 8 | CP68: Data not yet available | CQ68: Data not yet available | CR68: 6265 | CS68: 6703 | CT68: 93.47 | CU68: 41.65 | CV68: 6.46 | CW68: Y | CX68: 63000 | CY68: 138000 | CZ68: 0 | DA68: 25000 | DB68: 1000 | DC68: 229000 | DD68: 0 | DE68: 0 | DF68: 0 | DG68: 10 | DH68: 635.2 | DI68: 20 | DJ68: 80 | DK68: 10 | DL68: 0 | DM68: 0 | DN68: 20 | DO68: 80 | DP68: 135 | DQ68: 47.05185185
A69: Lake Macquarie | B69: 5 | C69: Regional Town/City | D69: Hunter | E69: 648.6 | F69: 202847 | G69: 3.066901748 | H69: 312.7 | I69: 99300 | J69: 48.95315188 | K69: 103547 | L69: 51.04684812 | M69: 24.98286886 | N69: 49.03547994 | O69: 25.9816512 | P69: 36.38160781 | Q69: 37.63674099 | R69: 25.9816512 | S69: 4.1 | T69: 4.4 | U69: 89 | V69: 5.3 | W69: 55934.1292 | X69: 2.5 | Y69: Health Care & Social Assistance | Z69: 12610 | AA69: Data not yet available | AB69: Data not yet available | AC69: Data not yet available | AD69: Data not yet available | AE69: 8.98 | AF69: 2.9005 | AG69: 65.64 | AH69: 34.11866699 | AI69: 3.68 | AJ69: 9.8805 | AK69: 3.463220782 | AL69: 10.922 | AM69: 218424 | AN69: 288370 | AO69: 98887 | AP69: 1257.144673 | AQ69: 78660 | AR69: 94 | AS69: 2000 | AT69: 47 | AU69: 16938 | AV69: 4543.454936 | AW69: 3728 | AX69: 907 | AY69: 50388.88889 | AZ69: 18 | BA69: 157.0782204 | BB69: 21.28527841 | BC69: 32294 | BD69: 14.78500531 | BE69: 10934 | BF69: 5.005860162 | BG69: 55873 | BH69: 25.58006446 | BI69: 21522 | BJ69: 9.853312823 | BK69: 36978 | BL69: 16.9294583 | BM69: 47146 | BN69: 21.5846244 | BO69: 13677 | BP69: 6.261674541 | BQ69: 159.2037348 | BR69: 275.4440539 | BS69: 0 | BT69: 106.0996712 | BU69: 182.2950302 | BV69: 53.90269513 | BW69: 67.42520225 | BX69: 38.19627601 | BY69: 232.4214802 | BZ69: Data not yet available | CA69: 410.1067887 | CB69: Data not yet available | CC69: Data not yet available | CD69: Data not yet available | CE69: Data not yet available | CF69: Data not yet available | CG69: Data not yet available | CH69: Data not yet available | CI69: 35707 | CJ69: 64.52007154 | CK69: 1354.67 | CL69: 6.678284618 | CM69: 1664.31 | CN69: 17 | CO69: 36 | CP69: Data not yet available | CQ69: Data not yet available | CR69: 35678 | CS69: 38680 | CT69: 92.24 | CU69: 112.75 | CV69: 2.47 | CW69: Y | CX69: 213000 | CY69: 385000 | CZ69: 11000 | DA69: 54000 | DB69: 0 | DC69: 396001 | DD69: 7 | DE69: 38914 | DF69: 0 | DG69: 13 | DH69: 15603.61538 | DI69: 23 | DJ69: 77 | DK69: 0 | DL69: 0 | DM69: 8 | DN69: 54 | DO69: 38 | DP69: 1030 | DQ69: 196.938835
A70: Lane Cove | B70: 2 | C70: Metropolitan | E70: 10.5 | F70: 37810 | G70: 13.77245509 | H70: 3608 | I70: 18734 | J70: 49.54773869 | K70: 19076 | L70: 50.45226131 | M70: 23.62602486 | N70: 58.61412325 | O70: 17.75985189 | P70: 38.27558847 | Q70: 43.96455964 | R70: 17.75985189 | S70: 0.3 | T70: 26.4 | U70: 126 | V70: 3.3 | W70: 92460.06215 | X70: 2.5 | Y70: Professional Scientific & Technical Services | Z70: 4606 | AA70: Data not yet available | AB70: Data not yet available | AC70: Data not yet available | AD70: Data not yet available | AE70: 10.98 | AF70: 6.6805 | AG70: 68.55 | AH70: 22.7878319 | AI70: 1.91 | AJ70: 0 | AK70: 0 | AL70: 19.2264 | AM70: 38363 | AN70: 78586 | AO70: 17329 | AP70: 1186.917808 | AQ70: 14600 | AR70: 0 | AS70: 0 | AT70: 0 | AU70: 5133 | AV70: 4578.947368 | AW70: 1121 | AX70: 0 | AY70: 0 | AZ70: 0 | BA70: 363.3361024 | BB70: 5.698630137 | BC70: 8276 | BD70: 21.57286969 | BE70: 1544 | BF70: 4.02471131 | BG70: 7726 | BH70: 20.13919662 | BI70: 4820 | BJ70: 12.56418945 | BK70: 8511 | BL70: 22.18543909 | BM70: 6025 | BN70: 15.70523682 | BO70: 1461 | BP70: 3.808357011 | BQ70: 218.8838931 | BR70: 204.3374769 | BS70: 0 | BT70: 127.4795028 | BU70: 225.0991801 | BV70: 40.83575774 | BW70: 38.64057128 | BX70: 77.4133827 | BY70: 159.3493785 | BZ70: Data not yet available | CA70: 414.4520548 | CB70: Data not yet available | CC70: Data not yet available | CD70: Data not yet available | CE70: Data not yet available | CF70: Data not yet available | CG70: Data not yet available | CH70: Data not yet available | CI70: 4050 | CJ70: 52.63711847 | CK70: 101.6 | CL70: 2.68711981 | CM70: 212 | CN70: 4 | CO70: 11 | CP70: Data not yet available | CQ70: Data not yet available | CR70: 4385 | CS70: 1349 | CT70: 325.12 | CU70: 206.13 | CV70: 0.71 | CW70: Y | CX70: 35000 | CY70: 211000 | CZ70: 0 | DA70: 10699 | DB70: 0 | DC70: 349525 | DD70: 0 | DE70: 0 | DF70: 0 | DG70: 9 | DH70: 4201.111111 | DI70: 56 | DJ70: 44 | DK70: 0 | DL70: 0 | DM70: 11.11111111 | DN70: 67 | DO70: 22 | DP70: 186 | DQ70: 203.2795699
A71: Leeton | B71: 11 | C71: Large Rural | D71: Riverina and Murray | E71: 1167.2 | F71: 11418 | G71: 0.1052077854 | H71: 9.8 | I71: 5650 | J71: 49.48327203 | K71: 5768 | L71: 50.51672797 | M71: 29.79506043 | N71: 47.45139254 | O71: 22.75354703 | P71: 41.25941496 | Q71: 35.98703801 | R71: 22.75354703 | S71: 5.7 | T71: 7.3 | U71: 35 | V71: 5.2 | W71: 46994.50141 | X71: 2.5 | Y71: Manufacturing | Z71: 957 | AA71: Data not yet available | AB71: Data not yet available | AC71: Data not yet available | AD71: Data not yet available | AE71: 16.15 | AF71: 4.5197 | AG71: 69.01 | AH71: 30.86305438 | AI71: 3.06 | AJ71: 28.2614 | AK71: 1.31049393 | AL71: 20.7257 | AM71: 25209 | AN71: 31319 | AO71: 3401 | AP71: 855.3822938 | AQ71: 3976 | AR71: 2743 | AS71: 3386.419753 | AT71: 810 | AU71: 400 | AV71: 778.2101167 | AW71: 514 | AX71: 0 | AY71: 0 | AZ71: 0 | BA71: 73.91273334 | BB71: 23.86820926 | BC71: 1889 | BD71: 7.493355548 | BE71: 6948 | BF71: 27.56158515 | BG71: 2847 | BH71: 11.29358562 | BI71: 3070 | BJ71: 12.17819033 | BK71: 3901 | BL71: 15.47463208 | BM71: 4543 | BN71: 18.02134158 | BO71: 2011 | BP71: 7.977309691 | BQ71: 165.4405325 | BR71: 249.3431424 | BS71: 535.032405 | BT71: 268.8737082 | BU71: 341.6535295 | BV71: 73.48046943 | BW71: 176.125416 | BX71: 40.19968471 | BY71: 397.8805395 | BZ71: Data not yet available | CA71: 251.5090543 | CB71: Data not yet available | CC71: Data not yet available | CD71: Data not yet available | CE71: Data not yet available | CF71: Data not yet available | CG71: Data not yet available | CH71: Data not yet available | CI71: 3068 | CJ71: 53.6485874 | CK71: 900.96 | CL71: 78.90698896 | CM71: 185.75 | CN71: 2 | CO71: 6 | CP71: Data not yet available | CQ71: Data not yet available | CR71: 4620 | CS71: 4584 | CT71: 100.79 | CU71: 53.97 | CV71: 3.04 | CW71: Y | CX71: 31000 | CY71: 125000 | CZ71: 0 | DA71: 8715 | DB71: 0 | DC71: 225000 | DD71: 0 | DE71: 0 | DF71: 0 | DG71: 9 | DH71: 1268.666667 | DI71: 22 | DJ71: 78 | DK71: 0 | DL71: 11 | DM71: 0 | DN71: 67 | DO71: 33 | DP71: 135 | DQ71: 84.57777778
A72: Lismore | B72: 4 | C72: Regional Town/City | D72: Northern Rivers | E72: 1287.7 | F72: 44054 | G72: -0.6629385767 | H72: 34.2 | I72: 21477 | J72: 48.75153221 | K72: 22577 | L72: 51.24846779 | M72: 24.93757661 | N72: 50.37681028 | O72: 24.68561311 | P72: 36.16470695 | Q72: 39.14967994 | R72: 24.68561311 | S72: 5 | T72: 4.6 | U72: 45 | V72: 6.4 | W72: 43826.33081 | X72: 2.4 | Y72: Health Care & Social Assistance | Z72: 4045 | AA72: Data not yet available | AB72: Data not yet available | AC72: Data not yet available | AD72: Data not yet available | AE72: 6.54 | AF72: 1.5003 | AG72: 74.36 | AH72: 25.6429971 | AI72: 10.5 | AJ72: 4.0305 | AK72: 7.314924996 | AL72: 9.0681 | AM72: 102225 | AN72: 120957 | AO72: 17683 | AP72: 1150.862349 | AQ72: 15365 | AR72: 4394 | AS72: 2307.773109 | AT72: 1904 | AU72: 5313 | AV72: 4365.653246 | AW72: 1217 | AX72: 0 | AY72: 0 | AZ72: 0 | BA72: 111.7231017 | BB72: 23.0393752 | BC72: 3868 | BD72: 3.783810223 | BE72: 28077 | BF72: 27.46588408 | BG72: 16175 | BH72: 15.82293959 | BI72: 4560 | BJ72: 4.460748349 | BK72: 18101 | BL72: 17.70701883 | BM72: 21573 | BN72: 21.10344828 | BO72: 9871 | BP72: 9.656150648 | BQ72: 87.80133473 | BR72: 367.1630272 | BS72: 564.3982385 | BT72: 103.5093295 | BU72: 410.8820992 | BV72: 72.93321832 | BW72: 224.0659191 | BX72: 155.1504971 | BY72: 489.6944659 | BZ72: Data not yet available | CA72: 289.1636837 | CB72: Data not yet available | CC72: Data not yet available | CD72: Data not yet available | CE72: Data not yet available | CF72: Data not yet available | CG72: Data not yet available | CH72: Data not yet available | CI72: 7785 | CJ72: 62.78858563 | CK72: 1218.82 | CL72: 27.6665002 | CM72: 458.877 | CN72: 3 | CO72: 7 | CP72: Data not yet available | CQ72: Data not yet available | CR72: 10342 | CS72: 11120 | CT72: 93 | CU72: 89.7 | CV72: 14.37 | CW72: Y | CX72: 153000 | CY72: 254000 | CZ72: 0 | DA72: 9476 | DB72: 752 | DC72: 285700 | DD72: 4 | DE72: 5085 | DF72: 1 | DG72: 11 | DH72: 4004.909091 | DI72: 45 | DJ72: 55 | DK72: 0 | DL72: 9 | DM72: 0 | DN72: 82 | DO72: 18 | DP72: 432 | DQ72: 101.9768519
A73: Lithgow | B73: 4 | C73: Regional Town/City | E73: 4512.3 | F73: 21524 | G73: 3.232613909 | H73: 4.8 | I73: 10947 | J73: 50.85950567 | K73: 10577 | L73: 49.14049433 | M73: 23.22523694 | N73: 48.85244378 | O73: 27.92231927 | P73: 34.69150715 | Q73: 37.38617357 | R73: 27.92231927 | S73: 5.7 | T73: 3.4 | U73: 17 | V73: 5.9 | W73: 56848.58295 | X73: 2.3 | Y73: Mining | Z73: 1271 | AA73: Data not yet available | AB73: Data not yet available | AC73: Data not yet available | AD73: Data not yet available | AE73: 4.18 | AF73: 3.0957 | AG73: 64.9 | AH73: 35.10007217 | AI73: 5.81 | AJ73: 5.4459 | AK73: 5.814002709 | AL73: 9.0577 | AM73: 47787 | AN73: 56809 | AO73: 13339 | AP73: 1406.919101 | AQ73: 9481 | AR73: 1714 | AS73: 1350.669819 | AT73: 1269 | AU73: 1704 | AV73: 3520.661157 | AW73: 484 | AX73: 2032 | AY73: 156307.6923 | AZ73: 13 | BA73: 78.74842701 | BB73: 25.67239743 | BC73: 2900 | BD73: 6.068596062 | BE73: 14188 | BF73: 29.69008308 | BG73: 3889 | BH73: 8.138196581 | BI73: 5511 | BJ73: 11.53242514 | BK73: 8507 | BL73: 17.80191265 | BM73: 11860 | BN73: 24.81846527 | BO73: 932 | BP73: 1.950321217 | BQ73: 134.7333209 | BR73: 180.6820294 | BS73: 589.6208883 | BT73: 256.0397696 | BU73: 395.233228 | BV73: 69.55026947 | BW73: 43.30050177 | BX73: 69.5038097 | BY73: 551.0128229 | BZ73: Data not yet available | CA73: 360.5104947 | CB73: Data not yet available | CC73: Data not yet available | CD73: Data not yet available | CE73: Data not yet available | CF73: Data not yet available | CG73: Data not yet available | CH73: Data not yet available | CI73: 10741 | CJ73: 35.60937594 | CK73: 904.33 | CL73: 42.01496004 | CM73: 92.63 | CN73: 1 | CO73: 12 | CP73: Data not yet available | CQ73: Data not yet available | CR73: 7052 | CS73: 8650 | CT73: 81.53 | CU73: 31.37 | CV73: 6.82 | CW73: Y | CX73: 18000 | CY73: 106000 | CZ73: 0 | DA73: 4692 | DB73: 0 | DC73: 279679 | DD73: 12 | DE73: 52652 | DF73: 1 | DG73: 9 | DH73: 2391.555556 | DI73: 33 | DJ73: 67 | DK73: 0 | DL73: 0 | DM73: 0 | DN73: 56 | DO73: 44 | DP73: 176 | DQ73: 122.2954545
A74: Liverpool | B74: 3 | C74: Metropolitan | E74: 305.7 | F74: 212232 | G74: 12.8365446 | H74: 694.2 | I74: 105874 | J74: 49.88597384 | K74: 106358 | L74: 50.11402616 | M74: 30.01997814 | N74: 55.40163595 | O74: 14.57838592 | P74: 44.7745863 | Q74: 40.64702778 | R74: 14.57838592 | S74: 1.5 | T74: 51.9 | U74: 82 | V74: 5.2 | W74: 53186.48134 | X74: 3.2 | Y74: Manufacturing | Z74: 15538 | AA74: Data not yet available | AB74: Data not yet available | AC74: Data not yet available | AD74: Data not yet available | AE74: 2.4 | AF74: 1.9352 | AG74: 54.52 | AH74: 45.33803922 | AI74: 4.3 | AJ74: 4.7092 | AK74: 5.037872316 | AL74: 8.4575 | AM74: 178621 | AN74: 284183 | AO74: 70074 | AP74: 1096.259445 | AQ74: 63921 | AR74: 412 | AS74: 2821.917808 | AT74: 146 | AU74: 20023 | AV74: 6170.416025 | AW74: 3245 | AX74: 0 | AY74: 0 | AZ74: 0 | BA74: 225.9976566 | BB74: 14.83237121 | BC74: 42276 | BD74: 23.66798977 | BE74: 6238 | BF74: 3.492310535 | BG74: 38272 | BH74: 21.42637204 | BI74: 24869 | BJ74: 13.92277504 | BK74: 38488 | BL74: 21.54729847 | BM74: 25529 | BN74: 14.29227247 | BO74: 2949 | BP74: 1.650981687 | BQ74: 199.1971051 | BR74: 180.3309586 | BS74: 0 | BT74: 117.1783708 | BU74: 181.3487127 | BV74: 29.39236307 | BW74: 13.89517132 | BX74: 40.8373855 | BY74: 120.2881752 | BZ74: Data not yet available | CA74: 419.4396208 | CB74: Data not yet available | CC74: Data not yet available | CD74: Data not yet available | CE74: Data not yet available | CF74: Data not yet available | CG74: Data not yet available | CH74: Data not yet available | CI74: 28950 | CJ74: 47.97095719 | CK74: 906.32 | CL74: 4.270421049 | CM74: 1627.12 | CN74: 3 | CO74: 29 | CP74: Data not yet available | CQ74: Data not yet available | CR74: 18731 | CS74: 17925 | CT74: 104.5 | CU74: 197.36 | CV74: 3.17 | CW74: Y | CX74: 90000 | CY74: 311000 | CZ74: 4000 | DA74: 25000 | DB74: 14000 | DC74: 408177 | DD74: 6 | DE74: 2000 | DF74: 0 | DG74: 11 | DH74: 19293.81818 | DI74: 30 | DJ74: 70 | DK74: 0 | DL74: 40 | DM74: 10 | DN74: 50 | DO74: 40 | DP74: 693 | DQ74: 306.2510823
A75: Liverpool Plains | B75: 10 | C75: Large Rural | D75: Namoi | E75: 5082.2 | F75: 7874 | G75: 1.455997938 | H75: 1.5 | I75: 3950 | J75: 50.16510033 | K75: 3924 | L75: 49.83489967 | M75: 24.98094996 | N75: 46.18999238 | O75: 28.82905766 | P75: 34.67106934 | Q75: 36.499873 | R75: 28.82905766 | S75: 12.5 | T75: 1.1 | U75: 15 | V75: 6.9 | W75: 45519.62778 | X75: 2.3 | Y75: Agriculture, Forestry and Fishing | Z75: 997 | AA75: Data not yet available | AB75: Data not yet available | AC75: Data not yet available | AD75: Data not yet available | AE75: 4.52 | AF75: 4.4682 | AG75: 55.26 | AH75: 44.73772135 | AI75: 9.87 | AJ75: 12.878 | AK75: 2.29880761 | AL75: 15.2992 | AM75: 25635 | AN75: 29930 | AO75: 1860 | AP75: 638.0789022 | AQ75: 2915 | AR75: 4067 | AS75: 4116.396761 | AT75: 988 | AU75: 351 | AV75: 988.7323944 | AW75: 355 | AX75: 286 | AY75: 71500 | AZ75: 4 | BA75: 215.6797913 | BB75: 29.09090909 | BC75: 4421 | BD75: 17.2459528 | BE75: 3488 | BF75: 13.6063975 | BG75: 2372 | BH75: 9.252974449 | BI75: 1302 | BJ75: 5.078993563 | BK75: 2340 | BL75: 9.128145114 | BM75: 9676 | BN75: 37.74527014 | BO75: 2036 | BP75: 7.942266433 | BQ75: 561.4681229 | BR75: 301.2446025 | BS75: 351.5367031 | BT75: 165.3543307 | BU75: 297.1805944 | BV75: 91.44018288 | BW75: 258.5725171 | BX75: 53.72110744 | BY75: 1228.854458 | BZ75: Data not yet available | CA75: 332.761578 | CB75: Data not yet available | CC75: Data not yet available | CD75: Data not yet available | CE75: Data not yet available | CF75: Data not yet available | CG75: Data not yet available | CH75: Data not yet available | CI75: 4261 | CJ75: 35.653881 | CK75: 1394.25 | CL75: 177.0701041 | CM75: 90 | CN75: 2 | CO75: 9 | CP75: Data not yet available | CQ75: Data not yet available | CR75: 0 | CS75: 6361 | CT75: 0 | CU75: 0 | CV75: 2.08 | CW75: Y | CX75: 24000 | CY75: 103000 | CZ75: 0 | DA75: 14208 | DB75: 0 | DC75: 249680 | DD75: 2 | DE75: 8500 | DF75: 1 | DG75: 7 | DH75: 1124.857143 | DI75: 30 | DJ75: 70 | DK75: 10 | DL75: 0 | DM75: 0 | DN75: 30 | DO75: 70 | DP75: 114 | DQ75: 69.07017544
A76: Lockhart | B76: 9 | C76: Rural | D76: Riverina | E76: 2895.8 | F76: 3182 | G76: 2.711426727 | H76: 1.1 | I76: 1567 | J76: 49.24575739 | K76: 1615 | L76: 50.75424261 | M76: 26.96417348 | N76: 43.05468259 | O76: 29.98114393 | P76: 34.06662476 | Q76: 35.9522313 | R76: 29.98114393 | S76: 3.5 | T76: 1.3 | U76: 81 | V76: 2.9 | W76: 43392.265 | X76: 2.5 | Y76: Agriculture, Forestry and Fishing | Z76: 297 | AA76: Data not yet available | AB76: Data not yet available | AC76: Data not yet available | AD76: Data not yet available | AE76: 40.57 | AF76: 8.0197 | AG76: 23.33 | AH76: 76.36122178 | AI76: 4.48 | AJ76: 100.596 | AK76: 0.5752803765 | AL76: 11.3425 | AM76: 10231 | AN76: 17319 | AO76: 321 | AP76: 279.1304348 | AQ76: 1150 | AR76: 1871 | AS76: 1666.073019 | AT76: 1123 | AU76: 98 | AV76: 451.6129032 | AW76: 217 | AX76: 0 | AY76: 0 | AZ76: 0 | BA76: 272.5571026 | BB76: 27.30434783 | BC76: 1931 | BD76: 18.88139239 | BE76: 761 | BF76: 7.441087318 | BG76: 1335 | BH76: 13.05368143 | BI76: 408 | BJ76: 3.989439718 | BK76: 736 | BL76: 7.196636355 | BM76: 4838 | BN76: 47.30615039 | BO76: 218 | BP76: 2.131612399 | BQ76: 606.8510371 | BR76: 419.5474544 | BS76: 146.7630421 | BT76: 128.2212445 | BU76: 231.3010685 | BV76: 92.3947203 | BW76: 68.51037084 | BX76: 34.88372093 | BY76: 1520.427404 | BZ76: Data not yet available | CA76: 306.9565217 | CB76: Data not yet available | CC76: Data not yet available | CD76: Data not yet available | CE76: Data not yet available | CF76: Data not yet available | CG76: Data not yet available | CH76: Data not yet available | CI76: 1246 | CJ76: 40.9478673 | CK76: 1368.21 | CL76: 429.9842866 | CM76: 37 | CN76: 2 | CO76: 8 | CP76: Data not yet available | CQ76: Data not yet available | CR76: 1715 | CS76: 1611 | CT76: 106.46 | CU76: 106.89 | CV76: 1.27 | CW76: Y | CX76: 22000 | CY76: 99000 | CZ76: 0 | DA76: 9419 | DB76: 0 | DC76: 194836 | DD76: 0 | DE76: 0 | DF76: 0 | DG76: 9 | DH76: 353.5555556 | DI76: 11.11111111 | DJ76: 88.88888889 | DK76: 0 | DL76: 0 | DM76: 0 | DN76: 33 | DO76: 67 | DP76: 51 | DQ76: 62.39215686
A77: Maitland | B77: 5 | C77: Regional Town/City | D77: Hunter | E77: 391.5 | F77: 79340 | G77: 13.46604885 | H77: 202.7 | I77: 38816 | J77: 48.92361986 | K77: 40524 | L77: 51.07638014 | M77: 28.80640282 | N77: 52.34686161 | O77: 18.84673557 | P77: 42.5018906 | Q77: 38.65137383 | R77: 18.84673557 | S77: 5.3 | T77: 4 | U77: 75 | V77: 4 | W77: 59167.75328 | X77: 2.7 | Y77: Manufacturing | Z77: 5434 | AA77: Data not yet available | AB77: Data not yet available | AC77: Data not yet available | AD77: Data not yet available | AE77: 0.29 | AF77: 3.1803 | AG77: 54.13 | AH77: 45.86118287 | AI77: 2.05 | AJ77: 4.5783 | AK77: 5.300962956 | AL77: 14.548 | AM77: 97326 | AN77: 148267 | AO77: 36270 | AP77: 1224.386456 | AQ77: 29623 | AR77: 2112 | AS77: 3056.439942 | AT77: 691 | AU77: 12258 | AV77: 6551.576697 | AW77: 1871 | AX77: 374 | AY77: 187000 | AZ77: 2 | BA77: 114.7886953 | BB77: 17.10495223 | BC77: 15600 | BD77: 16.02860489 | BE77: 2978 | BF77: 3.059819575 | BG77: 19048 | BH77: 19.57133757 | BI77: 6997 | BJ77: 7.189240285 | BK77: 21465 | BL77: 22.05474385 | BM77: 24944 | BN77: 25.62932824 | BO77: 6294 | BP77: 6.46692559 | BQ77: 196.6221326 | BR77: 240.0806655 | BS77: 0 | BT77: 88.19006806 | BU77: 270.5444921 | BV77: 37.53466095 | BW77: 79.32946811 | BX77: 40.52180489 | BY77: 314.3937484 | BZ77: Data not yet available | CA77: 460.3517537 | CB77: Data not yet available | CC77: Data not yet available | CD77: Data not yet available | CE77: Data not yet available | CF77: Data not yet available | CG77: Data not yet available | CH77: Data not yet available | CI77: 23175 | CJ77: 46.31439956 | CK77: 708.582 | CL77: 8.930955382 | CM77: 527.89 | CN77: 2 | CO77: 17 | CP77: Data not yet available | CQ77: Data not yet available | CR77: 9676 | CS77: 7233 | CT77: 133.78 | CU77: 87.02 | CV77: 10.14 | CW77: Y | CX77: 91000 | CY77: 286000 | CZ77: 0 | DA77: 1000 | DB77: 0 | DC77: 447000 | DD77: 0 | DE77: 0 | DF77: 0 | DG77: 13 | DH77: 6103.076923 | DI77: 31 | DJ77: 69 | DK77: 0 | DL77: 0 | DM77: 8 | DN77: 69 | DO77: 23 | DP77: 379 | DQ77: 209.3403694
A78: Mid-Coast | B78: 5 | C78: Regional Town/City | D78: Hunter | E78: 10053.3 | F78: 91958 | G78: 3.535319417 | H78: 9.1 | I78: 45013 | J78: 48.94952043 | K78: 46945 | L78: 51.05047957 | M78: 21.31842798 | N78: 41.50481742 | O78: 37.17675461 | P78: 29.38406664 | Q78: 33.43917876 | R78: 37.17675461 | S78: 6.2 | T78: 2.6 | U78: 20 | V78: 5.4 | W78: 43370.23044 | X78: 2.2 | Y78: Health Care & Social Assistance | Z78: 6658 | AA78: Data not yet available | AB78: Data not yet available | AC78: Data not yet available | AD78: Data not yet available | AE78: * | AF78: * | AG78: * | AH78: * | AI78: * | AJ78: * | AK78: * | AL78: * | AM78: * | AN78: * | AO78: * | AP78: * | AQ78: * | AR78: * | AS78: * | AT78: * | AU78: * | AV78: * | AW78: * | AX78: * | AY78: * | AZ78: * | BA78: * | BB78: * | BC78: * | BD78: * | BE78: * | BF78: * | BG78: * | BH78: * | BI78: * | BJ78: * | BK78: * | BL78: * | BM78: * | BN78: * | BO78: * | BP78: * | BQ78: * | BR78: * | BS78: * | BT78: * | BU78: * | BV78: * | BW78: * | BX78: * | BY78: * | BZ78: Data not yet available | CA78: * | CB78: Data not yet available | CC78: Data not yet available | CD78: Data not yet available | CE78: Data not yet available | CF78: Data not yet available | CG78: Data not yet available | CH78: Data not yet available | CI78: 19863 | CJ78: 62.5946292 | CK78: 3597.99 | CL78: 39.12644903 | CM78: 1554.8 | CN78: 18 | CO78: 29 | CP78: Data not yet available | CQ78: Data not yet available | CR78: * | CS78: * | CT78: * | CU78: * | CV78: * | CW78: Y | CX78: * | CY78: * | CZ78: * | DA78: * | DB78: * | DC78: * | DD78: 0 | DE78: 0 | DF78: 0 | DG78: - | DH78: - | DI78: - | DJ78: - | DK78: - | DL78: - | DM78: - | DN78: - | DO78: - | DP78: 614 | DQ78: 149.7687296
A79: Mid-Western Regional | B79: 4 | C79: Regional Town/City | D79: Orana | E79: 8752.3 | F79: 24569 | G79: 6.728931364 | H79: 2.8 | I79: 12367 | J79: 50.335789 | K79: 12202 | L79: 49.664211 | M79: 26.35841915 | N79: 48.85831739 | O79: 24.78326346 | P79: 36.82689568 | Q79: 38.38984086 | R79: 24.78326346 | S79: 5.4 | T79: 2.7 | U79: 44 | V79: 4.7 | W79: 55992.60134 | X79: 2.4 | Y79: Mining | Z79: 2497 | AA79: Data not yet available | AB79: Data not yet available | AC79: Data not yet available | AD79: Data not yet available | AE79: 9.59 | AF79: 3.6512 | AG79: 55.2 | AH79: 44.80472166 | AI79: 3.39 | AJ79: 8.69 | AK79: 4.107842674 | AL79: 16.7349 | AM79: 62694 | AN79: 82344 | AO79: 9099 | AP79: 832.4794145 | AQ79: 10930 | AR79: 4521 | AS79: 2389.534884 | AT79: 1892 | AU79: 1269 | AV79: 1812.857143 | AW79: 700 | AX79: 2121 | AY79: 192818.1818 | AZ79: 11 | BA79: 127.9757833 | BB79: 17.09972553 | BC79: 8956 | BD79: 14.28525856 | BE79: 12646 | BF79: 20.17098925 | BG79: 7374 | BH79: 11.76189109 | BI79: 4035 | BJ79: 6.436022586 | BK79: 7309 | BL79: 11.65821291 | BM79: 20187 | BN79: 32.19925352 | BO79: 2187 | BP79: 3.488372093 | BQ79: 364.5244007 | BR79: 300.1343156 | BS79: 446.7825308 | BT79: 164.2313484 | BU79: 297.4887053 | BV79: 67.93113273 | BW79: 89.01461191 | BX79: 44.69046359 | BY79: 821.6451626 | BZ79: Data not yet available | CA79: 113.357731 | CB79: Data not yet available | CC79: Data not yet available | CD79: Data not yet available | CE79: Data not yet available | CF79: Data not yet available | CG79: Data not yet available | CH79: Data not yet available | CI79: 13642 | CJ79: 27.54408328 | CK79: 2261.92 | CL79: 92.06398307 | CM79: 474.28 | CN79: 3 | CO79: 16 | CP79: Data not yet available | CQ79: Data not yet available | CR79: 10374 | CS79: 9560 | CT79: 108.51 | CU79: 71.32 | CV79: 4.28 | CW79: Y | CX79: 38000 | CY79: 122000 | CZ79: 0 | DA79: 1393 | DB79: 0 | DC79: 293466 | DD79: 2 | DE79: 630 | DF79: 0 | DG79: 9 | DH79: 2729.888889 | DI79: 11 | DJ79: 89 | DK79: 0 | DL79: 0 | DM79: 22 | DN79: 44.44444444 | DO79: 34 | DP79: 319 | DQ79: 77.01880878
A80: Moree Plains | B80: 11 | C80: Large Rural | D80: New England | E80: 17906.5 | F80: 13590 | G80: -3.225806452 | H80: 0.8 | I80: 6867 | J80: 50.52980132 | K80: 6723 | L80: 49.47019868 | M80: 28.32229581 | N80: 51.45695364 | O80: 20.22075055 | P80: 41.39072848 | Q80: 38.38852097 | R80: 20.22075055 | S80: 21.6 | T80: 3.5 | U80: 24 | V80: 8.1 | W80: 45717.94417 | X80: 2.5 | Y80: Agriculture, Forestry and Fishing | Z80: 1925 | AA80: Data not yet available | AB80: Data not yet available | AC80: Data not yet available | AD80: Data not yet available | AE80: 13.49 | AF80: 2.3753 | AG80: 68.11 | AH80: 31.88778544 | AI80: 6.35 | AJ80: 5.4181 | AK80: 7.018880424 | AL80: 8.3335 | AM80: 56574 | AN80: 67264 | AO80: 4466 | AP80: 1029.98155 | AQ80: 4336 | AR80: 14680 | AS80: 10606.93642 | AT80: 1384 | AU80: 2582 | AV80: 4239.737274 | AW80: 609 | AX80: 0 | AY80: 0 | AZ80: 0 | BA80: 155.7715413 | BB80: 13.9298893 | BC80: 7734 | BD80: 13.67059073 | BE80: 10724 | BF80: 18.95570403 | BG80: 4484 | BH80: 7.925902358 | BI80: 3967 | BJ80: 7.012055008 | BK80: 4903 | BL80: 8.666525259 | BM80: 22880 | BN80: 40.44260614 | BO80: 1882 | BP80: 3.326616467 | BQ80: 569.0949227 | BR80: 329.9484915 | BS80: 632.8918322 | BT80: 291.9058131 | BU80: 360.7799853 | BV80: 156.2178072 | BW80: 138.4841795 | BX80: 49.81604121 | BY80: 1683.590876 | BZ80: Data not yet available | CA80: 482.9335793 | CB80: Data not yet available | CC80: Data not yet available | CD80: Data not yet available | CE80: Data not yet available | CF80: Data not yet available | CG80: Data not yet available | CH80: Data not yet available | CI80: 6643 | CJ80: 20.1754386 | CK80: 2899.4 | CL80: 213.34805 | CM80: 238 | CN80: 3 | CO80: 8 | CP80: Data not yet available | CQ80: Data not yet available | CR80: 9645 | CS80: 10154 | CT80: 94.99 | CU80: 120.72 | CV80: 1.88 | CW80: Y | CX80: 123000 | CY80: 120000 | CZ80: 0 | DA80: 4000 | DB80: 1000 | DC80: 255000 | DD80: 0 | DE80: 0 | DF80: 0 | DG80: 9 | DH80: 1510 | DI80: 33.33333333 | DJ80: 66.66666667 | DK80: 0 | DL80: 11.11111111 | DM80: 0 | DN80: 55.55555556 | DO80: 44.44444444 | DP80: 228 | DQ80: 59.60526316
A81: Mosman | B81: 2 | C81: Metropolitan | E81: 8.7 | F81: 30215 | G81: 2.943681646 | H81: 3492.9 | I81: 14137 | J81: 46.7880192 | K81: 16078 | L81: 53.2119808 | M81: 23.04815489 | N81: 53.11269237 | O81: 23.83915274 | P81: 33.80109217 | Q81: 42.35975509 | R81: 23.83915274 | S81: 0.2 | T81: 15.1 | U81: 128 | V81: 2.7 | W81: 134179.7503 | X81: 2.4 | Y81: Professional Scientific & Technical Services | Z81: 4227 | AA81: Data not yet available | AB81: Data not yet available | AC81: Data not yet available | AD81: Data not yet available | AE81: 6.22 | AF81: 1.7319 | AG81: 87.69 | AH81: 11.60788562 | AI81: 2.59 | AJ81: 4.0907 | AK81: 4.640171858 | AL81: 4.7276 | AM81: 44161 | AN81: 51689 | AO81: 17247 | AP81: 1348.791742 | AQ81: 12787 | AR81: 0 | AS81: 0 | AT81: 0 | AU81: 1724 | AV81: 2878.130217 | AW81: 599 | AX81: 0 | AY81: 0 | AZ81: 0 | BA81: 627.6487076 | BB81: 4.83303355 | BC81: 11724 | BD81: 26.59769958 | BE81: 2229 | BF81: 5.056829783 | BG81: 5829 | BH81: 13.22398421 | BI81: 5309 | BJ81: 12.04428413 | BK81: 10983 | BL81: 24.91662697 | BM81: 7430 | BN81: 16.85609928 | BO81: 575 | BP81: 1.304476054 | BQ81: 388.0191958 | BR81: 192.9174251 | BS81: 0 | BT81: 175.7074301 | BU81: 363.4949528 | BV81: 73.77130564 | BW81: 19.03028297 | BX81: 74.89657455 | BY81: 245.9043521 | BZ81: Data not yet available | CA81: 513.021037 | CB81: Data not yet available | CC81: Data not yet available | CD81: Data not yet available | CE81: Data not yet available | CF81: Data not yet available | CG81: Data not yet available | CH81: Data not yet available | CI81: 2686 | CJ81: 65.73979592 | CK81: 93.8 | CL81: 3.104418335 | CM81: 177.4 | CN81: 4 | CO81: 1 | CP81: Data not yet available | CQ81: Data not yet available | CR81: 4826 | CS81: 4170 | CT81: 115.73 | CU81: 126.79 | CV81: 1.14 | CW81: Y | CX81: 21000 | CY81: 173000 | CZ81: 0 | DA81: 2000 | DB81: 0 | DC81: 328827 | DD81: 1 | DE81: 500 | DF81: 0 | DG81: 7 | DH81: 4316.428571 | DI81: 43 | DJ81: 57 | DK81: 0 | DL81: 0 | DM81: 0 | DN81: 57.14285714 | DO81: 42.85714286 | DP81: 167 | DQ81: 180.9281437
A82: Murray River | B82: 11 | C82: Large Rural | D82: Riverina and Murray | E82: 11863.5 | F82: 11887 | G82: 5.596517722 | H82: 1 | I82: 5890 | J82: 49.54992849 | K82: 5997 | L82: 50.45007151 | M82: 22.50357533 | N82: 43.41717843 | O82: 34.07924624 | P82: 30.95818962 | Q82: 34.96256415 | R82: 34.07924624 | S82: 3.2 | T82: 2.5 | U82: 78 | V82: 3.1 | W82: 43676.28868 | X82: 2.3 | Y82: Agriculture, Forestry and Fishing | Z82: 1197 | AA82: Data not yet available | AB82: Data not yet available | AC82: Data not yet available | AD82: Data not yet available | AE82: * | AF82: * | AG82: * | AH82: * | AI82: * | AJ82: * | AK82: * | AL82: * | AM82: * | AN82: * | AO82: * | AP82: * | AQ82: * | AR82: * | AS82: * | AT82: * | AU82: * | AV82: * | AW82: * | AX82: * | AY82: * | AZ82: * | BA82: * | BB82: * | BC82: * | BD82: * | BE82: * | BF82: * | BG82: * | BH82: * | BI82: * | BJ82: * | BK82: * | BL82: * | BM82: * | BN82: * | BO82: * | BP82: * | BQ82: * | BR82: * | BS82: * | BT82: * | BU82: * | BV82: * | BW82: * | BX82: * | BY82: * | BZ82: Data not yet available | CA82: * | CB82: Data not yet available | CC82: Data not yet available | CD82: Data not yet available | CE82: Data not yet available | CF82: Data not yet available | CG82: Data not yet available | CH82: Data not yet available | CI82: 1034 | CJ82: 78.43137255 | CK82: 2999.12 | CL82: 252.3025154 | CM82: 192.23 | CN82: 5 | CO82: 18 | CP82: Data not yet available | CQ82: Data not yet available | CR82: * | CS82: * | CT82: * | CU82: * | CV82: * | CW82: Y | CX82: * | CY82: * | CZ82: * | DA82: * | DB82: * | DC82: * | DD82: 0 | DE82: 0 | DF82: 0 | DG82: - | DH82: - | DI82: - | DJ82: - | DK82: - | DL82: - | DM82: - | DN82: - | DO82: - | DP82: 161 | DQ82: 73.83229814
A83: Murrumbidgee (new) | B83: 9 | C83: Rural | D83: Riverina and Murray | E83: 6882.8 | F83: 3933 | G83: 1.157407407 | H83: 0.6 | I83: 2065 | J83: 52.50444953 | K83: 1868 | L83: 47.49555047 | M83: 26.72260361 | N83: 49.68217646 | O83: 23.59521993 | P83: 38.18967709 | Q83: 38.21510297 | R83: 23.59521993 | S83: 7.5 | T83: 3.3 | U83: 54 | V83: 3.4 | W83: 38711.46691 | X83: 2.5 | Y83: Agriculture, Forestry and Fishing | Z83: 656 | AA83: Data not yet available | AB83: Data not yet available | AC83: Data not yet available | AD83: Data not yet available | AE83: * | AF83: * | AG83: * | AH83: * | AI83: * | AJ83: * | AK83: * | AL83: * | AM83: * | AN83: * | AO83: * | AP83: * | AQ83: * | AR83: * | AS83: * | AT83: * | AU83: * | AV83: * | AW83: * | AX83: * | AY83: * | AZ83: * | BA83: * | BB83: * | BC83: * | BD83: * | BE83: * | BF83: * | BG83: * | BH83: * | BI83: * | BJ83: * | BK83: * | BL83: * | BM83: * | BN83: * | BO83: * | BP83: * | BQ83: * | BR83: * | BS83: * | BT83: * | BU83: * | BV83: * | BW83: * | BX83: * | BY83: * | BZ83: Data not yet available | CA83: * | CB83: Data not yet available | CC83: Data not yet available | CD83: Data not yet available | CE83: Data not yet available | CF83: Data not yet available | CG83: Data not yet available | CH83: Data not yet available | CI83: 1336 | CJ83: 36.80227058 | CK83: 1714.31 | CL83: 435.8784643 | CM83: 186 | CN83: 3 | CO83: 9 | CP83: Data not yet available | CQ83: Data not yet available | CR83: * | CS83: * | CT83: * | CU83: * | CV83: * | CW83: Y | CX83: * | CY83: * | CZ83: * | DA83: * | DB83: * | DC83: * | DD83: 0 | DE83: 0 | DF83: 0 | DG83: - | DH83: - | DI83: - | DJ83: - | DK83: - | DL83: - | DM83: - | DN83: - | DO83: - | DP83: 86 | DQ83: 45.73255814
A84: Muswellbrook | B84: 11 | C84: Large Rural | D84: Hunter | E84: 3404.9 | F84: 16468 | G84: 0.8574228319 | H84: 4.8 | I84: 8448 | J84: 51.29948992 | K84: 8020 | L84: 48.70051008 | M84: 29.35997085 | N84: 53.49769249 | O84: 17.14233665 | P84: 42.87102259 | Q84: 39.98664076 | R84: 17.14233665 | S84: 8.3 | T84: 3.5 | U84: 22 | V84: 6 | W84: 68305.98995 | X84: 2.5 | Y84: Mining | Z84: 1032 | AA84: Data not yet available | AB84: Data not yet available | AC84: Data not yet available | AD84: Data not yet available | AE84: 8.12 | AF84: 5.2994 | AG84: 70.28 | AH84: 29.35305062 | AI84: 14.92 | AJ84: 4.9123 | AK84: 6.959463942 | AL84: 10.2844 | AM84: 41548 | AN84: 51596 | AO84: 4802 | AP84: 734.8125478 | AQ84: 6535 | AR84: 1282 | AS84: 2627.04918 | AT84: 488 | AU84: 1146 | AV84: 1878.688525 | AW84: 610 | AX84: 4780 | AY84: 298750 | AZ84: 16 | BA84: 102.0841674 | BB84: 13.2517215 | BC84: 5335 | BD84: 12.84056994 | BE84: 9172 | BF84: 22.07567151 | BG84: 7975 | BH84: 19.19466641 | BI84: 1897 | BJ84: 4.565803408 | BK84: 5314 | BL84: 12.79002599 | BM84: 9699 | BN84: 23.34408395 | BO84: 2156 | BP84: 5.189178781 | BQ84: 323.9616225 | BR84: 484.2725285 | BS84: 475.7711926 | BT84: 115.1931018 | BU84: 322.6864222 | BV84: 81.18775808 | BW84: 130.9205732 | BX84: 54.22637843 | BY84: 588.9604081 | BZ84: Data not yet available | CA84: 322.2647284 | CB84: Data not yet available | CC84: Data not yet available | CD84: Data not yet available | CE84: Data not yet available | CF84: Data not yet available | CG84: Data not yet available | CH84: Data not yet available | CI84: 6827 | CJ84: 43.48509934 | CK84: 619.53 | CL84: 37.62023318 | CM84: 358.16 | CN84: 2 | CO84: 2 | CP84: Data not yet available | CQ84: Data not yet available | CR84: 6028 | CS84: 7255 | CT84: 83.09 | CU84: 72.52 | CV84: 6.13 | CW84: Y | CX84: 21000 | CY84: 155000 | CZ84: 0 | DA84: 3515 | DB84: 0 | DC84: 234897 | DD84: 0 | DE84: 0 | DF84: 0 | DG84: 12 | DH84: 1372.333333 | DI84: 25 | DJ84: 75 | DK84: 8.333333333 | DL84: 0 | DM84: 0 | DN84: 92 | DO84: 8 | DP84: 186 | DQ84: 88.53763441
A85: Nambucca | B85: 11 | C85: Large Rural | E85: 1491.3 | F85: 19521 | G85: 1.486872888 | H85: 13.1 | I85: 9574 | J85: 49.04461862 | K85: 9947 | L85: 50.95538138 | M85: 22.44762051 | N85: 42.54392705 | O85: 35.00845244 | P85: 30.66953537 | Q85: 34.32201219 | R85: 35.00845244 | S85: 7.6 | T85: 2.4 | U85: 9 | V85: 6.6 | W85: 42498.1843 | X85: 2.3 | Y85: Health Care & Social Assistance | Z85: 1427 | AA85: Data not yet available | AB85: Data not yet available | AC85: Data not yet available | AD85: Data not yet available | AE85: 17.76 | AF85: 2.5106 | AG85: 68.15 | AH85: 31.4883989 | AI85: 5.11 | AJ85: 3.3737 | AK85: 13.85639563 | AL85: 10.9424 | AM85: 35473 | AN85: 46849 | AO85: 7954 | AP85: 955.2059565 | AQ85: 8327 | AR85: 931 | AS85: 1892.276423 | AT85: 492 | AU85: 1118 | AV85: 1882.154882 | AW85: 594 | AX85: 0 | AY85: 0 | AZ85: 0 | BA85: 137.1505959 | BB85: 30.47916416 | BC85: 1933 | BD85: 5.449214896 | BE85: 12452 | BF85: 35.10275421 | BG85: 6432 | BH85: 18.13210047 | BI85: 1528 | BJ85: 4.30750148 | BK85: 3249 | BL85: 9.159078736 | BM85: 8888 | BN85: 25.05567615 | BO85: 991 | BP85: 2.793674062 | BQ85: 99.02156652 | BR85: 329.491317 | BS85: 562.3175042 | BT85: 78.27467855 | BU85: 166.4361457 | BV85: 75.55965371 | BW85: 50.76584191 | BX85: 36.2174069 | BY85: 455.3045438 | BZ85: Data not yet available | CA85: 444.8180617 | CB85: Data not yet available | CC85: Data not yet available | CD85: Data not yet available | CE85: Data not yet available | CF85: Data not yet available | CG85: Data not yet available | CH85: Data not yet available | CI85: 3564 | CJ85: 60.54466955 | CK85: 709.275 | CL85: 36.33394806 | CM85: 515 | CN85: 1 | CO85: 15 | CP85: Data not yet available | CQ85: Data not yet available | CR85: 5056 | CS85: 5164 | CT85: 97.91 | CU85: 62.59 | CV85: 3.51 | CW85: Y | CX85: 36000 | CY85: 129000 | CZ85: 0 | DA85: 5000 | DB85: 0 | DC85: 227653 | DD85: 0 | DE85: 0 | DF85: 0 | DG85: 9 | DH85: 2169 | DI85: 44 | DJ85: 56 | DK85: 11.11111111 | DL85: 11 | DM85: 0 | DN85: 33 | DO85: 67 | DP85: 111 | DQ85: 175.8648649
A86: Narrabri | B86: 11 | C86: Large Rural | E86: 13015 | F86: 13481 | G86: 0.3199880935 | H86: 1 | I86: 6702 | J86: 49.71441288 | K86: 6779 | L86: 50.28558712 | M86: 27.86885246 | N86: 49.17291002 | O86: 22.95823752 | P86: 39.19590535 | Q86: 37.84585713 | R86: 22.95823752 | S86: 12.2 | T86: 1.8 | U86: 41 | V86: 6.5 | W86: 49238.73754 | X86: 2.5 | Y86: Agriculture, Forestry and Fishing | Z86: 1760 | AA86: Data not yet available | AB86: Data not yet available | AC86: Data not yet available | AD86: Data not yet available | AE86: 18.15 | AF86: 5.1562 | AG86: 58.82 | AH86: 41.17606039 | AI86: 7.64 | AJ86: 13.0843 | AK86: 2.899763 | AL86: 19.4766 | AM86: 41766 | AN86: 57361 | AO86: 4101 | AP86: 894.8287148 | AQ86: 4583 | AR86: 6048 | AS86: 3636.800962 | AT86: 1663 | AU86: 934 | AV86: 1630.017452 | AW86: 573 | AX86: 1038 | AY86: 207600 | AZ86: 5 | BA86: 155.3390337 | BB86: 19.98690814 | BC86: 6289 | BD86: 15.05770244 | BE86: 7354 | BF86: 17.60762343 | BG86: 3153 | BH86: 7.549202701 | BI86: 933 | BJ86: 2.233874443 | BK86: 6356 | BL86: 15.21812 | BM86: 14461 | BN86: 34.62385673 | BO86: 3220 | BP86: 7.709620265 | BQ86: 466.5084193 | BR86: 233.8847267 | BS86: 465.4699206 | BT86: 69.20851569 | BU86: 471.478377 | BV86: 80.03857281 | BW86: 238.8546844 | BX86: 48.36436466 | BY86: 1072.694904 | BZ86: Data not yet available | CA86: 426.5764783 | CB86: Data not yet available | CC86: Data not yet available | CD86: Data not yet available | CE86: Data not yet available | CF86: Data not yet available | CG86: Data not yet available | CH86: Data not yet available | CI86: 4996 | CJ86: 37.07015997 | CK86: 2306.43 | CL86: 171.0874564 | CM86: 351.17 | CN86: 4 | CO86: 3 | CP86: Data not yet available | CQ86: Data not yet available | CR86: 8826 | CS86: 7983 | CT86: 110.56 | CU86: 71.54 | CV86: 9.3 | CW86: Y | CX86: 82000 | CY86: 130000 | CZ86: 0 | DA86: 3000 | DB86: 0 | DC86: 248160 | DD86: 1 | DE86: 32568 | DF86: 1 | DG86: 9 | DH86: 1497.888889 | DI86: 44 | DJ86: 56 | DK86: 0 | DL86: 0 | DM86: 0 | DN86: 44 | DO86: 56 | DP86: 159 | DQ86: 84.78616352
A87: Narrandera | B87: 10 | C87: Large Rural | E87: 4116.4 | F87: 5976 | G87: -2.273098937 | H87: 1.5 | I87: 2972 | J87: 49.73226238 | K87: 3004 | L87: 50.26773762 | M87: 26.23828648 | N87: 46.26840696 | O87: 27.49330656 | P87: 36.07764391 | Q87: 36.42904953 | R87: 27.49330656 | S87: 9.7 | T87: 2.5 | U87: 23 | V87: 6.9 | W87: 43414.82054 | X87: 2.3 | Y87: Agriculture, Forestry and Fishing | Z87: 569 | AA87: Data not yet available | AB87: Data not yet available | AC87: Data not yet available | AD87: Data not yet available | AE87: 17.39 | AF87: 7.6259 | AG87: 52.17 | AH87: 47.61780105 | AI87: 7.47 | AJ87: 806.7 | AK87: 0.04572891897 | AL87: 23.3196 | AM87: 18066 | AN87: 22920 | AO87: 1370 | AP87: 696.49212 | AQ87: 1967 | AR87: 2752 | AS87: 3532.734275 | AT87: 779 | AU87: 393 | AV87: 1388.69258 | AW87: 283 | AX87: 0 | AY87: 0 | AZ87: 0 | BA87: 125.9263942 | BB87: 31.31672598 | BC87: 4029 | BD87: 22.30156094 | BE87: 3042 | BF87: 16.83825971 | BG87: 943 | BH87: 5.219749806 | BI87: 1313 | BJ87: 7.26779586 | BK87: 2099 | BL87: 11.61850991 | BM87: 5014 | BN87: 27.75379165 | BO87: 1626 | BP87: 9.000332116 | BQ87: 674.1967871 | BR87: 157.7978581 | BS87: 426.2048193 | BT87: 219.7121821 | BU87: 351.2382865 | BV87: 82.8313253 | BW87: 272.0883534 | BX87: 53.38018742 | BY87: 839.0227577 | BZ87: Data not yet available | CA87: 347.7376716 | CB87: Data not yet available | CC87: Data not yet available | CD87: Data not yet available | CE87: Data not yet available | CF87: Data not yet available | CG87: Data not yet available | CH87: Data not yet available | CI87: 2169 | CJ87: 45.03294475 | CK87: 1555.6 | CL87: 260.3078983 | CM87: 14.4 | CN87: 2 | CO87: 2 | CP87: Data not yet available | CQ87: Data not yet available | CR87: 3480 | CS87: 3552 | CT87: 97.97 | CU87: 75.62 | CV87: 7.04 | CW87: Y | CX87: 34000 | CY87: 124000 | CZ87: 0 | DA87: 22331 | DB87: 0 | DC87: 225539 | DD87: 0 | DE87: 0 | DF87: 0 | DG87: 9 | DH87: 664 | DI87: 56 | DJ87: 44 | DK87: 0 | DL87: 0 | DM87: 0 | DN87: 62 | DO87: 38 | DP87: 109 | DQ87: 54.82568807
A88: Narromine | B88: 10 | C88: Large Rural | D88: Orana | E88: 5261.5 | F88: 6599 | G88: -3.410421546 | H88: 1.3 | I88: 3315 | J88: 50.23488407 | K88: 3284 | L88: 49.76511593 | M88: 27.85270496 | N88: 45.53720261 | O88: 26.61009244 | P88: 38.15729656 | Q88: 35.232611 | R88: 26.61009244 | S88: 20 | T88: 1.2 | U88: 31 | V88: 3.3 | W88: 44660.97457 | X88: 2.5 | Y88: Agriculture, Forestry and Fishing | Z88: 954 | AA88: Data not yet available | AB88: Data not yet available | AC88: Data not yet available | AD88: Data not yet available | AE88: 18.72 | AF88: 5.3836 | AG88: 47.89 | AH88: 51.87993361 | AI88: 9.2 | AJ88: 19.9588 | AK88: 2.044524433 | AL88: 19.9328 | AM88: 18860 | AN88: 24510 | AO88: 1331 | AP88: 596.0591133 | AQ88: 2233 | AR88: 3116 | AS88: 3745.192308 | AT88: 832 | AU88: 536 | AV88: 1810.810811 | AW88: 296 | AX88: 261 | AY88: 130500 | AZ88: 2 | BA88: 109.893791 | BB88: 24.00358262 | BC88: 3195 | BD88: 16.94061506 | BE88: 3045 | BF88: 16.14528102 | BG88: 1461 | BH88: 7.746553552 | BI88: 1598 | BJ88: 8.472958643 | BK88: 1939 | BL88: 10.28101803 | BM88: 6597 | BN88: 34.97879109 | BO88: 1025 | BP88: 5.434782609 | BQ88: 484.1642673 | BR88: 221.3971814 | BS88: 357.1753296 | BT88: 242.1579027 | BU88: 293.8323988 | BV88: 104.2582209 | BW88: 155.3265646 | BX88: 72.73829368 | BY88: 999.6969238 | BZ88: Data not yet available | CA88: 389.6103896 | CB88: Data not yet available | CC88: Data not yet available | CD88: Data not yet available | CE88: Data not yet available | CF88: Data not yet available | CG88: Data not yet available | CH88: Data not yet available | CI88: 1327 | CJ88: 72.13355733 | CK88: 1571.79 | CL88: 238.1860888 | CM88: 60.1 | CN88: 2 | CO88: 5 | CP88: Data not yet available | CQ88: Data not yet available | CR88: 5307 | CS88: 4096 | CT88: 129.57 | CU88: 69.25 | CV88: 5.82 | CW88: Y | CX88: 25000 | CY88: 114000 | CZ88: 0 | DA88: 0 | DB88: 0 | DC88: 211042 | DD88: 2 | DE88: 1210 | DF88: 0 | DG88: 9 | DH88: 733.2222222 | DI88: 25 | DJ88: 75 | DK88: 0 | DL88: 0 | DM88: 0 | DN88: 38 | DO88: 62 | DP88: 81 | DQ88: 81.4691358
A89: Newcastle | B89: 5 | C89: Regional Town/City | D89: Hunter | E89: 186.8 | F89: 160919 | G89: 3.451623272 | H89: 861.7 | I89: 79768 | J89: 49.5702807 | K89: 81151 | L89: 50.4297193 | M89: 22.90158403 | N89: 56.48058961 | O89: 20.61782636 | P89: 40.50982171 | Q89: 38.87235193 | R89: 20.61782636 | S89: 3.5 | T89: 9.9 | U89: 96 | V89: 6.1 | W89: 57165.83081 | X89: 2.4 | Y89: Health Care & Social Assistance | Z89: 13054 | AA89: Data not yet available | AB89: Data not yet available | AC89: Data not yet available | AD89: Data not yet available | AE89: 3.46 | AF89: 2.486 | AG89: 84.34 | AH89: 15.57028523 | AI89: 4.16 | AJ89: 7.443 | AK89: 2.846569812 | AL89: 6.4245 | AM89: 264624 | AN89: 288935 | AO89: 76955 | AP89: 1219.011865 | AQ89: 63129 | AR89: 38 | AS89: 2111.111111 | AT89: 18 | AU89: 45580 | AV89: 10119.89343 | AW89: 4504 | AX89: 0 | AY89: 0 | AZ89: 0 | BA89: 173.1801592 | BB89: 18.19132253 | BC89: 59776 | BD89: 22.58903199 | BE89: 8129 | BF89: 3.071905798 | BG89: 59591 | BH89: 22.51912147 | BI89: 9710 | BJ89: 3.669357277 | BK89: 40138 | BL89: 15.16793639 | BM89: 47324 | BN89: 17.88348751 | BO89: 39956 | BP89: 15.09915956 | BQ89: 371.4663899 | BR89: 370.3167432 | BS89: 0 | BT89: 60.34091686 | BU89: 249.4298374 | BV89: 50.51609816 | BW89: 248.2988336 | BX89: 50.58445553 | BY89: 294.0858444 | BZ89: Data not yet available | CA89: 328.929652 | CB89: Data not yet available | CC89: Data not yet available | CD89: Data not yet available | CE89: Data not yet available | CF89: Data not yet available | CG89: Data not yet available | CH89: Data not yet available | CI89: 30308 | CJ89: 55.57835493 | CK89: 812.95 | CL89: 5.051920531 | CM89: 10395 | CN89: 3 | CO89: 16 | CP89: Data not yet available | CQ89: Data not yet available | CR89: 27675 | CS89: 23539 | CT89: 117.57 | CU89: 93.47 | CV89: 11.07 | CW89: Y | CX89: 55000 | CY89: 398000 | CZ89: 7378 | DA89: 6577 | DB89: 0 | DC89: 390974 | DD89: 12 | DE89: 85503 | DF89: 0 | DG89: 13 | DH89: 12378.38462 | DI89: 38 | DJ89: 62 | DK89: 0 | DL89: 0 | DM89: 8 | DN89: 92.30769231 | DO89: 0 | DP89: 940 | DQ89: 171.1904255
A90: North Sydney | B90: 3 | C90: Metropolitan | E90: 10.5 | F90: 72037 | G90: 7.925449833 | H90: 6870 | I90: 34309 | J90: 47.62691395 | K90: 37728 | L90: 52.37308605 | M90: 15.45178172 | N90: 65.45108764 | O90: 19.09713064 | P90: 32.62906562 | Q90: 48.27380374 | R90: 19.09713064 | S90: 0.3 | T90: 22.3 | U90: 127 | V90: 3 | W90: 95253.1696 | X90: 2 | Y90: Professional Scientific & Technical Services | Z90: 15768 | AA90: Data not yet available | AB90: Data not yet available | AC90: Data not yet available | AD90: Data not yet available | AE90: 7.66 | AF90: 3.5106 | AG90: 80.31 | AH90: 18.85078305 | AI90: 1.13 | AJ90: 84.3146 | AK90: 0.2762228808 | AL90: 7.8257 | AM90: 106152 | AN90: 133517 | AO90: 26333 | AP90: 751.1695573 | AQ90: 35056 | AR90: 0 | AS90: 0 | AT90: 0 | AU90: 14073 | AV90: 3695.640756 | AW90: 3808 | AX90: 0 | AY90: 0 | AZ90: 0 | BA90: 393.4241255 | BB90: 4.758101324 | BC90: 23335 | BD90: 21.98283577 | BE90: 9269 | BF90: 8.731900783 | BG90: 19167 | BH90: 18.05635368 | BI90: 9595 | BJ90: 9.039010466 | BK90: 22955 | BL90: 21.62485516 | BM90: 13962 | BN90: 13.15296135 | BO90: 7868 | BP90: 7.412082788 | BQ90: 323.9307578 | BR90: 266.0716021 | BS90: 0 | BT90: 133.1954412 | BU90: 318.6556908 | BV90: 128.669989 | BW90: 109.22165 | BX90: 46.53164346 | BY90: 193.8170662 | BZ90: Data not yet available | CA90: 297.8947969 | CB90: Data not yet available | CC90: Data not yet available | CD90: Data not yet available | CE90: Data not yet available | CF90: Data not yet available | CG90: Data not yet available | CH90: Data not yet available | CI90: 4188 | CJ90: 67.73000462 | CK90: 152.5 | CL90: 2.116967669 | CM90: 130.97 | CN90: 1 | CO90: 12 | CP90: Data not yet available | CQ90: Data not yet available | CR90: 8693 | CS90: 8734 | CT90: 99.53 | CU90: 144.87 | CV90: 0 | CW90: Y | CX90: 27000 | CY90: 303000 | CZ90: 0 | DA90: 19655 | DB90: 0 | DC90: 388206 | DD90: 4 | DE90: 14102 | DF90: 2 | DG90: 15 | DH90: 4802.466667 | DI90: 60 | DJ90: 40 | DK90: 0 | DL90: 0 | DM90: 10 | DN90: 70 | DO90: 20 | DP90: 389 | DQ90: 185.18509
A91: Northern Beaches | B91: 3 | C91: Metropolitan | E91: 254.2 | F91: 266344 | G91: 5.819719026 | H91: 1047.7 | I91: 131044 | J91: 49.20103325 | K91: 135300 | L91: 50.79896675 | M91: 25.29398072 | N91: 53.26194696 | O91: 21.44407233 | P91: 36.41944253 | Q91: 42.13648515 | R91: 21.44407233 | S91: 0.6 | T91: 15.1 | U91: 121 | V91: 2.2 | W91: 77056.16229 | X91: 2.7 | Y91: Professional Scientific & Technical Services | Z91: 31943 | AA91: Data not yet available | AB91: Data not yet available | AC91: Data not yet available | AD91: Data not yet available | AE91: * | AF91: * | AG91: * | AH91: * | AI91: * | AJ91: * | AK91: * | AL91: * | AM91: * | AN91: * | AO91: * | AP91: * | AQ91: * | AR91: * | AS91: * | AT91: * | AU91: * | AV91: * | AW91: * | AX91: * | AY91: * | AZ91: * | BA91: * | BB91: * | BC91: * | BD91: * | BE91: * | BF91: * | BG91: * | BH91: * | BI91: * | BJ91: * | BK91: * | BL91: * | BM91: * | BN91: * | BO91: * | BP91: * | BQ91: * | BR91: * | BS91: * | BT91: * | BU91: * | BV91: * | BW91: * | BX91: * | BY91: * | BZ91: Data not yet available | CA91: * | CB91: Data not yet available | CC91: Data not yet available | CD91: Data not yet available | CE91: Data not yet available | CF91: Data not yet available | CG91: Data not yet available | CH91: Data not yet available | CI91: 26923 | CJ91: 65.85888559 | CK91: 850.8 | CL91: 3.194365182 | CM91: 2397.05 | CN91: 25 | CO91: 41 | CP91: Data not yet available | CQ91: Data not yet available | CR91: * | CS91: * | CT91: * | CU91: * | CV91: * | CW91: Y | CX91: * | CY91: * | CZ91: * | DA91: * | DB91: * | DC91: * | DD91: 2 | DE91: 14020 | DF91: 0 | DG91: - | DH91: - | DI91: - | DJ91: - | DK91: - | DL91: - | DM91: - | DN91: - | DO91: - | DP91: 1185 | DQ91: 224.7628692
A92: Oberon | B92: 10 | C92: Large Rural | D92: Central NSW | E92: 3625.1 | F92: 5399 | G92: 3.647533116 | H92: 1.5 | I92: 2829 | J92: 52.39859233 | K92: 2570 | L92: 47.60140767 | M92: 24.68975736 | N92: 46.95313947 | O92: 28.35710317 | P92: 36.22893128 | Q92: 35.41396555 | R92: 28.35710317 | S92: 3.3 | T92: 3.4 | U92: 59 | V92: 3.4 | W92: 51208.16681 | X92: 2.4 | Y92: Manufacturing | Z92: 667 | AA92: Data not yet available | AB92: Data not yet available | AC92: Data not yet available | AD92: Data not yet available | AE92: 20.86 | AF92: 4.5859 | AG92: 63.79 | AH92: 36.12590444 | AI92: 7.68 | AJ92: 12.0974 | AK92: 3.259286909 | AL92: 11.7852 | AM92: 15019 | AN92: 19453 | AO92: 1713 | AP92: 768.6886496 | AQ92: 2229 | AR92: 1776 | AS92: 1544.08087 | AT92: 1150 | AU92: 191 | AV92: 850.5803571 | AW92: 224 | AX92: 0 | AY92: 0 | AZ92: 0 | BA92: 223.6534518 | BB92: 18.30417227 | BC92: 1096 | BD92: 7.299514749 | BE92: 3142 | BF92: 20.92296903 | BG92: 1078 | BH92: 7.177077114 | BI92: 1465 | BJ92: 9.752072652 | BK92: 1099 | BL92: 7.316080343 | BM92: 6625 | BN92: 44.11450859 | BO92: 513 | BP92: 3.417777524 | BQ92: 203.0005557 | BR92: 199.6666049 | BS92: 406.1089091 | BT92: 271.3465457 | BU92: 203.5562141 | BV92: 175.9036859 | BW92: 95.01759585 | BX92: 34.43711798 | BY92: 1227.079089 | BZ92: Data not yet available | CA92: 99.55271422 | CB92: Data not yet available | CC92: Data not yet available | CD92: Data not yet available | CE92: Data not yet available | CF92: Data not yet available | CG92: Data not yet available | CH92: Data not yet available | CI92: 3065 | CJ92: 34.12851923 | CK92: 938.28 | CL92: 173.7877385 | CM92: 29.5 | CN92: 1 | CO92: 1 | CP92: Data not yet available | CQ92: Data not yet available | CR92: 2310 | CS92: 2464 | CT92: 93.78 | CU92: 219.66 | CV92: 3.69 | CW92: Y | CX92: 27903 | CY92: 112109 | CZ92: 0 | DA92: 28000 | DB92: 0 | DC92: 239483 | DD92: 0 | DE92: 0 | DF92: 0 | DG92: 9 | DH92: 599.8888889 | DI92: 33.33333333 | DJ92: 66.66666667 | DK92: 11.11111111 | DL92: 0 | DM92: 0 | DN92: 22.22222222 | DO92: 77.77777778 | DP92: 76 | DQ92: 71.03947368
A93: Orange | B93: 4 | C93: Regional Town/City | D93: Central NSW | E93: 284.2 | F93: 41384 | G93: 4.984905756 | H93: 145.6 | I93: 20194 | J93: 48.79663638 | K93: 21190 | L93: 51.20336362 | M93: 28.10506476 | N93: 50.5726851 | O93: 21.32225014 | P93: 41.03276629 | Q93: 37.64498357 | R93: 21.32225014 | S93: 6.3 | T93: 6 | U93: 77 | V93: 4.3 | W93: 54881.60041 | X93: 2.5 | Y93: Health Care & Social Assistance | Z93: 3385 | AA93: Data not yet available | AB93: Data not yet available | AC93: Data not yet available | AD93: Data not yet available | AE93: 11.72 | AF93: 1.6444 | AG93: 67.46 | AH93: 32.27270979 | AI93: 5.7 | AJ93: 6.9311 | AK93: 4.513229928 | AL93: 13.6267 | AM93: 85500 | AN93: 119603 | AO93: 21362 | AP93: 1278.39617 | AQ93: 16710 | AR93: 664 | AS93: 1770.666667 | AT93: 375 | AU93: 7451 | AV93: 5767.027864 | AW93: 1292 | AX93: 0 | AY93: 0 | AZ93: 0 | BA93: 95.49758608 | BB93: 16.66068223 | BC93: 5500 | BD93: 6.432310794 | BE93: 26912 | BF93: 31.47617065 | BG93: 11864 | BH93: 13.87608831 | BI93: 11178 | BJ93: 13.07374537 | BK93: 13931 | BL93: 16.29364348 | BM93: 11340 | BN93: 13.26321994 | BO93: 4775 | BP93: 5.584821449 | BQ93: 132.9016045 | BR93: 286.6808428 | BS93: 535.8351054 | BT93: 270.1043882 | BU93: 336.6276822 | BV93: 114.4645274 | BW93: 115.3827566 | BX93: 50.69592113 | BY93: 274.0189445 | BZ93: Data not yet available | CA93: 410.7719928 | CB93: Data not yet available | CC93: Data not yet available | CD93: Data not yet available | CE93: Data not yet available | CF93: Data not yet available | CG93: Data not yet available | CH93: Data not yet available | CI93: 11294 | CJ93: 57.28441755 | CK93: 488.905 | CL93: 11.81386526 | CM93: 630.956 | CN93: 1 | CO93: 9 | CP93: Data not yet available | CQ93: Data not yet available | CR93: 5033 | CS93: 15744 | CT93: 31.97 | CU93: 8.87 | CV93: 3.91 | CW93: Y | CX93: 99000 | CY93: 267000 | CZ93: 0 | DA93: 21000 | DB93: 1000 | DC93: 338164 | DD93: 18 | DE93: 39644 | DF93: 11 | DG93: 12 | DH93: 3448.666667 | DI93: 8 | DJ93: 92 | DK93: 0 | DL93: 0 | DM93: 0 | DN93: 75 | DO93: 25 | DP93: 385 | DQ93: 107.4909091
A94: Parkes | B94: 11 | C94: Large Rural | D94: Central NSW | E94: 5957.6 | F94: 14946 | G94: -0.9083073659 | H94: 2.5 | I94: 7368 | J94: 49.2974709 | K94: 7578 | L94: 50.7025291 | M94: 27.58597618 | N94: 47.0293055 | O94: 25.38471832 | P94: 38.51197645 | Q94: 36.10330523 | R94: 25.38471832 | S94: 10.1 | T94: 2.8 | U94: 28 | V94: 6.2 | W94: 48968.37952 | X94: 2.4 | Y94: Retail Trade | Z94: 1422 | AA94: Data not yet available | AB94: Data not yet available | AC94: Data not yet available | AD94: Data not yet available | AE94: 8.03 | AF94: 3.2105 | AG94: 46.43 | AH94: 53.53325889 | AI94: 6.41 | AJ94: 4.8363 | AK94: 7.155763579 | AL94: 13.7817 | AM94: 43058 | AN94: 68959 | AO94: 5177 | AP94: 885.1085656 | AQ94: 5849 | AR94: 3639 | AS94: 2551.893408 | AT94: 1426 | AU94: 2675 | AV94: 3980.654762 | AW94: 672 | AX94: 1332 | AY94: 666000 | AZ94: 2 | BA94: 69.77180145 | BB94: 21.98666439 | BC94: 6188 | BD94: 14.37131311 | BE94: 11267 | BF94: 26.16703052 | BG94: 3297 | BH94: 7.657113661 | BI94: 2503 | BJ94: 5.813089321 | BK94: 5588 | BL94: 12.97784384 | BM94: 9522 | BN94: 22.11435738 | BO94: 4693 | BP94: 10.89925217 | BQ94: 414.0238191 | BR94: 220.5941389 | BS94: 622.1062492 | BT94: 167.4695571 | BU94: 373.8792988 | BV94: 131.740934 | BW94: 313.9970561 | BX94: 58.47718453 | BY94: 637.0935367 | BZ94: Data not yet available | CA94: 333.3903231 | CB94: Data not yet available | CC94: Data not yet available | CD94: Data not yet available | CE94: Data not yet available | CF94: Data not yet available | CG94: Data not yet available | CH94: Data not yet available | CI94: 5791 | CJ94: 33.32181923 | CK94: 2171.894 | CL94: 145.3160712 | CM94: 209.25 | CN94: 4 | CO94: 14 | CP94: Data not yet available | CQ94: Data not yet available | CR94: 6923 | CS94: 6020 | CT94: 115 | CU94: 95.37 | CV94: 1.42 | CW94: Y | CX94: 82000 | CY94: 135000 | CZ94: 0 | DA94: 4000 | DB94: 0 | DC94: 230952 | DD94: 0 | DE94: 0 | DF94: 0 | DG94: 10 | DH94: 1494.6 | DI94: 30 | DJ94: 70 | DK94: 10 | DL94: 0 | DM94: 0 | DN94: 40 | DO94: 60 | DP94: 186 | DQ94: 80.35483871
A95: Parramatta (new) | B95: 3 | C95: Metropolitan | E95: 83.8 | F95: 234968 | G95: 15.63101302 | H95: 2802.9 | I95: 118367 | J95: 50.37579585 | K95: 116601 | L95: 49.62420415 | M95: 23.58916959 | N95: 60.00646897 | O95: 16.40436144 | P95: 40.11950563 | Q95: 43.47613292 | R95: 16.40436144 | S95: 0.8 | T95: 52 | U95: 112 | V95: 3.6 | W95: 58972.56389 | X95: 2.8 | Y95: Health Care & Social Assistance | Z95: 24519 | AA95: Data not yet available | AB95: Data not yet available | AC95: Data not yet available | AD95: Data not yet available | AE95: * | AF95: * | AG95: * | AH95: * | AI95: * | AJ95: * | AK95: * | AL95: * | AM95: * | AN95: * | AO95: * | AP95: * | AQ95: * | AR95: * | AS95: * | AT95: * | AU95: * | AV95: * | AW95: * | AX95: * | AY95: * | AZ95: * | BA95: * | BB95: * | BC95: * | BD95: * | BE95: * | BF95: * | BG95: * | BH95: * | BI95: * | BJ95: * | BK95: * | BL95: * | BM95: * | BN95: * | BO95: * | BP95: * | BQ95: * | BR95: * | BS95: * | BT95: * | BU95: * | BV95: * | BW95: * | BX95: * | BY95: * | BZ95: Data not yet available | CA95: * | CB95: Data not yet available | CC95: Data not yet available | CD95: Data not yet available | CE95: Data not yet available | CF95: Data not yet available | CG95: Data not yet available | CH95: Data not yet available | CI95: 20290 | CJ95: 52.7392155 | CK95: 660.453 | CL95: 2.810821048 | CM95: 868.75 | CN95: 4 | CO95: 21 | CP95: Data not yet available | CQ95: Data not yet available | CR95: * | CS95: * | CT95: * | CU95: * | CV95: * | CW95: Y | CX95: * | CY95: * | CZ95: * | DA95: * | DB95: * | DC95: * | DD95: 4 | DE95: 3428 | DF95: 0 | DG95: - | DH95: - | DI95: - | DJ95: - | DK95: - | DL95: - | DM95: - | DN95: - | DO95: - | DP95: 1029 | DQ95: 228.345967
A96: Penrith | B96: 7 | C96: Metropolitan Fringe | E96: 404.7 | F96: 201400 | G96: 9.107259913 | H96: 497.7 | I96: 100160 | J96: 49.73187686 | K96: 101240 | L96: 50.26812314 | M96: 28.07994042 | N96: 55.61320755 | O96: 16.30685204 | P96: 43.61866931 | Q96: 40.07447865 | R96: 16.30685204 | S96: 4 | T96: 16.9 | U96: 93 | V96: 4.4 | W96: 55148.43082 | X96: 2.9 | Y96: Manufacturing | Z96: 13532 | AA96: Data not yet available | AB96: Data not yet available | AC96: Data not yet available | AD96: Data not yet available | AE96: 7.41 | AF96: 2.4686 | AG96: 71.89 | AH96: 27.88259715 | AI96: 3.01 | AJ96: 3.1583 | AK96: 6.474496115 | AL96: 6.4867 | AM96: 207114 | AN96: 259176 | AO96: 81674 | AP96: 1198.110578 | AQ96: 68169 | AR96: 1458 | AS96: 3398.601399 | AT96: 429 | AU96: 20071 | AV96: 7450.259837 | AW96: 2694 | AX96: 0 | AY96: 0 | AZ96: 0 | BA96: 235.5090195 | BB96: 14.5960774 | BC96: 42135 | BD96: 20.34386859 | BE96: 10499 | BF96: 5.069188949 | BG96: 37620 | BH96: 18.16390973 | BI96: 34510 | BJ96: 16.66232123 | BK96: 34320 | BL96: 16.57058432 | BM96: 35617 | BN96: 17.19680949 | BO96: 12413 | BP96: 5.99331769 | BQ96: 209.2105263 | BR96: 186.7924528 | BS96: 0 | BT96: 171.3505462 | BU96: 170.40715 | BV96: 52.13008937 | BW96: 61.63356504 | BX96: 34.44885799 | BY96: 176.8470705 | BZ96: Data not yet available | CA96: 424.5038067 | CB96: Data not yet available | CC96: Data not yet available | CD96: Data not yet available | CE96: Data not yet available | CF96: Data not yet available | CG96: Data not yet available | CH96: Data not yet available | CI96: 47524 | CJ96: 48.37826682 | CK96: 1090.53 | CL96: 5.414746773 | CM96: 880 | CN96: 2 | CO96: 42 | CP96: Data not yet available | CQ96: Data not yet available | CR96: 20860 | CS96: 20710 | CT96: 100.72 | CU96: 44.97 | CV96: 1.09 | CW96: Y | CX96: 136000 | CY96: 499000 | CZ96: 0 | DA96: 26000 | DB96: 23000 | DC96: 437189 | DD96: 1 | DE96: 20000 | DF96: 0 | DG96: 15 | DH96: 13426.66667 | DI96: 20 | DJ96: 80 | DK96: 0 | DL96: 0 | DM96: 14 | DN96: 60 | DO96: 26 | DP96: 988 | DQ96: 203.8461538
A97: Port Macquarie-Hastings | B97: 5 | C97: Regional Town/City | D97: Mid North Coast | E97: 3683 | F97: 79905 | G97: 6.211452573 | H97: 21.7 | I97: 38501 | J97: 48.18346787 | K97: 41404 | L97: 51.81653213 | M97: 22.88592704 | N97: 43.54045429 | O97: 33.57361867 | P97: 31.55246856 | Q97: 34.87391277 | R97: 33.57361867 | S97: 4 | T97: 3.1 | U97: 68 | V97: 3.8 | W97: 47603.80002 | X97: 2.3 | Y97: Health Care & Social Assistance | Z97: 6340 | AA97: Data not yet available | AB97: Data not yet available | AC97: Data not yet available | AD97: Data not yet available | AE97: 9.93 | AF97: 2.0198 | AG97: 56.28 | AH97: 43.72339136 | AI97: 4.85 | AJ97: 4.5942 | AK97: 8.942210962 | AL97: 25.3053 | AM97: 148999 | AN97: 247570 | AO97: 35230 | AP97: 1074.839064 | AQ97: 32777 | AR97: 2267 | AS97: 1862.777321 | AT97: 1217 | AU97: 7267 | AV97: 3495.430495 | AW97: 2079 | AX97: 0 | AY97: 0 | AZ97: 0 | BA97: 192.1657341 | BB97: 29.46578393 | BC97: 4358 | BD97: 2.924851845 | BE97: 51688 | BF97: 34.69016571 | BG97: 26355 | BH97: 17.68803817 | BI97: 7391 | BJ97: 4.960435976 | BK97: 16795 | BL97: 11.27188773 | BM97: 35052 | BN97: 23.5249901 | BO97: 7360 | BP97: 4.939630467 | BQ97: 54.53976597 | BR97: 329.8291721 | BS97: 595.2068081 | BT97: 92.49734059 | BU97: 210.1870972 | BV97: 51.66134785 | BW97: 92.10937989 | BX97: 31.42481697 | BY97: 438.6709217 | BZ97: Data not yet available | CA97: 358.3915551 | CB97: Data not yet available | CC97: Data not yet available | CD97: Data not yet available | CE97: Data not yet available | CF97: Data not yet available | CG97: Data not yet available | CH97: Data not yet available | CI97: 4559 | CJ97: 87.67571367 | CK97: 1333.89169 | CL97: 16.69346962 | CM97: 745.2 | CN97: 6 | CO97: 19 | CP97: Data not yet available | CQ97: Data not yet available | CR97: 16854 | CS97: 19185 | CT97: 87.85 | CU97: 5.33 | CV97: 5.62 | CW97: Y | CX97: 50000 | CY97: 204000 | CZ97: 0 | DA97: 3000 | DB97: 0 | DC97: 310256 | DD97: 0 | DE97: 0 | DF97: 0 | DG97: 9 | DH97: 8878.333333 | DI97: 33 | DJ97: 66 | DK97: 0 | DL97: 0 | DM97: 0 | DN97: 77.77777778 | DO97: 22.22222222 | DP97: 517 | DQ97: 154.5551257
A98: Port Stephens | B98: 5 | C98: Regional Town/City | D98: Hunter | E98: 858.4 | F98: 71118 | G98: 5.808313744 | H98: 82.8 | I98: 35266 | J98: 49.58800866 | K98: 35852 | L98: 50.41199134 | M98: 24.42138418 | N98: 46.80249726 | O98: 28.77611856 | P98: 34.88146461 | Q98: 36.34241683 | R98: 28.77611856 | S98: 4.8 | T98: 3.4 | U98: 70 | V98: 4.3 | W98: 52253.9113 | X98: 2.5 | Y98: Retail Trade | Z98: 4653 | AA98: Data not yet available | AB98: Data not yet available | AC98: Data not yet available | AD98: Data not yet available | AE98: 6.51 | AF98: 3.3121 | AG98: 76.57 | AH98: 23.29109459 | AI98: 2.8 | AJ98: 6.3506 | AK98: 3.195485417 | AL98: 5.7541 | AM98: 109511 | AN98: 132227 | AO98: 30300 | AP98: 968.5462217 | AQ98: 31284 | AR98: 836 | AS98: 1702.647658 | AT98: 491 | AU98: 7313 | AV98: 4047.039292 | AW98: 1807 | AX98: 0 | AY98: 0 | AZ98: 0 | BA98: 175.5547942 | BB98: 18.87866002 | BC98: 24570 | BD98: 22.43588522 | BE98: 5085 | BF98: 4.643382155 | BG98: 20411 | BH98: 18.63836247 | BI98: 7186 | BJ98: 6.561916257 | BK98: 8556 | BL98: 7.812935638 | BM98: 27046 | BN98: 24.69713152 | BO98: 16657 | BP98: 15.21038674 | BQ98: 345.4821564 | BR98: 287.0018842 | BS98: 0 | BT98: 101.0433364 | BU98: 120.3070953 | BV98: 71.50088585 | BW98: 234.2163728 | BX98: 25.3522315 | BY98: 380.2975337 | BZ98: Data not yet available | CA98: 393.2681243 | CB98: Data not yet available | CC98: Data not yet available | CD98: Data not yet available | CE98: Data not yet available | CF98: Data not yet available | CG98: Data not yet available | CH98: Data not yet available | CI98: 17928 | CJ98: 55.22701164 | CK98: 726.94 | CL98: 10.22160353 | CM98: 910 | CN98: 5 | CO98: 23 | CP98: Data not yet available | CQ98: Data not yet available | CR98: 11095 | CS98: 11887 | CT98: 93.34 | CU98: 99.79 | CV98: 1.92 | CW98: Y | CX98: 71114 | CY98: 230000 | CZ98: 0 | DA98: 23897 | DB98: 0 | DC98: 319161 | DD98: 3 | DE98: 7195 | DF98: 6 | DG98: 10 | DH98: 7111.8 | DI98: 20 | DJ98: 80 | DK98: 0 | DL98: 0 | DM98: 10 | DN98: 70 | DO98: 20 | DP98: 408 | DQ98: 174.3088235
A99: Queanbeyan-Palerang Regional | B99: 4 | C99: Regional Town/City | D99: Canberra | E99: 5318.9 | F99: 58128 | G99: 5.987892933 | H99: 10.9 | I99: 29211 | J99: 50.25289017 | K99: 28917 | L99: 49.74710983 | M99: 26.23004404 | N99: 56.62159372 | O99: 17.14836224 | P99: 39.37345169 | Q99: 43.47818607 | R99: 17.14836224 | S99: 3.1 | T99: 12.1 | U99: 110 | V99: 2.2 | W99: 65442.86251 | X99: 2.6 | Y99: Public Administration & Safety | Z99: 4574 | AA99: Data not yet available | AB99: Data not yet available | AC99: Data not yet available | AD99: Data not yet available | AE99: * | AF99: * | AG99: * | AH99: * | AI99: * | AJ99: * | AK99: * | AL99: * | AM99: * | AN99: * | AO99: * | AP99: * | AQ99: * | AR99: * | AS99: * | AT99: * | AU99: * | AV99: * | AW99: * | AX99: * | AY99: * | AZ99: * | BA99: * | BB99: * | BC99: * | BD99: * | BE99: * | BF99: * | BG99: * | BH99: * | BI99: * | BJ99: * | BK99: * | BL99: * | BM99: * | BN99: * | BO99: * | BP99: * | BQ99: * | BR99: * | BS99: * | BT99: * | BU99: * | BV99: * | BW99: * | BX99: * | BY99: * | BZ99: Data not yet available | CA99: * | CB99: Data not yet available | CC99: Data not yet available | CD99: Data not yet available | CE99: Data not yet available | CF99: Data not yet available | CG99: Data not yet available | CH99: Data not yet available | CI99: 12871 | CJ99: 56.10013984 | CK99: 1645.2 | CL99: 28.30305533 | CM99: 760.8 | CN99: 4 | CO99: 13 | CP99: Data not yet available | CQ99: Data not yet available | CR99: * | CS99: * | CT99: * | CU99: * | CV99: * | CW99: Y | CX99: * | CY99: * | CZ99: * | DA99: * | DB99: * | DC99: * | DD99: 0 | DE99: 0 | DF99: 0 | DG99: - | DH99: - | DI99: - | DJ99: - | DK99: - | DL99: - | DM99: - | DN99: - | DO99: - | DP99: 421 | DQ99: 138.0712589
A100: Randwick | B100: 3 | C100: Metropolitan | E100: 36.3 | F100: 149276 | G100: 8.334300975 | H100: 4108.8 | I100: 74010 | J100: 49.57930277 | K100: 75266 | L100: 50.42069723 | M100: 20.73541628 | N100: 61.7862215 | O100: 17.47836223 | P100: 41.82922908 | Q100: 40.69240869 | R100: 17.47836223 | S100: 1.5 | T100: 32.1 | U100: 117 | V100: 3.5 | W100: 71282.52928 | X100: 2.5 | Y100: Health Care & Social Assistance | Z100: 12718 | AA100: Data not yet available | AB100: Data not yet available | AC100: Data not yet available | AD100: Data not yet available | AE100: 3.71 | AF100: 3.345 | AG100: 89.55 | AH100: 10.42845491 | AI100: 2.84 | AJ100: 0 | AK100: 0 | AL100: 3.7543 | AM100: 147034 | AN100: 156936 | AO100: 59999 | AP100: 1204.484773 | AQ100: 49813 | AR100: 0 | AS100: 0 | AT100: 0 | AU100: 14294 | AV100: 6822.911695 | AW100: 2095 | AX100: 0 | AY100: 0 | AZ100: 0 | BA100: 520.1112756 | BB100: 8.907313352 | BC100: 7651 | BD100: 5.203558361 | BE100: 8725 | BF100: 5.934001659 | BG100: 46409 | BH100: 31.56344791 | BI100: 22918 | BJ100: 15.58687106 | BK100: 34056 | BL100: 23.16198974 | BM100: 24254 | BN100: 16.49550444 | BO100: 3021 | BP100: 2.054626821 | BQ100: 51.2540529 | BR100: 310.8939146 | BS100: 0 | BT100: 153.5276937 | BU100: 228.1411613 | BV100: 58.44877944 | BW100: 20.23768054 | BX100: 57.04868834 | BY100: 162.4775583 | BZ100: Data not yet available | CA100: 629.8556602 | CB100: Data not yet available | CC100: Data not yet available | CD100: Data not yet available | CE100: Data not yet available | CF100: Data not yet available | CG100: Data not yet available | CH100: Data not yet available | CI100: 10844 | CJ100: 62.42289833 | CK100: 302.9 | CL100: 2.029127254 | CM100: 785 | CN100: 9 | CO100: 12 | CP100: Data not yet available | CQ100: Data not yet available | CR100: 11289 | CS100: 7293 | CT100: 154.79 | CU100: 107.03 | CV100: 0.64 | CW100: Y | CX100: 121000 | CY100: 424090 | CZ100: 0 | DA100: 45301 | DB100: 6035 | DC100: 441173 | DD100: 1 | DE100: 14000 | DF100: 0 | DG100: 15 | DH100: 9951.733333 | DI100: 33 | DJ100: 67 | DK100: 0 | DL100: 0 | DM100: 7 | DN100: 80 | DO100: 13.33333333 | DP100: 501 | DQ100: 297.9560878
A101: Richmond Valley | B101: 4 | C101: Regional Town/City | D101: Northern Rivers | E101: 3047.4 | F101: 23164 | G101: 1.967689396 | H101: 7.6 | I101: 11504 | J101: 49.66327059 | K101: 11660 | L101: 50.33672941 | M101: 26.68796408 | N101: 44.77206009 | O101: 28.53997582 | P101: 36.59557935 | Q101: 34.86444483 | R101: 28.53997582 | S101: 7.2 | T101: 1.7 | U101: 6 | V101: 7.5 | W101: 42352.76002 | X101: 2.4 | Y101: Manufacturing | Z101: 1661 | AA101: Data not yet available | AB101: Data not yet available | AC101: Data not yet available | AD101: Data not yet available | AE101: 7.5 | AF101: 3.48 | AG101: 68.13 | AH101: 31.63944879 | AI101: 14.94 | AJ101: 5.02 | AK101: 6.707199754 | AL101: 6.9 | AM101: 48951 | AN101: 56458 | AO101: 6915 | AP101: 825.5730659 | AQ101: 8376 | AR101: 2179 | AS101: 1418.619792 | AT101: 1536 | AU101: 1432 | AV101: 2146.926537 | AW101: 667 | AX101: 0 | AY101: 0 | AZ101: 0 | BA101: 140.3382975 | BB101: 27.10124164 | BC101: 2039 | BD101: 4.074821639 | BE101: 15641 | BF101: 31.25761906 | BG101: 6673 | BH101: 13.33559823 | BI101: 3009 | BJ101: 6.013309618 | BK101: 4809 | BL101: 9.610503807 | BM101: 15130 | BN101: 30.2364156 | BO101: 2738 | BP101: 5.471732049 | BQ101: 88.02452081 | BR101: 288.0763253 | BS101: 552.2793991 | BT101: 129.8998446 | BU101: 207.606631 | BV101: 122.9494042 | BW101: 118.2006562 | BX101: 52.53842169 | BY101: 653.1687101 | BZ101: Data not yet available | CA101: 363.4192932 | CB101: Data not yet available | CC101: Data not yet available | CD101: Data not yet available | CE101: Data not yet available | CF101: Data not yet available | CG101: Data not yet available | CH101: Data not yet available | CI101: 3628 | CJ101: 68.8021326 | CK101: 1084.35 | CL101: 46.81186324 | CM101: 490.95 | CN101: 4 | CO101: 17 | CP101: Data not yet available | CQ101: Data not yet available | CR101: 5016 | CS101: 4406 | CT101: 113.84 | CU101: 73.78 | CV101: 3.4 | CW101: Y | CX101: 19000 | CY101: 101000 | CZ101: 0 | DA101: 3263 | DB101: 923 | DC101: 258648 | DD101: 0 | DE101: 0 | DF101: 0 | DG101: 7 | DH101: 3309.142857 | DI101: 29 | DJ101: 71 | DK101: 0 | DL101: 0 | DM101: 14 | DN101: 72 | DO101: 14 | DP101: 253 | DQ101: 91.55731225
A102: Ryde | B102: 3 | C102: Metropolitan | E102: 40.5 | F102: 121807 | G102: 12.04558834 | H102: 3009.5 | I102: 59651 | J102: 48.97173397 | K102: 62156 | L102: 51.02826603 | M102: 21.71303784 | N102: 59.50068551 | O102: 18.78627665 | P102: 39.73170672 | Q102: 41.48201663 | R102: 18.78627665 | S102: 0.4 | T102: 48.1 | U102: 115 | V102: 5.7 | W102: 63594.32358 | X102: 2.7 | Y102: Professional Scientific & Technical Services | Z102: 11920 | AA102: Data not yet available | AB102: Data not yet available | AC102: Data not yet available | AD102: Data not yet available | AE102: 11.47 | AF102: 3.436 | AG102: 75.83 | AH102: 23.77807856 | AI102: 3.62 | AJ102: 28.7062 | AK102: 0.8494724641 | AL102: 15.9206 | AM102: 106706 | AN102: 146286 | AO102: 32228 | AP102: 740.7629031 | AQ102: 43507 | AR102: 0 | AS102: 0 | AT102: 0 | AU102: 24860 | AV102: 13272.62594 | AW102: 1873 | AX102: 0 | AY102: 0 | AZ102: 0 | BA102: 360.3876542 | BB102: 12.05093433 | BC102: 26013 | BD102: 24.37819804 | BE102: 6139 | BF102: 5.753191011 | BG102: 22039 | BH102: 20.65394636 | BI102: 14304 | BJ102: 13.40505689 | BK102: 22407 | BL102: 20.99881919 | BM102: 13684 | BN102: 12.82402114 | BO102: 2120 | BP102: 1.98676738 | BQ102: 213.5591551 | BR102: 180.9337723 | BS102: 0 | BT102: 117.4316747 | BU102: 183.9549451 | BV102: 50.39940233 | BW102: 17.40458266 | BX102: 47.11551881 | BY102: 112.3416552 | BZ102: Data not yet available | CA102: 440.2050245 | CB102: Data not yet available | CC102: Data not yet available | CD102: Data not yet available | CE102: Data not yet available | CF102: Data not yet available | CG102: Data not yet available | CH102: Data not yet available | CI102: 9018 | CJ102: 60.59944075 | CK102: 318.49 | CL102: 2.614710156 | CM102: 764.04 | CN102: 1 | CO102: 13 | CP102: Data not yet available | CQ102: Data not yet available | CR102: 18986 | CS102: 20428 | CT102: 92.94 | CU102: 135.5 | CV102: 2.7 | CW102: Y | CX102: 45000 | CY102: 316000 | CZ102: 0 | DA102: 10843 | DB102: 0 | DC102: 375735 | DD102: 3 | DE102: 24235 | DF102: 2 | DG102: 12 | DH102: 10150.58333 | DI102: 17 | DJ102: 83 | DK102: 0 | DL102: 0 | DM102: 16.66666667 | DN102: 66 | DO102: 16.66666667 | DP102: 461 | DQ102: 264.2234273
A103: Shellharbour | B103: 5 | C103: Regional Town/City | D103: Illawarra Shoalhaven | E103: 147.4 | F103: 70511 | G103: 6.483131475 | H103: 478.3 | I103: 34590 | J103: 49.05617563 | K103: 35921 | L103: 50.94382437 | M103: 27.24681255 | N103: 51.03175391 | O103: 21.72143354 | P103: 39.7597538 | Q103: 38.51881267 | R103: 21.72143354 | S103: 3.8 | T103: 10.4 | U103: 66 | V103: 6.2 | W103: 55078.62885 | X103: 2.7 | Y103: Health Care & Social Assistance | Z103: 3208 | AA103: Data not yet available | AB103: Data not yet available | AC103: Data not yet available | AD103: Data not yet available | AE103: 9 | AF103: 2.4767 | AG103: 70.42 | AH103: 28.56814752 | AI103: 4.6 | AJ103: 19.5972 | AK103: 1.222002493 | AL103: 11.1482 | AM103: 84669 | AN103: 121912 | AO103: 36242 | AP103: 1410.029958 | AQ103: 25703 | AR103: 321 | AS103: 3606.741573 | AT103: 89 | AU103: 5339 | AV103: 4741.563055 | AW103: 1126 | AX103: 0 | AY103: 0 | AZ103: 0 | BA103: 189.1320311 | BB103: 23.76376298 | BC103: 19872 | BD103: 23.47021932 | BE103: 3555 | BF103: 4.198703185 | BG103: 28467 | BH103: 33.62151437 | BI103: 6345 | BJ103: 7.493887964 | BK103: 16939 | BL103: 20.00614156 | BM103: 6298 | BN103: 7.438377683 | BO103: 3193 | BP103: 3.771155913 | BQ103: 281.8283672 | BR103: 403.7242416 | BS103: 0 | BT103: 89.98595964 | BU103: 240.2320205 | BV103: 50.41766533 | BW103: 45.2837146 | BX103: 28.15163591 | BY103: 89.31939697 | BZ103: Data not yet available | CA103: 489.7482784 | CB103: Data not yet available | CC103: Data not yet available | CD103: Data not yet available | CE103: Data not yet available | CF103: Data not yet available | CG103: Data not yet available | CH103: Data not yet available | CI103: 14768 | CJ103: 54.48156824 | CK103: 398.87 | CL103: 5.656847868 | CM103: 729.2 | CN103: 4 | CO103: 24 | CP103: Data not yet available | CQ103: Data not yet available | CR103: 10577 | CS103: 9397 | CT103: 112.56 | CU103: 71.47 | CV103: 2 | CW103: Y | CX103: 66000 | CY103: 173000 | CZ103: 0 | DA103: 18000 | DB103: 4000 | DC103: 297519 | DD103: 1 | DE103: 502 | DF103: 0 | DG103: 7 | DH103: 10073 | DI103: 43 | DJ103: 57 | DK103: 14 | DL103: 0 | DM103: 0 | DN103: 100 | DO103: 0 | DP103: 340 | DQ103: 207.3852941
A104: Shoalhaven | B104: 5 | C104: Regional Town/City | D104: Illawarra Shoalhaven | E104: 4566.7 | F104: 101777 | G104: 5.793998108 | H104: 22.3 | I104: 50498 | J104: 49.61631803 | K104: 51279 | L104: 50.38368197 | M104: 22.24962418 | N104: 44.75470882 | O104: 32.995667 | P104: 32.09172996 | Q104: 34.91260304 | R104: 32.995667 | S104: 5.5 | T104: 4 | U104: 50 | V104: 8.6 | W104: 47954.71457 | X104: 2.3 | Y104: Health Care & Social Assistance | Z104: 6934 | AA104: Data not yet available | AB104: Data not yet available | AC104: Data not yet available | AD104: Data not yet available | AE104: 2.61 | AF104: 2.0201 | AG104: 77.7 | AH104: 22.27532906 | AI104: 9.03 | AJ104: 3.6958 | AK104: 8.337281329 | AL104: 9.8889 | AM104: 221745 | AN104: 258389 | AO104: 52027 | AP104: 964.9103285 | AQ104: 53919 | AR104: 1913 | AS104: 0 | AT104: 0 | AU104: 4068 | AV104: 0 | AW104: 0 | AX104: 0 | AY104: 0 | AZ104: 0 | BA104: 0 | BB104: 23.38322298 | BC104: 43890 | BD104: 19.79300548 | BE104: 52430 | BF104: 23.64427608 | BG104: 35749 | BH104: 16.12167129 | BI104: 8320 | BJ104: 3.752057544 | BK104: 24925 | BL104: 11.24038873 | BM104: 31726 | BN104: 14.3074252 | BO104: 24705 | BP104: 11.14117567 | BQ104: 431.2369199 | BR104: 351.2483174 | BS104: 453.6781395 | BT104: 81.7473496 | BU104: 244.8981597 | BV104: 61.46771864 | BW104: 242.7365711 | BX104: 22.46087033 | BY104: 311.7207228 | BZ104: Data not yet available | CA104: 0 | CB104: Data not yet available | CC104: Data not yet available | CD104: Data not yet available | CE104: Data not yet available | CF104: Data not yet available | CG104: Data not yet available | CH104: Data not yet available | CI104: 7456 | CJ104: 86.19949285 | CK104: 1754.51 | CL104: 17.23876711 | CM104: 2172.98 | CN104: 12 | CO104: 32 | CP104: Data not yet available | CQ104: Data not yet available | CR104: 50117 | CS104: 56660 | CT104: 88.45 | CU104: 38.66 | CV104: 2.94 | CW104: Y | CX104: 227000 | CY104: 275388 | CZ104: 0 | DA104: 75687 | DB104: 16355 | DC104: 342297 | DD104: 14 | DE104: 57970 | DF104: 9 | DG104: 13 | DH104: 7829 | DI104: 46.15384615 | DJ104: 53.84615385 | DK104: 0 | DL104: 8 | DM104: 7.692307692 | DN104: 38.46153846 | DO104: 53.84615385 | DP104: 792 | DQ104: 128.5063131
A105: Singleton | B105: 4 | C105: Regional Town/City | D105: Hunter | E105: 4892.7 | F105: 23595 | G105: 0.3060834077 | H105: 4.8 | I105: 12042 | J105: 51.03623649 | K105: 11553 | L105: 48.96376351 | M105: 28.83661793 | N105: 53.87158296 | O105: 17.29179911 | P105: 42.12333121 | Q105: 40.58486968 | R105: 17.29179911 | S105: 5.7 | T105: 3.1 | U105: 85 | V105: 3.4 | W105: 72888.14663 | X105: 2.7 | Y105: Mining | Z105: 1979 | AA105: Data not yet available | AB105: Data not yet available | AC105: Data not yet available | AD105: Data not yet available | AE105: -1.63 | AF105: 2.9037 | AG105: 63.99 | AH105: 35.91487331 | AI105: 3.24 | AJ105: 6.2608 | AK105: 4.089402406 | AL105: 21.1612 | AM105: 54099 | AN105: 67053 | AO105: 7456 | AP105: 828.9049472 | AQ105: 8995 | AR105: 1574 | AS105: 1989.88622 | AT105: 791 | AU105: 6122 | AV105: 6712.719298 | AW105: 912 | AX105: 1691 | AY105: 36760.86957 | AZ105: 46 | BA105: 156.3224428 | BB105: 11.88438021 | BC105: 7475 | BD105: 13.81726095 | BE105: 9974 | BF105: 18.43656999 | BG105: 6437 | BH105: 11.89855635 | BI105: 7598 | BJ105: 14.0446219 | BK105: 8035 | BL105: 14.85240023 | BM105: 11861 | BN105: 21.92461968 | BO105: 2719 | BP105: 5.025970905 | BQ105: 316.8044077 | BR105: 272.8120364 | BS105: 350.2013138 | BT105: 322.0173766 | BU105: 340.5382496 | BV105: 72.51536342 | BW105: 115.2362789 | BX105: 73.36300064 | BY105: 502.6912481 | BZ105: Data not yet available | CA105: 416.5647582 | CB105: Data not yet available | CC105: Data not yet available | CD105: Data not yet available | CE105: Data not yet available | CF105: Data not yet available | CG105: Data not yet available | CH105: Data not yet available | CI105: 7735 | CJ105: 53.55749024 | CK105: 872.74 | CL105: 36.98834499 | CM105: 245.3 | CN105: 1 | CO105: 5 | CP105: Data not yet available | CQ105: Data not yet available | CR105: 5980 | CS105: 9535 | CT105: 62.72 | CU105: 97.25 | CV105: 2.15 | CW105: Y | CX105: 87000 | CY105: 138000 | CZ105: 0 | DA105: 7000 | DB105: 3000 | DC105: 292875 | DD105: 0 | DE105: 0 | DF105: 0 | DG105: 10 | DH105: 2359.5 | DI105: 50 | DJ105: 50 | DK105: 10 | DL105: 0 | DM105: 0 | DN105: 40 | DO105: 60 | DP105: 202 | DQ105: 116.8069307
A106: Snowy Monaro Regional | B106: 4 | C106: Regional Town/City | D106: Canberra | E106: 15163.6 | F106: 20617 | G106: 1.13313058 | H106: 1.4 | I106: 10712 | J106: 51.95712276 | K106: 9905 | L106: 48.04287724 | M106: 23.41271766 | N106: 51.64669933 | O106: 24.94058301 | P106: 34.97114032 | Q106: 40.08827666 | R106: 24.94058301 | S106: 2.2 | T106: 5.3 | U106: 90 | V106: 3.9 | W106: 46232.4042 | X106: 2.3 | Y106: Accommodation & Food Services | Z106: 2462 | AA106: Data not yet available | AB106: Data not yet available | AC106: Data not yet available | AD106: Data not yet available | AE106: * | AF106: * | AG106: * | AH106: * | AI106: * | AJ106: * | AK106: * | AL106: * | AM106: * | AN106: * | AO106: * | AP106: * | AQ106: * | AR106: * | AS106: * | AT106: * | AU106: * | AV106: * | AW106: * | AX106: * | AY106: * | AZ106: * | BA106: * | BB106: * | BC106: * | BD106: * | BE106: * | BF106: * | BG106: * | BH106: * | BI106: * | BJ106: * | BK106: * | BL106: * | BM106: * | BN106: * | BO106: * | BP106: * | BQ106: * | BR106: * | BS106: * | BT106: * | BU106: * | BV106: * | BW106: * | BX106: * | BY106: * | BZ106: Data not yet available | CA106: * | CB106: Data not yet available | CC106: Data not yet available | CD106: Data not yet available | CE106: Data not yet available | CF106: Data not yet available | CG106: Data not yet available | CH106: Data not yet available | CI106: 4640 | CJ106: 58.83240174 | CK106: 2649.14 | CL106: 128.4929912 | CM106: 499.71 | CN106: 5 | CO106: 27 | CP106: Data not yet available | CQ106: Data not yet available | CR106: * | CS106: * | CT106: * | CU106: * | CV106: * | CW106: Y | CX106: * | CY106: * | CZ106: * | DA106: * | DB106: * | DC106: * | DD106: 0 | DE106: 0 | DF106: 0 | DG106: - | DH106: - | DI106: - | DJ106: - | DK106: - | DL106: - | DM106: - | DN106: - | DO106: - | DP106: 336 | DQ106: 61.36011905
A107: Snowy Valleys | B107: 11 | C107: Large Rural | E107: 8959 | F107: 14644 | G107: -0.7590132827 | H107: 1.6 | I107: 7411 | J107: 50.60775744 | K107: 7233 | L107: 49.39224256 | M107: 23.99617591 | N107: 47.73285987 | O107: 28.27096422 | P107: 33.61786397 | Q107: 38.11117181 | R107: 28.27096422 | S107: 4.4 | T107: 3.5 | U107: 34 | V107: 4.8 | W107: 49066.06793 | X107: 2.3 | Y107: Agriculture, Forestry and Fishing | Z107: 1465 | AA107: Data not yet available | AB107: Data not yet available | AC107: Data not yet available | AD107: Data not yet available | AE107: * | AF107: * | AG107: * | AH107: * | AI107: * | AJ107: * | AK107: * | AL107: * | AM107: * | AN107: * | AO107: * | AP107: * | AQ107: * | AR107: * | AS107: * | AT107: * | AU107: * | AV107: * | AW107: * | AX107: * | AY107: * | AZ107: * | BA107: * | BB107: * | BC107: * | BD107: * | BE107: * | BF107: * | BG107: * | BH107: * | BI107: * | BJ107: * | BK107: * | BL107: * | BM107: * | BN107: * | BO107: * | BP107: * | BQ107: * | BR107: * | BS107: * | BT107: * | BU107: * | BV107: * | BW107: * | BX107: * | BY107: * | BZ107: Data not yet available | CA107: * | CB107: Data not yet available | CC107: Data not yet available | CD107: Data not yet available | CE107: Data not yet available | CF107: Data not yet available | CG107: Data not yet available | CH107: Data not yet available | CI107: 4717 | CJ107: 54.16828605 | CK107: 1194.6703 | CL107: 81.58087271 | CM107: 331 | CN107: 5 | CO107: 9 | CP107: Data not yet available | CQ107: Data not yet available | CR107: * | CS107: * | CT107: * | CU107: * | CV107: * | CW107: Y | CX107: * | CY107: * | CZ107: * | DA107: * | DB107: * | DC107: * | DD107: 0 | DE107: 0 | DF107: 0 | DG107: - | DH107: - | DI107: - | DJ107: - | DK107: - | DL107: - | DM107: - | DN107: - | DO107: - | DP107: 228 | DQ107: 64.22807018
A108: Strathfield | B108: 2 | C108: Metropolitan | E108: 14 | F108: 42331 | G108: 13.67383657 | H108: 3023.4 | I108: 21688 | J108: 51.23432 | K108: 20643 | L108: 48.76568 | M108: 21.7287567 | N108: 62.61132503 | O108: 15.65991826 | P108: 44.25598261 | Q108: 40.08409912 | R108: 15.65991826 | S108: 0.3 | T108: 64.2 | U108: 113 | V108: 4.6 | W108: 55108.73763 | X108: 3 | Y108: Health Care & Social Assistance | Z108: 5868 | AA108: Data not yet available | AB108: Data not yet available | AC108: Data not yet available | AD108: Data not yet available | AE108: 4.89 | AF108: 3.6199 | AG108: 73.45 | AH108: 26.55034734 | AI108: 3.02 | AJ108: 0 | AK108: 0 | AL108: 22.0795 | AM108: 34426 | AN108: 43329 | AO108: 11306 | AP108: 851.4836572 | AQ108: 13278 | AR108: 0 | AS108: 0 | AT108: 0 | AU108: 5063 | AV108: 4868.269231 | AW108: 1040 | AX108: 0 | AY108: 0 | AZ108: 0 | BA108: 412.3911236 | BB108: 9.218255761 | BC108: 4913 | BD108: 14.27119038 | BE108: 2309 | BF108: 6.707139952 | BG108: 8691 | BH108: 25.24545402 | BI108: 2372 | BJ108: 6.890141172 | BK108: 8482 | BL108: 24.63835473 | BM108: 5036 | BN108: 14.62847848 | BO108: 2623 | BP108: 7.619241271 | BQ108: 116.0615152 | BR108: 205.3105289 | BS108: 0 | BT108: 56.03458458 | BU108: 200.3732489 | BV108: 54.54631358 | BW108: 61.96404526 | BX108: 32.38761192 | BY108: 118.9671872 | BZ108: Data not yet available | CA108: 498.7949992 | CB108: Data not yet available | CC108: Data not yet available | CD108: Data not yet available | CE108: Data not yet available | CF108: Data not yet available | CG108: Data not yet available | CH108: Data not yet available | CI108: 3553 | CJ108: 42.63803681 | CK108: 97 | CL108: 2.291464884 | CM108: 116.41 | CN108: 0 | CO108: 4 | CP108: Data not yet available | CQ108: Data not yet available | CR108: 7465 | CS108: 6477 | CT108: 115.25 | CU108: 127.85 | CV108: 1.49 | CW108: Y | CX108: 41000 | CY108: 171000 | CZ108: 0 | DA108: 3000 | DB108: 0 | DC108: 308000 | DD108: 2 | DE108: 9145 | DF108: 0 | DG108: 7 | DH108: 6047.285714 | DI108: 57 | DJ108: 43 | DK108: 0 | DL108: 0 | DM108: 0 | DN108: 71 | DO108: 29 | DP108: 195 | DQ108: 217.0820513
A109: Sutherland | B109: 3 | C109: Metropolitan | E109: 369 | F109: 226041 | G109: 2.629284904 | H109: 677.6 | I109: 111231 | J109: 49.20832946 | K109: 114810 | L109: 50.79167054 | M109: 25.25117125 | N109: 52.70680983 | O109: 22.04201893 | P109: 37.64007415 | Q109: 40.31790693 | R109: 22.04201893 | S109: 1.1 | T109: 13 | U109: 114 | V109: 2.9 | W109: 66764.38472 | X109: 2.7 | Y109: Health Care & Social Assistance | Z109: 21705 | AA109: Data not yet available | AB109: Data not yet available | AC109: Data not yet available | AD109: Data not yet available | AE109: 9.25 | AF109: 2.3614 | AG109: 76.39 | AH109: 23.33020767 | AI109: 3.59 | AJ109: 21.1678 | AK109: 0.7668132132 | AL109: 6.103 | AM109: 205100 | AN109: 269809 | AO109: 94816 | AP109: 1169.427349 | AQ109: 81079 | AR109: 0 | AS109: 0 | AT109: 0 | AU109: 16361 | AV109: 3618.889626 | AW109: 4521 | AX109: 0 | AY109: 0 | AZ109: 0 | BA109: 401.4651197 | BB109: 15.3492273 | BC109: 45110 | BD109: 21.9941492 | BE109: 16497 | BF109: 8.043393467 | BG109: 49466 | BH109: 24.11799122 | BI109: 24069 | BJ109: 11.7352511 | BK109: 47218 | BL109: 23.02194052 | BM109: 10753 | BN109: 5.242808386 | BO109: 11987 | BP109: 5.844466114 | BQ109: 199.5655655 | BR109: 218.8364058 | BS109: 0 | BT109: 106.4806827 | BU109: 208.8913073 | BV109: 72.98233506 | BW109: 53.03020249 | BX109: 29.4017457 | BY109: 47.57101588 | BZ109: Data not yet available | CA109: 454.7170044 | CB109: Data not yet available | CC109: Data not yet available | CD109: Data not yet available | CE109: Data not yet available | CF109: Data not yet available | CG109: Data not yet available | CH109: Data not yet available | CI109: 6716 | CJ109: 90.20134228 | CK109: 824.52 | CL109: 3.647656841 | CM109: 2686.3 | CN109: 13 | CO109: 37 | CP109: Data not yet available | CQ109: Data not yet available | CR109: 28683 | CS109: 28394 | CT109: 101.02 | CU109: 57.61 | CV109: 1.93 | CW109: Y | CX109: 43000 | CY109: 419000 | CZ109: 0 | DA109: 12751 | DB109: 0 | DC109: 420250 | DD109: 3 | DE109: 8548 | DF109: 0 | DG109: 15 | DH109: 15069.4 | DI109: 21 | DJ109: 79 | DK109: 0 | DL109: 14 | DM109: 20 | DN109: 33 | DO109: 47 | DP109: 1052 | DQ109: 214.8678707
A110: Sydney | B110: 1 | C110: Metropolitan | E110: 26.7 | F110: 224211 | G110: 22.33182927 | H110: 8383.9 | I110: 116622 | J110: 52.01439715 | K110: 107589 | L110: 47.98560285 | M110: 11.03647903 | N110: 76.97213785 | O110: 11.99138312 | P110: 43.05453345 | Q110: 44.95408343 | R110: 11.99138312 | S110: 1.2 | T110: 36.2 | U110: 116 | V110: 3.9 | W110: 65201.34791 | X110: 2 | Y110: Professional Scientific & Technical Services | Z110: 66697 | AA110: Data not yet available | AB110: Data not yet available | AC110: Data not yet available | AD110: Data not yet available | AE110: -3.57 | AF110: 2.6804 | AG110: 79.7 | AH110: 19.03641746 | AI110: 1.23 | AJ110: 0 | AK110: 0 | AL110: 6.5416 | AM110: 577898 | AN110: 721897 | AO110: 63490 | AP110: 633.7926804 | AQ110: 100175 | AR110: 0 | AS110: 0 | AT110: 0 | AU110: 204721 | AV110: 10833.54606 | AW110: 18897 | AX110: 0 | AY110: 0 | AZ110: 0 | BA110: 222.8297506 | BB110: 2.832043923 | BC110: 163163 | BD110: 28.24156224 | BE110: 48085 | BF110: 8.322872347 | BG110: 68995 | BH110: 11.9421337 | BI110: 63879 | BJ110: 11.05673294 | BK110: 121004 | BL110: 20.94441225 | BM110: 65643 | BN110: 11.36210897 | BO110: 46971 | BP110: 8.130177551 | BQ110: 727.720763 | BR110: 307.7235283 | BS110: 0 | BT110: 284.9057361 | BU110: 539.6880617 | BV110: 214.4612646 | BW110: 209.4946278 | BX110: 48.87227803 | BY110: 292.7733251 | BZ110: Data not yet available | CA110: 424.9872704 | CB110: Data not yet available | CC110: Data not yet available | CD110: Data not yet available | CE110: Data not yet available | CF110: Data not yet available | CG110: Data not yet available | CH110: Data not yet available | CI110: 19805 | CJ110: 50.29863481 | CK110: 330.2 | CL110: 1.472719893 | CM110: 426.07 | CN110: 5 | CO110: 33 | CP110: Data not yet available | CQ110: Data not yet available | CR110: 59948 | CS110: 59862 | CT110: 100.14 | CU110: 62.59 | CV110: 3.55 | CW110: Y | CX110: 158758.59 | CY110: 572005.48 | CZ110: 5000 | DA110: 8000 | DB110: 7000 | DC110: 477443 | DD110: 0 | DE110: 1350 | DF110: 0 | DG110: 10 | DH110: 22421.1 | DI110: 70 | DJ110: 30 | DK110: 0 | DL110: 30 | DM110: 0 | DN110: 90 | DO110: 10 | DP110: 1763 | DQ110: 127.1758366
A111: Tamworth Regional | B111: 4 | C111: Regional Town/City | D111: Namoi | E111: 9884.4 | F111: 60998 | G111: 4.757161503 | H111: 6.2 | I111: 29830 | J111: 48.90324273 | K111: 31168 | L111: 51.09675727 | M111: 27.26154956 | N111: 48.75241811 | O111: 23.98603233 | P111: 39.29964917 | Q111: 36.7143185 | R111: 23.98603233 | S111: 10.1 | T111: 3.7 | U111: 53 | V111: 6.6 | W111: 47948.92706 | X111: 2.5 | Y111: Health Care & Social Assistance | Z111: 5426 | AA111: Data not yet available | AB111: Data not yet available | AC111: Data not yet available | AD111: Data not yet available | AE111: 12.39 | AF111: 4.3605 | AG111: 68.7 | AH111: 31.29089648 | AI111: 5.19 | AJ111: 5.1732 | AK111: 7.46215131 | AL111: 19.3598 | AM111: 126245 | AN111: 165815 | AO111: 21451 | AP111: 951.8125749 | AQ111: 22537 | AR111: 5472 | AS111: 1840.565086 | AT111: 2973 | AU111: 5705 | AV111: 3127.741228 | AW111: 1824 | AX111: 17 | AY111: 17000 | AZ111: 1 | BA111: 126.9270299 | BB111: 20.50849714 | BC111: 10473 | BD111: 8.29577409 | BE111: 35707 | BF111: 28.28389243 | BG111: 14702 | BH111: 11.64560973 | BI111: 4584 | BJ111: 3.631034892 | BK111: 16453 | BL111: 13.03259535 | BM111: 37882 | BN111: 30.00673294 | BO111: 6444 | BP111: 5.104360569 | BQ111: 171.6941539 | BR111: 241.0242959 | BS111: 556.7723532 | BT111: 75.15000492 | BU111: 269.7301551 | BV111: 28.60749533 | BW111: 105.642808 | BX111: 39.13243057 | BY111: 621.0367553 | BZ111: Data not yet available | CA111: 294.9372144 | CB111: Data not yet available | CC111: Data not yet available | CD111: Data not yet available | CE111: Data not yet available | CF111: Data not yet available | CG111: Data not yet available | CH111: Data not yet available | CI111: 30330 | CJ111: 33.83074809 | CK111: 3190.69 | CL111: 52.30810846 | CM111: 849 | CN111: 6 | CO111: 23 | CP111: Data not yet available | CQ111: Data not yet available | CR111: 31933 | CS111: 32802 | CT111: 97.35 | CU111: 38.95 | CV111: 0.62 | CW111: Y | CX111: 171000 | CY111: 207000 | CZ111: 6000 | DA111: 33000 | DB111: 0 | DC111: 301000 | DD111: 0 | DE111: 0 | DF111: 0 | DG111: 9 | DH111: 6777.555556 | DI111: 22.22222222 | DJ111: 77.77777778 | DK111: 0 | DL111: 0 | DM111: 0 | DN111: 22 | DO111: 78 | DP111: 541 | DQ111: 112.7504621
A112: Temora | B112: 10 | C112: Large Rural | D112: Riverina | E112: 2802 | F112: 6236 | G112: 4.753905594 | H112: 2.2 | I112: 3079 | J112: 49.3745991 | K112: 3157 | L112: 50.6254009 | M112: 25.93008339 | N112: 44.38742784 | O112: 29.68248877 | P112: 35.40731238 | Q112: 34.91019885 | R112: 29.68248877 | S112: 2.4 | T112: 2.1 | U112: 47 | V112: 6 | W112: 42439.53169 | X112: 2.4 | Y112: Agriculture, Forestry and Fishing | Z112: 706 | AA112: Data not yet available | AB112: Data not yet available | AC112: Data not yet available | AD112: Data not yet available | AE112: 14.34 | AF112: 2.1088 | AG112: 51.92 | AH112: 47.89363609 | AI112: 3.84 | AJ112: 22.2438 | AK112: 1.527446301 | AL112: 6.5952 | AM112: 17945 | AN112: 23429 | AO112: 1309 | AP112: 538.6831276 | AQ112: 2430 | AR112: 1793 | AS112: 1802.01005 | AT112: 995 | AU112: 469 | AV112: 1328.611898 | AW112: 353 | AX112: 0 | AY112: 0 | AZ112: 0 | BA112: 142.6045785 | BB112: 26.21399177 | BC112: 2804 | BD112: 15.62552243 | BE112: 1712 | BF112: 9.540261911 | BG112: 1024 | BH112: 5.706324882 | BI112: 3162 | BJ112: 17.62050711 | BK112: 2279 | BL112: 12.69991641 | BM112: 5025 | BN112: 28.00222903 | BO112: 1939 | BP112: 10.80523823 | BQ112: 449.6472097 | BR112: 164.2078255 | BS112: 116.4207826 | BT112: 507.055805 | BU112: 365.4586273 | BV112: 158.1141758 | BW112: 310.9364978 | BX112: 53.55997434 | BY112: 805.8050032 | BZ112: Data not yet available | CA112: 171.6049383 | CB112: Data not yet available | CC112: Data not yet available | CD112: Data not yet available | CE112: Data not yet available | CF112: Data not yet available | CG112: Data not yet available | CH112: Data not yet available | CI112: 1520 | CJ112: 62.64438437 | CK112: 1334.7 | CL112: 214.0314304 | CM112: 40 | CN112: 2 | CO112: 2 | CP112: Data not yet available | CQ112: Data not yet available | CR112: 3162 | CS112: 2720 | CT112: 116.25 | CU112: 53.36 | CV112: 2.57 | CW112: Y | CX112: 38000 | CY112: 94000 | CZ112: 0 | DA112: 20258 | DB112: 0 | DC112: 210870 | DD112: 0 | DE112: 0 | DF112: 0 | DG112: 9 | DH112: 692.8888889 | DI112: 22 | DJ112: 78 | DK112: 0 | DL112: 0 | DM112: 0 | DN112: 44 | DO112: 56 | DP112: 100 | DQ112: 62.36
A113: Tenterfield | B113: 10 | C113: Large Rural | D113: New England | E113: 7322.8 | F113: 6667 | G113: -4.620886981 | H113: 0.9 | I113: 3271 | J113: 49.06254687 | K113: 3396 | L113: 50.93745313 | M113: 21.4639268 | N113: 42.23788811 | O113: 36.29818509 | P113: 28.70856457 | Q113: 34.99325034 | R113: 36.29818509 | S113: 6 | T113: 2.5 | U113: 10 | V113: 9.1 | W113: 39557.0365 | X113: 2.1 | Y113: Agriculture, Forestry and Fishing | Z113: 929 | AA113: Data not yet available | AB113: Data not yet available | AC113: Data not yet available | AD113: Data not yet available | AE113: 15.71 | AF113: 4.4667 | AG113: 45.28 | AH113: 54.71771075 | AI113: 6.75 | AJ113: 11.7603 | AK113: 3.804146612 | AL113: 12.5751 | AM113: 18441 | AN113: 25860 | AO113: 1637 | AP113: 465.8508822 | AQ113: 3514 | AR113: 1901 | AS113: 1037.097654 | AT113: 1833 | AU113: 250 | AV113: 1012.145749 | AW113: 247 | AX113: 9 | AY113: 818.1818182 | AZ113: 11 | BA113: 187.9057851 | BB113: 27.26237906 | BC113: 284 | BD113: 1.540046635 | BE113: 4309 | BF113: 23.3664118 | BG113: 2311 | BH113: 12.53185836 | BI113: 932 | BJ113: 5.053955859 | BK113: 2204 | BL113: 11.95162952 | BM113: 7275 | BN113: 39.45013828 | BO113: 1126 | BP113: 6.105959547 | BQ113: 42.59787011 | BR113: 346.6326684 | BS113: 542.8228589 | BT113: 139.7930103 | BU113: 330.5834708 | BV113: 103.4948253 | BW113: 168.8915554 | BX113: 74.39628019 | BY113: 1091.19544 | BZ113: Data not yet available | CA113: 187.250996 | CB113: Data not yet available | CC113: Data not yet available | CD113: Data not yet available | CE113: Data not yet available | CF113: Data not yet available | CG113: Data not yet available | CH113: Data not yet available | CI113: 1106 | CJ113: 67.68916155 | CK113: 1689.19 | CL113: 253.3658317 | CM113: 65 | CN113: 1 | CO113: 11 | CP113: Data not yet available | CQ113: Data not yet available | CR113: 6317 | CS113: 6239 | CT113: 101.25 | CU113: 58.35 | CV113: 5.38 | CW113: Y | CX113: 45000 | CY113: 137000 | CZ113: 0 | DA113: 6338 | DB113: 18776 | DC113: 213005 | DD113: 0 | DE113: 0 | DF113: 0 | DG113: 10 | DH113: 666.7 | DI113: 10 | DJ113: 90 | DK113: 0 | DL113: 0 | DM113: 0 | DN113: 20 | DO113: 80 | DP113: 96 | DQ113: 69.44791667
A114: Tweed | B114: 5 | C114: Regional Town/City | D114: Northern Rivers | E114: 1307.7 | F114: 93458 | G114: 5.677487929 | H114: 71.5 | I114: 45316 | J114: 48.48809091 | K114: 48142 | L114: 51.51190909 | M114: 22.70859637 | N114: 45.90297246 | O114: 31.38843117 | P114: 31.62811102 | Q114: 36.98345781 | R114: 31.38843117 | S114: 4 | T114: 4.2 | U114: 65 | V114: 4.7 | W114: 46883.67592 | X114: 2.4 | Y114: Health Care & Social Assistance | Z114: 7238 | AA114: Data not yet available | AB114: Data not yet available | AC114: Data not yet available | AD114: Data not yet available | AE114: 11.26 | AF114: 3.5221 | AG114: 74.4 | AH114: 25.55229589 | AI114: 4.35 | AJ114: 3.6649 | AK114: 10.89787143 | AL114: 20.6595 | AM114: 186646 | AN114: 230085 | AO114: 48447 | AP114: 1313.140348 | AQ114: 36894 | AR114: 2994 | AS114: 2005.358339 | AT114: 1493 | AU114: 4921 | AV114: 2675.910821 | AW114: 1839 | AX114: 0 | AY114: 0 | AZ114: 0 | BA114: 195.33655 | BB114: 23.07963354 | BC114: 25959 | BD114: 13.90814697 | BE114: 57432 | BF114: 30.7705496 | BG114: 29219 | BH114: 15.65476892 | BI114: 11164 | BJ114: 5.98137651 | BK114: 21267 | BL114: 11.39429723 | BM114: 31146 | BN114: 16.68720465 | BO114: 10459 | BP114: 5.603656119 | BQ114: 277.7611333 | BR114: 312.6431124 | BS114: 556.4852661 | BT114: 119.4547283 | BU114: 227.5567635 | BV114: 58.03676518 | BW114: 111.9112329 | BX114: 27.86278328 | BY114: 333.262 | BZ114: Data not yet available | CA114: 346.7501491 | CB114: Data not yet available | CC114: Data not yet available | CD114: Data not yet available | CE114: Data not yet available | CF114: Data not yet available | CG114: Data not yet available | CH114: Data not yet available | CI114: 9728 | CJ114: 72.89495681 | CK114: 1253 | CL114: 13.40709196 | CM114: 964 | CN114: 3 | CO114: 19 | CP114: Data not yet available | CQ114: Data not yet available | CR114: 23535 | CS114: 25331 | CT114: 92.91 | CU114: 44.16 | CV114: 1.54 | CW114: Y | CX114: 126000 | CY114: 72000 | CZ114: 0 | DA114: 15576 | DB114: 16232 | DC114: 321113 | DD114: 7 | DE114: 15000 | DF114: 0 | DG114: 7 | DH114: 13351.14286 | DI114: 28.57142857 | DJ114: 71.42857143 | DK114: 0 | DL114: 0 | DM114: 14 | DN114: 57 | DO114: 29 | DP114: 665 | DQ114: 140.5383459
A115: Upper Hunter | B115: 11 | C115: Large Rural | D115: Hunter | E115: 8096.1 | F115: 14409 | G115: 1.428973673 | H115: 1.8 | I115: 7134 | J115: 49.51072247 | K115: 7275 | L115: 50.48927753 | M115: 26.77493233 | N115: 49.41356097 | O115: 23.8115067 | P115: 37.8444028 | Q115: 38.3440905 | R115: 23.8115067 | S115: 5.1 | T115: 3 | U115: 67 | V115: 2.8 | W115: 56449.34614 | X115: 2.4 | Y115: Agriculture, Forestry and Fishing | Z115: 1644 | AA115: Data not yet available | AB115: Data not yet available | AC115: Data not yet available | AD115: Data not yet available | AE115: 9.86 | AF115: 2.9753 | AG115: 66.61 | AH115: 33.37869277 | AI115: 8.49 | AJ115: 7.1722 | AK115: 4.154080318 | AL115: 10.1461 | AM115: 39204 | AN115: 45562 | AO115: 3897 | AP115: 739.0479803 | AQ115: 5273 | AR115: 5445 | AS115: 3413.793103 | AT115: 1595 | AU115: 596 | AV115: 897.5903614 | AW115: 664 | AX115: 88 | AY115: 88000 | AZ115: 1 | BA115: 262.3494519 | BB115: 22.0367912 | BC115: 1257 | BD115: 3.206305479 | BE115: 8807 | BF115: 22.46454443 | BG115: 4498 | BH115: 11.47331905 | BI115: 5237 | BJ115: 13.35833078 | BK115: 3817 | BL115: 9.736251403 | BM115: 13393 | BN115: 34.16233037 | BO115: 2195 | BP115: 5.598918478 | BQ115: 87.23714345 | BR115: 312.1660074 | BS115: 507.8770213 | BT115: 363.4533972 | BU115: 264.9038795 | BV115: 103.3381914 | BW115: 152.335346 | BX115: 40.25261989 | BY115: 929.4885141 | BZ115: Data not yet available | CA115: 390.8590935 | CB115: Data not yet available | CC115: Data not yet available | CD115: Data not yet available | CE115: Data not yet available | CF115: Data not yet available | CG115: Data not yet available | CH115: Data not yet available | CI115: 5537 | CJ115: 49.51677608 | CK115: 1769.5 | CL115: 122.8051912 | CM115: 175.1 | CN115: 3 | CO115: 10 | CP115: Data not yet available | CQ115: Data not yet available | CR115: 7553 | CS115: 7782 | CT115: 97.06 | CU115: 117.02 | CV115: 0.64 | CW115: Y | CX115: 53000 | CY115: 126000 | CZ115: 0 | DA115: 7000 | DB115: 0 | DC115: 269357 | DD115: 0 | DE115: 0 | DF115: 0 | DG115: 9 | DH115: 1601 | DI115: 33.33333333 | DJ115: 66.66666667 | DK115: 0 | DL115: 0 | DM115: 0 | DN115: 78 | DO115: 22 | DP115: 203 | DQ115: 70.98029557
A116: Upper Lachlan | B116: 10 | C116: Large Rural | D116: Canberra | E116: 7127.4 | F116: 7841 | G116: 5.645378604 | H116: 1.1 | I116: 4016 | J116: 51.21795689 | K116: 3825 | L116: 48.78204311 | M116: 23.84899885 | N116: 45.05802831 | O116: 31.09297284 | P116: 31.69238618 | Q116: 37.21464099 | R116: 31.09297284 | S116: 2.3 | T116: 1.6 | U116: 91 | V116: 2.7 | W116: 46796.62282 | X116: 2.4 | Y116: Agriculture, Forestry and Fishing | Z116: 1161 | AA116: Data not yet available | AB116: Data not yet available | AC116: Data not yet available | AD116: Data not yet available | AE116: 16.47 | AF116: 5.1418 | AG116: 52.13 | AH116: 47.70168481 | AI116: 3.35 | AJ116: 25.5184 | AK116: 1.40493995 | AL116: 19.2902 | AM116: 25803 | AN116: 37571 | AO116: 1481 | AP116: 482.8822954 | AQ116: 3067 | AR116: 4719 | AS116: 1725.411335 | AT116: 2735 | AU116: 285 | AV116: 1007.067138 | AW116: 283 | AX116: 3 | AY116: 3000 | AZ116: 1 | BA116: 230.5299615 | BB116: 20.44343006 | BC116: 3147 | BD116: 12.11549567 | BE116: 4014 | BF116: 15.4533205 | BG116: 1696 | BH116: 6.529355149 | BI116: 1124 | BJ116: 4.327237729 | BK116: 1698 | BL116: 6.53705486 | BM116: 7497 | BN116: 28.86236766 | BO116: 6799 | BP116: 26.17516843 | BQ116: 401.3518684 | BR116: 216.2989415 | BS116: 378.9057518 | BT116: 143.3490626 | BU116: 216.554011 | BV116: 133.0187476 | BW116: 867.1087871 | BX116: 49.10087999 | BY116: 956.1280449 | BZ116: Data not yet available | CA116: 325.0733616 | CB116: Data not yet available | CC116: Data not yet available | CD116: Data not yet available | CE116: Data not yet available | CF116: Data not yet available | CG116: Data not yet available | CH116: Data not yet available | CI116: 3288 | CJ116: 28.96953986 | CK116: 1985.403 | CL116: 253.2078816 | CM116: 89.06 | CN116: 2 | CO116: 8 | CP116: Data not yet available | CQ116: Data not yet available | CR116: 5566 | CS116: 4701 | CT116: 118.4 | CU116: 135.7 | CV116: 1.66 | CW116: Y | CX116: 59000 | CY116: 127000 | CZ116: 0 | DA116: 9000 | DB116: 0 | DC116: 301027 | DD116: 3 | DE116: 9245 | DF116: 0 | DG116: 9 | DH116: 871.2222222 | DI116: 11.11111111 | DJ116: 88.88888889 | DK116: 0 | DL116: 0 | DM116: 0 | DN116: 44 | DO116: 56 | DP116: 136 | DQ116: 57.65441176
A117: Uralla | B117: 10 | C117: Large Rural | D117: New England | E117: 3226.5 | F117: 6159 | G117: -1.313892004 | H117: 1.9 | I117: 2998 | J117: 48.67673324 | K117: 3161 | L117: 51.32326676 | M117: 25.8321156 | N117: 46.51729177 | O117: 27.65059263 | P117: 33.62558857 | Q117: 38.7238188 | R117: 27.65059263 | S117: 6.9 | T117: 1.6 | U117: 76 | V117: 4.6 | W117: 43984.47666 | X117: 2.4 | Y117: Agriculture, Forestry and Fishing | Z117: 654 | AA117: Data not yet available | AB117: Data not yet available | AC117: Data not yet available | AD117: Data not yet available | AE117: 11.57 | AF117: 2.0737 | AG117: 57.46 | AH117: 42.53555074 | AI117: 4.33 | AJ117: 16.7442 | AK117: 1.886246322 | AL117: 10.5394 | AM117: 18848 | AN117: 20745 | AO117: 1474 | AP117: 652.2123894 | AQ117: 2260 | AR117: 1970 | AS117: 3344.651952 | AT117: 589 | AU117: 107 | AV117: 713.3333333 | AW117: 150 | AX117: 0 | AY117: 0 | AZ117: 0 | BA117: 226.7566643 | BB117: 29.24778761 | BC117: 1116 | BD117: 5.921052632 | BE117: 2099 | BF117: 11.1364601 | BG117: 1898 | BH117: 10.07003396 | BI117: 6770 | BJ117: 35.91893039 | BK117: 871 | BL117: 4.621179966 | BM117: 5596 | BN117: 29.6901528 | BO117: 498 | BP117: 2.642190153 | BQ117: 181.1982465 | BR117: 308.1669102 | BS117: 276.6682903 | BT117: 1099.204416 | BU117: 141.4190615 | BV117: 64.13378795 | BW117: 80.85728203 | BX117: 57.63922715 | BY117: 908.5890567 | BZ117: Data not yet available | CA117: 223.4513274 | CB117: Data not yet available | CC117: Data not yet available | CD117: Data not yet available | CE117: Data not yet available | CF117: Data not yet available | CG117: Data not yet available | CH117: Data not yet available | CI117: 3331 | CJ117: 41.46898612 | CK117: 935.35 | CL117: 151.8671862 | CM117: 27 | CN117: 1 | CO117: 2 | CP117: Data not yet available | CQ117: Data not yet available | CR117: 3557 | CS117: 3698 | CT117: 96.19 | CU117: 52.58 | CV117: 0.58 | CW117: Y | CX117: 10000 | CY117: 108000 | CZ117: 0 | DA117: 3000 | DB117: 3000 | DC117: 199220 | DD117: 0 | DE117: 0 | DF117: 0 | DG117: 9 | DH117: 684.3333333 | DI117: 33 | DJ117: 67 | DK117: 0 | DL117: 0 | DM117: 11 | DN117: 33 | DO117: 56 | DP117: 109 | DQ117: 56.50458716
A118: Wagga Wagga | B118: 4 | C118: Regional Town/City | E118: 4824.5 | F118: 64085 | G118: 3.729301889 | H118: 13.3 | I118: 31447 | J118: 49.07076539 | K118: 32638 | L118: 50.92923461 | M118: 27.83646719 | N118: 52.40851993 | O118: 19.75501287 | P118: 43.68729032 | Q118: 36.55769681 | R118: 19.75501287 | S118: 5.6 | T118: 6.6 | U118: 88 | V118: 5 | W118: 50972.67356 | X118: 2.5 | Y118: Health Care & Social Assistance | Z118: 5379 | AA118: Data not yet available | AB118: Data not yet available | AC118: Data not yet available | AD118: Data not yet available | AE118: -6.38 | AF118: 3.0782 | AG118: 59.18 | AH118: 40.64942095 | AI118: 5.1 | AJ118: 5.37 | AK118: 5.502047402 | AL118: 7.2211 | AM118: 121480 | AN118: 154059 | AO118: 24397 | AP118: 1005.634872 | AQ118: 24260 | AR118: 4795 | AS118: 2575.199248 | AT118: 1862 | AU118: 10448 | AV118: 5669.020619 | AW118: 1843 | AX118: 0 | AY118: 0 | AZ118: 0 | BA118: 123.8458269 | BB118: 13.87469085 | BC118: 20079 | BD118: 16.52864669 | BE118: 19377 | BF118: 15.95077379 | BG118: 12196 | BH118: 10.03951268 | BI118: 7811 | BJ118: 6.429864998 | BK118: 18879 | BL118: 15.54082977 | BM118: 35090 | BN118: 28.88541324 | BO118: 8048 | BP118: 6.624958841 | BQ118: 313.3182492 | BR118: 190.3097449 | BS118: 250.0273075 | BT118: 121.8849965 | BU118: 294.5931185 | BV118: 52.33674027 | BW118: 125.5832098 | BX118: 34.09534212 | BY118: 547.5540298 | BZ118: Data not yet available | CA118: 293.3812448 | CB118: Data not yet available | CC118: Data not yet available | CD118: Data not yet available | CE118: Data not yet available | CF118: Data not yet available | CG118: Data not yet available | CH118: Data not yet available | CI118: 16792 | CJ118: 61.12872983 | CK118: 2298.48 | CL118: 35.86611532 | CM118: 1820.37 | CN118: 0 | CO118: 10 | CP118: Data not yet available | CQ118: Data not yet available | CR118: 13570 | CS118: 24320 | CT118: 55.8 | CU118: 39.74 | CV118: 28.42 | CW118: Y | CX118: 0 | CY118: 211000 | CZ118: 9000 | DA118: 15000 | DB118: 1000 | DC118: 508317 | DD118: 0 | DE118: 0 | DF118: 0 | DG118: 9 | DH118: 7120.555556 | DI118: 22 | DJ118: 78 | DK118: 0 | DL118: 0 | DM118: 0 | DN118: 56 | DO118: 44 | DP118: 451 | DQ118: 142.0953437
A119: Walcha | B119: 9 | C119: Rural | D119: Namoi | E119: 6261 | F119: 3144 | G119: 0.8015389548 | H119: 0.5 | I119: 1587 | J119: 50.47709924 | K119: 1557 | L119: 49.52290076 | M119: 22.39185751 | N119: 45.29262087 | O119: 32.31552163 | P119: 32.12468193 | Q119: 35.55979644 | R119: 32.31552163 | S119: 5.9 | T119: 1.4 | U119: 80 | V119: 4 | W119: 38879.05068 | X119: 2.3 | Y119: Agriculture, Forestry and Fishing | Z119: 622 | AA119: Data not yet available | AB119: Data not yet available | AC119: Data not yet available | AD119: Data not yet available | AE119: 16.66 | AF119: 4.535 | AG119: 50.32 | AH119: 49.67692665 | AI119: 3.35 | AJ119: 38.277 | AK119: 0.873894689 | AL119: 10.639 | AM119: 11846 | AN119: 17233 | AO119: 403 | AP119: 441.8859649 | AQ119: 912 | AR119: 2743 | AS119: 3628.306878 | AT119: 756 | AU119: 109 | AV119: 756.9444444 | AW119: 144 | AX119: 2 | AY119: 666.6666667 | AZ119: 3 | BA119: 268.3639914 | BB119: 26.09649123 | BC119: 729 | BD119: 6.153976026 | BE119: 1645 | BF119: 13.88654398 | BG119: 1014 | BH119: 8.559851427 | BI119: 1101 | BJ119: 9.294276549 | BK119: 736 | BL119: 6.213067702 | BM119: 6063 | BN119: 51.18183353 | BO119: 558 | BP119: 4.710450785 | BQ119: 231.870229 | BR119: 322.519084 | BS119: 430.6615776 | BT119: 350.1908397 | BU119: 234.0966921 | BV119: 92.55725191 | BW119: 177.480916 | BX119: 55.66157761 | BY119: 1928.435115 | BZ119: Data not yet available | CA119: 369.5175439 | CB119: Data not yet available | CC119: Data not yet available | CD119: Data not yet available | CE119: Data not yet available | CF119: Data not yet available | CG119: Data not yet available | CH119: Data not yet available | CI119: 1130 | CJ119: 36.12210288 | CK119: 933.793 | CL119: 297.0079517 | CM119: 32 | CN119: 1 | CO119: 0 | CP119: Data not yet available | CQ119: Data not yet available | CR119: 2715 | CS119: 2574 | CT119: 105.48 | CU119: 121.65 | CV119: 3.6 | CW119: Y | CX119: 103000 | CY119: 99000 | CZ119: 0 | DA119: 18735 | DB119: 2486 | DC119: 225500 | DD119: 0 | DE119: 0 | DF119: 0 | DG119: 8 | DH119: 393 | DI119: 25 | DJ119: 75 | DK119: 0 | DL119: 0 | DM119: 12.5 | DN119: 50 | DO119: 37 | DP119: 73 | DQ119: 43.06849315
A120: Walgett | B120: 10 | C120: Large Rural | E120: 22308.4 | F120: 6369 | G120: -6.296895689 | H120: 0.3 | I120: 3350 | J120: 52.5985241 | K120: 3019 | L120: 47.4014759 | M120: 25.45140524 | N120: 49.99214947 | O120: 24.55644528 | P120: 37.47841105 | Q120: 37.96514366 | R120: 24.55644528 | S120: 29.4 | T120: 5.3 | U120: 3 | V120: 7.7 | W120: 39242.4099 | X120: 2.3 | Y120: Agriculture, Forestry and Fishing | Z120: 761 | AA120: Data not yet available | AB120: Data not yet available | AC120: Data not yet available | AD120: Data not yet available | AE120: 20.2 | AF120: 5.6573 | AG120: 52 | AH120: 47.99848636 | AI120: 10.37 | AJ120: 17.781 | AK120: 2.332846715 | AL120: 16.2739 | AM120: 29128 | AN120: 36997 | AO120: 1196 | AP120: 331.8534961 | AQ120: 3604 | AR120: 3617 | AS120: 4357.831325 | AT120: 830 | AU120: 313 | AV120: 683.4061135 | AW120: 458 | AX120: 0 | AY120: 0 | AZ120: 0 | BA120: 232.3701914 | BB120: 19.95005549 | BC120: 3807 | BD120: 13.06989838 | BE120: 3221 | BF120: 11.05808844 | BG120: 1426 | BH120: 4.895633068 | BI120: 2443 | BJ120: 8.387118923 | BK120: 4205 | BL120: 14.43628124 | BM120: 13191 | BN120: 45.28632244 | BO120: 835 | BP120: 2.866657512 | BQ120: 597.7390485 | BR120: 223.8970011 | BS120: 423.4573716 | BT120: 383.5766996 | BU120: 660.2292354 | BV120: 82.27351233 | BW120: 131.103784 | BX120: 54.9536819 | BY120: 2071.125765 | BZ120: Data not yet available | CA120: 336.8479467 | CB120: Data not yet available | CC120: Data not yet available | CD120: Data not yet available | CE120: Data not yet available | CF120: Data not yet available | CG120: Data not yet available | CH120: Data not yet available | CI120: 2482 | CJ120: 34.68421053 | CK120: 2376.06 | CL120: 373.0664154 | CM120: 81.42 | CN120: 6 | CO120: 5 | CP120: Data not yet available | CQ120: Data not yet available | CR120: 3595 | CS120: 4936 | CT120: 72.83 | CU120: 124.04 | CV120: 5.72 | CW120: Y | CX120: 41000 | CY120: 128000 | CZ120: 0 | DA120: 7000 | DB120: 0 | DC120: 236829 | DD120: 0 | DE120: 0 | DF120: 0 | DG120: 9 | DH120: 707.6666667 | DI120: 22 | DJ120: 78 | DK120: 22.22222222 | DL120: 11.11111111 | DM120: 0 | DN120: 33 | DO120: 67 | DP120: 104 | DQ120: 61.24038462
A121: Warren | B121: 9 | C121: Rural | E121: 10753.8 | F121: 2802 | G121: -2.096436059 | H121: 0.3 | I121: 1415 | J121: 50.49964311 | K121: 1387 | L121: 49.50035689 | M121: 27.98001428 | N121: 46.93076374 | O121: 25.08922198 | P121: 37.93718772 | Q121: 36.97359029 | R121: 25.08922198 | S121: 14.7 | T121: 2 | U121: 51 | V121: 3.5 | W121: 42965.77778 | X121: 2.4 | Y121: Agriculture, Forestry and Fishing | Z121: 428 | AA121: Data not yet available | AB121: Data not yet available | AC121: Data not yet available | AD121: Data not yet available | AE121: 23.04 | AF121: 7.4543 | AG121: 47.59 | AH121: 52.39512224 | AI121: 2.49 | AJ121: 62.5614 | AK121: 0.6814106396 | AL121: 17.7025 | AM121: 13346 | AN121: 17139 | AO121: 561 | AP121: 508.612874 | AQ121: 1103 | AR121: 3757 | AS121: 5452.830189 | AT121: 689 | AU121: 182 | AV121: 1529.411765 | AW121: 119 | AX121: 0 | AY121: 0 | AZ121: 0 | BA121: 147.68406 | BB121: 19.22030825 | BC121: 3339 | BD121: 25.0187322 | BE121: 1952 | BF121: 14.6261052 | BG121: 883 | BH121: 6.616214596 | BI121: 219 | BJ121: 1.640941106 | BK121: 1485 | BL121: 11.12692942 | BM121: 5149 | BN121: 38.58084819 | BO121: 319 | BP121: 2.390229282 | BQ121: 1191.648822 | BR121: 315.1320485 | BS121: 522.1270521 | BT121: 78.15845824 | BU121: 529.9785867 | BV121: 174.5182013 | BW121: 113.847252 | BX121: 120.2712348 | BY121: 1837.615989 | BZ121: Data not yet available | CA121: 193.1097008 | CB121: Data not yet available | CC121: Data not yet available | CD121: Data not yet available | CE121: Data not yet available | CF121: Data not yet available | CG121: Data not yet available | CH121: Data not yet available | CI121: 708 | CJ121: 56.45756458 | CK121: 1323.96 | CL121: 472.5053533 | CM121: 70 | CN121: 1 | CO121: 1 | CP121: Data not yet available | CQ121: Data not yet available | CR121: 3140 | CS121: 1984 | CT121: 158.27 | CU121: 125.97 | CV121: 0.78 | CW121: Y | CX121: 26000 | CY121: 133000 | CZ121: 0 | DA121: 7000 | DB121: 0 | DC121: 200470 | DD121: 0 | DE121: 0 | DF121: 0 | DG121: 12 | DH121: 233.5 | DI121: 42 | DJ121: 58 | DK121: 0 | DL121: 0 | DM121: 0 | DN121: 75 | DO121: 25 | DP121: 75 | DQ121: 37.36
A122: Warrumbungle | B122: 10 | C122: Large Rural | D122: Orana | E122: 12372.1 | F122: 9541 | G122: -3.60678925 | H122: 0.8 | I122: 4773 | J122: 50.0262027 | K122: 4768 | L122: 49.9737973 | M122: 23.84446075 | N122: 43.20301855 | O122: 32.9525207 | P122: 32.47039094 | Q122: 34.57708836 | R122: 32.9525207 | S122: 9.8 | T122: 2.1 | U122: 21 | V122: 3.7 | W122: 42019.22567 | X122: 2.3 | Y122: Agriculture, Forestry and Fishing | Z122: 1020 | AA122: Data not yet available | AB122: Data not yet available | AC122: Data not yet available | AD122: Data not yet available | AE122: 2.04 | AF122: 4.2695 | AG122: 46.46 | AH122: 53.48278793 | AI122: 7.91 | AJ122: 9.8676 | AK122: 2.694013564 | AL122: 6.5 | AM122: 42398 | AN122: 47060 | AO122: 2026 | AP122: 526.6441383 | AQ122: 3847 | AR122: 4884 | AS122: 2810.126582 | AT122: 1738 | AU122: 569 | AV122: 1529.569892 | AW122: 372 | AX122: 0 | AY122: 0 | AZ122: 0 | BA122: 139.7175558 | BB122: 31.73901742 | BC122: 7823 | BD122: 18.44826008 | BE122: 10236 | BF122: 24.13861565 | BG122: 2951 | BH122: 6.959267124 | BI122: 4244 | BJ122: 10.00823415 | BK122: 3788 | BL122: 8.932891371 | BM122: 11572 | BN122: 27.28918135 | BO122: 1791 | BP122: 4.223550276 | BQ122: 819.9350173 | BR122: 309.2967194 | BS122: 601.928519 | BT122: 444.8171051 | BU122: 397.0233728 | BV122: 470.9149984 | BW122: 187.7161723 | BX122: 65.19232785 | BY122: 1212.870768 | BZ122: Data not yet available | CA122: 371.718222 | CB122: Data not yet available | CC122: Data not yet available | CD122: Data not yet available | CE122: Data not yet available | CF122: Data not yet available | CG122: Data not yet available | CH122: Data not yet available | CI122: 3209 | CJ122: 53.05047549 | CK122: 2667.71 | CL122: 279.6048632 | CM122: 94 | CN122: 6 | CO122: 10 | CP122: Data not yet available | CQ122: Data not yet available | CR122: 7703 | CS122: 6549 | CT122: 117.62 | CU122: 34.63 | CV122: 0.09 | CW122: Y | CX122: 23000 | CY122: 122000 | CZ122: 0 | DA122: 14252 | DB122: 575 | DC122: 282103 | DD122: 2 | DE122: 3970 | DF122: 5 | DG122: 9 | DH122: 1060.111111 | DI122: 22 | DJ122: 78 | DK122: 11 | DL122: 11 | DM122: 0 | DN122: 44 | DO122: 56 | DP122: 192 | DQ122: 49.69270833
A123: Waverley | B123: 3 | C123: Metropolitan | E123: 9.4 | F123: 72106 | G123: 4.96084311 | H123: 7711.3 | I123: 35354 | J123: 49.03059385 | K123: 36752 | L123: 50.96940615 | M123: 19.48936288 | N123: 63.926719 | O123: 16.58391812 | P123: 36.90400244 | Q123: 46.51207944 | R123: 16.58391812 | S123: 0.4 | T123: 21 | U123: 124 | V123: 2.1 | W123: 81752.32211 | X123: 2.4 | Y123: Professional Scientific & Technical Services | Z123: 9992 | AA123: Data not yet available | AB123: Data not yet available | AC123: Data not yet available | AD123: Data not yet available | AE123: 2.37 | AF123: 12.43 | AG123: 86.48 | AH123: 13.16669804 | AI123: 3.78 | AJ123: 20.2668 | AK123: 0.8754925639 | AL123: 14.4661 | AM123: 126933 | AN123: 138106 | AO123: 30409 | AP123: 1042.796886 | AQ123: 29161 | AR123: 0 | AS123: 0 | AT123: 0 | AU123: 11444 | AV123: 6126.33833 | AW123: 1868 | AX123: 0 | AY123: 0 | AZ123: 0 | BA123: 643.0087284 | BB123: 6.573848633 | BC123: 28431 | BD123: 22.39843067 | BE123: 9931 | BF123: 7.823812563 | BG123: 25099 | BH123: 19.77342377 | BI123: 19859 | BJ123: 15.64526167 | BK123: 21339 | BL123: 16.81123112 | BM123: 20711 | BN123: 16.31648192 | BO123: 1563 | BP123: 1.231358276 | BQ123: 394.2945109 | BR123: 348.0847641 | BS123: 0 | BT123: 275.4139739 | BU123: 295.9393116 | BV123: 137.7277896 | BW123: 21.67642082 | BX123: 73.14231825 | BY123: 287.2299115 | BZ123: Data not yet available | CA123: 530.3658997 | CB123: Data not yet available | CC123: Data not yet available | CD123: Data not yet available | CE123: Data not yet available | CF123: Data not yet available | CG123: Data not yet available | CH123: Data not yet available | CI123: 6775 | CJ123: 56.23950394 | CK123: 123.46 | CL123: 1.712201481 | CM123: 115.5 | CN123: 2 | CO123: 10 | CP123: Data not yet available | CQ123: Data not yet available | CR123: 16815 | CS123: 17116 | CT123: 98.24 | CU123: 40.92 | CV123: 1.1 | CW123: Y | CX123: 137000 | CY123: 267000 | CZ123: 0 | DA123: 13000 | DB123: 0 | DC123: 299000 | DD123: 0 | DE123: 0 | DF123: 0 | DG123: 12 | DH123: 6008.833333 | DI123: 42 | DJ123: 58 | DK123: 8 | DL123: 8 | DM123: 8 | DN123: 50 | DO123: 41.66666667 | DP123: 585 | DQ123: 123.2581197
A124: Weddin | B124: 9 | C124: Rural | D124: Central NSW | E124: 3414.9 | F124: 3692 | G124: -1.782388933 | H124: 1.1 | I124: 1851 | J124: 50.13542795 | K124: 1841 | L124: 49.86457205 | M124: 22.07475623 | N124: 42.55146262 | O124: 35.37378115 | P124: 29.22535211 | Q124: 35.40086674 | R124: 35.37378115 | S124: 2.9 | T124: 1.3 | U124: 56 | V124: 3.7 | W124: 36508.5585 | X124: 2.2 | Y124: Agriculture, Forestry and Fishing | Z124: 503 | AA124: Data not yet available | AB124: Data not yet available | AC124: Data not yet available | AD124: Data not yet available | AE124: 19.9 | AF124: 5.2309 | AG124: 44.24 | AH124: 55.51378446 | AI124: 5.92 | AJ124: 42.5481 | AK124: 0.8779345776 | AL124: 11.8636 | AM124: 12317 | AN124: 16758 | AO124: 704 | AP124: 479.2375766 | AQ124: 1469 | AR124: 1439 | AS124: 1447.686117 | AT124: 994 | AU124: 122 | AV124: 924.2424242 | AW124: 132 | AX124: 6 | AY124: 6000 | AZ124: 1 | BA124: 214.231022 | BB124: 32.53914227 | BC124: 1903 | BD124: 15.45019079 | BE124: 1073 | BF124: 8.7115369 | BG124: 631 | BH124: 5.123000731 | BI124: 385 | BJ124: 3.125761143 | BK124: 877 | BL124: 7.120240318 | BM124: 3844 | BN124: 31.20889827 | BO124: 3604 | BP124: 29.26037184 | BQ124: 515.4387866 | BR124: 170.9100758 | BS124: 108.6132178 | BT124: 104.2795233 | BU124: 237.5406284 | BV124: 182.0151679 | BW124: 976.1646804 | BX124: 41.71180932 | BY124: 1041.170098 | BZ124: Data not yet available | CA124: 213.0701157 | CB124: Data not yet available | CC124: Data not yet available | CD124: Data not yet available | CE124: Data not yet available | CF124: Data not yet available | CG124: Data not yet available | CH124: Data not yet available | CI124: 1077 | CJ124: 52.88713911 | CK124: 1084.89 | CL124: 293.8488624 | CM124: 11.5 | CN124: 2 | CO124: 2 | CP124: Data not yet available | CQ124: Data not yet available | CR124: 1247 | CS124: 1238 | CT124: 100.73 | CU124: 289.35 | CV124: 1.74 | CW124: Y | CX124: 5000 | CY124: 127000 | CZ124: 0 | DA124: 0 | DB124: 0 | DC124: 178850 | DD124: 0 | DE124: 0 | DF124: 0 | DG124: 9 | DH124: 410.2222222 | DI124: 22.22222222 | DJ124: 77.77777778 | DK124: 0 | DL124: 0 | DM124: 0 | DN124: 78 | DO124: 22 | DP124: 59 | DQ124: 62.57627119
A125: Wentworth | B125: 10 | C125: Large Rural | E125: 26256.2 | F125: 6920 | G125: 1.213982741 | H125: 0.3 | I125: 3568 | J125: 51.56069364 | K125: 3352 | L125: 48.43930636 | M125: 25.10115607 | N125: 47.94797688 | O125: 26.95086705 | P125: 34.79768786 | Q125: 38.25144509 | R125: 26.95086705 | S125: 9.6 | T125: 3 | U125: 49 | V125: 7.6 | W125: 38581.81696 | X125: 2.4 | Y125: Agriculture, Forestry and Fishing | Z125: 764 | AA125: Data not yet available | AB125: Data not yet available | AC125: Data not yet available | AD125: Data not yet available | AE125: 13.35 | AF125: 6.9244 | AG125: 48 | AH125: 51.49308084 | AI125: 10.23 | AJ125: 42.2982 | AK125: 0.9549605862 | AL125: 17.9672 | AM125: 24952 | AN125: 31579 | AO125: 1802 | AP125: 712.2529644 | AQ125: 2530 | AR125: 1615 | AS125: 1516.431925 | AT125: 1065 | AU125: 1370 | AV125: 5229.007634 | AW125: 262 | AX125: 0 | AY125: 0 | AZ125: 0 | BA125: 96.65781283 | BB125: 20.90909091 | BC125: 4513 | BD125: 18.08672651 | BE125: 4691 | BF125: 18.80009618 | BG125: 2514 | BH125: 10.07534466 | BI125: 1235 | BJ125: 4.949503046 | BK125: 2400 | BL125: 9.618467458 | BM125: 8596 | BN125: 34.45014428 | BO125: 1003 | BP125: 4.019717858 | BQ125: 652.1676301 | BR125: 363.2947977 | BS125: 537.716763 | BT125: 178.4682081 | BU125: 346.8208092 | BV125: 140.1734104 | BW125: 144.9421965 | BX125: 69.07514451 | BY125: 1242.196532 | BZ125: Data not yet available | CA125: 254.1501976 | CB125: Data not yet available | CC125: Data not yet available | CD125: Data not yet available | CE125: Data not yet available | CF125: Data not yet available | CG125: Data not yet available | CH125: Data not yet available | CI125: 809 | CJ125: 81.32071115 | CK125: 2319.58 | CL125: 335.199422 | CM125: 178 | CN125: 2 | CO125: 9 | CP125: Data not yet available | CQ125: Data not yet available | CR125: 4780 | CS125: 4008 | CT125: 119.26 | CU125: 67.86 | CV125: 6.43 | CW125: Y | CX125: 94000 | CY125: 124000 | CZ125: 0 | DA125: 8607 | DB125: 0 | DC125: 218174 | DD125: 0 | DE125: 0 | DF125: 0 | DG125: 9 | DH125: 768.8888889 | DI125: 33 | DJ125: 67 | DK125: 0 | DL125: 0 | DM125: 0 | DN125: 44 | DO125: 56 | DP125: 104 | DQ125: 66.53846154
A126: Willoughby | B126: 3 | C126: Metropolitan | E126: 22.4 | F126: 78017 | G126: 9.668395676 | H126: 3478.9 | I126: 37776 | J126: 48.42021611 | K126: 40241 | L126: 51.57978389 | M126: 24.75357935 | N126: 56.96066242 | O126: 18.28575823 | P126: 38.28268198 | Q126: 43.43155979 | R126: 18.28575823 | S126: 0.2 | T126: 40.2 | U126: 123 | V126: 4.3 | W126: 87586.04816 | X126: 2.7 | Y126: Professional Scientific & Technical Services | Z126: 12213 | AA126: Data not yet available | AB126: Data not yet available | AC126: Data not yet available | AD126: Data not yet available | AE126: 12.68 | AF126: 4.7017 | AG126: 89.62 | AH126: 10.06612415 | AI126: 1.38 | AJ126: 5.9685 | AK126: 4.194337332 | AL126: 14.3609 | AM126: 97831 | AN126: 119321 | AO126: 28206 | AP126: 986.3617289 | AQ126: 28596 | AR126: 0 | AS126: 0 | AT126: 0 | AU126: 19702 | AV126: 6578.297162 | AW126: 2995 | AX126: 0 | AY126: 0 | AZ126: 0 | BA126: 553.5887914 | BB126: 7.028955099 | BC126: 23769 | BD126: 24.29622815 | BE126: 5223 | BF126: 5.338853113 | BG126: 18805 | BH126: 19.22212 | BI126: 12753 | BJ126: 13.03587856 | BK126: 24899 | BL126: 25.45129306 | BM126: 10704 | BN126: 10.94142901 | BO126: 1677 | BP126: 1.714198099 | BQ126: 304.664368 | BR126: 241.0372098 | BS126: 0 | BT126: 163.4643731 | BU126: 319.1483907 | BV126: 66.94694746 | BW126: 21.49531512 | BX126: 57.28238717 | BY126: 137.2008665 | BZ126: Data not yet available | CA126: 520.5623164 | CB126: Data not yet available | CC126: Data not yet available | CD126: Data not yet available | CE126: Data not yet available | CF126: Data not yet available | CG126: Data not yet available | CH126: Data not yet available | CI126: 5515 | CJ126: 65.13465672 | CK126: 212 | CL126: 2.717356474 | CM126: 361.6 | CN126: 3 | CO126: 17 | CP126: Data not yet available | CQ126: Data not yet available | CR126: 8618 | CS126: 8618 | CT126: 100 | CU126: 97.86 | CV126: 1.42 | CW126: Y | CX126: 0 | CY126: 391000 | CZ126: 0 | DA126: 15203 | DB126: 0 | DC126: 344452 | DD126: 12 | DE126: 21266 | DF126: 2 | DG126: 13 | DH126: 6001.307692 | DI126: 38 | DJ126: 62 | DK126: 0 | DL126: 0 | DM126: 8 | DN126: 54 | DO126: 38.46153846 | DP126: 356 | DQ126: 219.1488764
A127: Wingecarribee | B127: 4 | C127: Regional Town/City | D127: Canberra | E127: 2689.3 | F127: 49070 | G127: 6.382517452 | H127: 18.2 | I127: 23547 | J127: 47.98654983 | K127: 25523 | L127: 52.01345017 | M127: 24.39168535 | N127: 43.96983901 | O127: 31.63847565 | P127: 33.05481965 | Q127: 35.30670471 | R127: 31.63847565 | S127: 2 | T127: 5.6 | U127: 100 | V127: 3 | W127: 54663.91916 | X127: 2.4 | Y127: Health Care & Social Assistance | Z127: 5350 | AA127: Data not yet available | AB127: Data not yet available | AC127: Data not yet available | AD127: Data not yet available | AE127: 9.02 | AF127: 4.8625 | AG127: 67.05 | AH127: 32.95205341 | AI127: 2.22 | AJ127: 5.9829 | AK127: 5.552620553 | AL127: 18.7887 | AM127: 102730 | AN127: 143639 | AO127: 27761 | AP127: 1356.511117 | AQ127: 20465 | AR127: 4124 | AS127: 3103.085026 | AT127: 1329 | AU127: 4723 | AV127: 3824.291498 | AW127: 1235 | AX127: 102 | AY127: 14571.42857 | AZ127: 7 | BA127: 237.4947486 | BB127: 21.46103103 | BC127: 19374 | BD127: 18.85914533 | BE127: 27058 | BF127: 26.33894675 | BG127: 15773 | BH127: 15.35384016 | BI127: 5273 | BJ127: 5.132872579 | BK127: 10129 | BL127: 9.85982673 | BM127: 22111 | BN127: 21.52341088 | BO127: 3012 | BP127: 2.931957559 | BQ127: 394.8237212 | BR127: 321.438761 | BS127: 476.502955 | BT127: 107.4587324 | BU127: 206.4194009 | BV127: 74.91338904 | BW127: 61.38169961 | BX127: 26.28897493 | BY127: 450.601182 | BZ127: Data not yet available | CA127: 358.8565844 | CB127: Data not yet available | CC127: Data not yet available | CD127: Data not yet available | CE127: Data not yet available | CF127: Data not yet available | CG127: Data not yet available | CH127: Data not yet available | CI127: 7300 | CJ127: 76.24239268 | CK127: 1206.4 | CL127: 24.58528633 | CM127: 582.61 | CN127: 4 | CO127: 23 | CP127: Data not yet available | CQ127: Data not yet available | CR127: 18240 | CS127: 17254 | CT127: 105.72 | CU127: 60.94 | CV127: 1.73 | CW127: Y | CX127: 0 | CY127: 205000 | CZ127: 0 | DA127: 9694 | DB127: 0 | DC127: 304681 | DD127: 0 | DE127: 0 | DF127: 0 | DG127: 9 | DH127: 5452.222222 | DI127: 0 | DJ127: 100 | DK127: 0 | DL127: 0 | DM127: 0 | DN127: 11 | DO127: 89 | DP127: 378 | DQ127: 129.8148148
A128: Wollondilly | B128: 6 | C128: Metropolitan Fringe | E128: 2555.4 | F128: 49742 | G128: 11.51164615 | H128: 19.5 | I128: 24923 | J128: 50.10453942 | K128: 24819 | L128: 49.89546058 | M128: 29.46001367 | N128: 52.21945237 | O128: 18.32053396 | P128: 41.69313658 | Q128: 39.98632946 | R128: 18.32053396 | S128: 3.2 | T128: 5.7 | U128: 104 | V128: 3.2 | W128: 59127.71138 | X128: 3 | Y128: Manufacturing | Z128: 4341 | AA128: Data not yet available | AB128: Data not yet available | AC128: Data not yet available | AD128: Data not yet available | AE128: 0.86 | AF128: 2.9902 | AG128: 69.71 | AH128: 30.27901854 | AI128: 5.2 | AJ128: 4.1945 | AK128: 6.277299388 | AL128: 10.4027 | AM128: 55609 | AN128: 65372 | AO128: 25067 | AP128: 1477.919934 | AQ128: 16961 | AR128: 837 | AS128: 2708.737864 | AT128: 309 | AU128: 1312 | AV128: 2289.703316 | AW128: 573 | AX128: 1340 | AY128: 148888.8889 | AZ128: 9 | BA128: 204.9479663 | BB128: 14.35056895 | BC128: 5451 | BD128: 9.80237012 | BE128: 3811 | BF128: 6.853207215 | BG128: 8975 | BH128: 16.13947383 | BI128: 9048 | BJ128: 16.27074754 | BK128: 8960 | BL128: 16.11249978 | BM128: 16776 | BN128: 30.1677786 | BO128: 2588 | BP128: 4.653922926 | BQ128: 109.585461 | BR128: 180.4310241 | BS128: 0 | BT128: 181.8985968 | BU128: 180.1294681 | BV128: 76.61533513 | BW128: 52.02846689 | BX128: 29.51228338 | BY128: 337.260263 | BZ128: Data not yet available | CA128: 438.7123401 | CB128: Data not yet available | CC128: Data not yet available | CD128: Data not yet available | CE128: Data not yet available | CF128: Data not yet available | CG128: Data not yet available | CH128: Data not yet available | CI128: 11419 | CJ128: 66.05327308 | CK128: 872.97 | CL128: 17.54995778 | CM128: 344.96 | CN128: 2 | CO128: 10 | CP128: Data not yet available | CQ128: Data not yet available | CR128: 20242 | CS128: 16331 | CT128: 123.95 | CU128: 99.37 | CV128: 13.54 | CW128: Y | CX128: 29000 | CY128: 197000 | CZ128: 0 | DA128: 7732 | DB128: 2877 | DC128: 328150 | DD128: 0 | DE128: 0 | DF128: 0 | DG128: 9 | DH128: 5526.888889 | DI128: 11 | DJ128: 89 | DK128: 0 | DL128: 0 | DM128: 0 | DN128: 89 | DO128: 11 | DP128: 233 | DQ128: 213.4849785
A129: Wollongong | B129: 5 | C129: Regional Town/City | D129: Illawarra Shoalhaven | E129: 684 | F129: 211201 | G129: 4.519765623 | H129: 308.8 | I129: 104599 | J129: 49.52580717 | K129: 106602 | L129: 50.47419283 | M129: 24.68975052 | N129: 52.96092348 | O129: 22.349326 | P129: 39.58409288 | Q129: 38.06658112 | R129: 22.349326 | S129: 2.6 | T129: 16.8 | U129: 94 | V129: 6 | W129: 57993.92385 | X129: 2.6 | Y129: Health Care & Social Assistance | Z129: 12911 | AA129: Data not yet available | AB129: Data not yet available | AC129: Data not yet available | AD129: Data not yet available | AE129: 10.74 | AF129: 2.6471 | AG129: 74.75 | AH129: 25.16254075 | AI129: 5.88 | AJ129: 8.5101 | AK129: 3.991710891 | AL129: 6.8893 | AM129: 255067 | AN129: 324534 | AO129: 105081 | AP129: 1367.529932 | AQ129: 76840 | AR129: 316 | AS129: 2611.570248 | AT129: 121 | AU129: 47237 | AV129: 11724.24919 | AW129: 4029 | AX129: 932 | AY129: 62133.33333 | AZ129: 15 | BA129: 128.38215 | BB129: 19.11634565 | BC129: 42002 | BD129: 16.46704591 | BE129: 15959 | BF129: 6.256787432 | BG129: 61432 | BH129: 24.08465227 | BI129: 28371 | BJ129: 11.12295985 | BK129: 54384 | BL129: 21.32145672 | BM129: 40572 | BN129: 15.9064089 | BO129: 12347 | BP129: 4.840688917 | BQ129: 198.8721644 | BR129: 290.8698349 | BS129: 0 | BT129: 134.3317503 | BU129: 257.4987808 | BV129: 75.56308919 | BW129: 58.46089744 | BX129: 51.00354638 | BY129: 192.1013632 | BZ129: Data not yet available | CA129: 379.7891723 | CB129: Data not yet available | CC129: Data not yet available | CD129: Data not yet available | CE129: Data not yet available | CF129: Data not yet available | CG129: Data not yet available | CH129: Data not yet available | CI129: 21383 | CJ129: 71.99418483 | CK129: 1019.93 | CL129: 4.82919115 | CM129: 2458 | CN129: 18 | CO129: 36 | CP129: Data not yet available | CQ129: Data not yet available | CR129: 65384 | CS129: 66671 | CT129: 98.07 | CU129: 72.67 | CV129: 5.74 | CW129: Y | CX129: 59000 | CY129: 449000 | CZ129: 2000 | DA129: 25000 | DB129: 0 | DC129: 384470 | DD129: 2 | DE129: 0 | DF129: 0 | DG129: 13 | DH129: 16246.23077 | DI129: 46 | DJ129: 54 | DK129: 0 | DL129: 0 | DM129: 8 | DN129: 46 | DO129: 46 | DP129: 1147 | DQ129: 184.1333915
A130: Woollahra | B130: 2 | C130: Metropolitan | E130: 12.3 | F130: 58290 | G130: 3.497869318 | H130: 4747.7 | I130: 27358 | J130: 46.93429405 | K130: 30932 | L130: 53.06570595 | M130: 20.3139475 | N130: 56.5963287 | O130: 23.08972379 | P130: 35.27706296 | Q130: 41.63321324 | R130: 23.08972379 | S130: 0.3 | T130: 15.4 | U130: 129 | V130: 1.5 | W130: 108648.3805 | X130: 2.3 | Y130: Professional Scientific & Technical Services | Z130: 9989 | AA130: Data not yet available | AB130: Data not yet available | AC130: Data not yet available | AD130: Data not yet available | AE130: 4.34 | AF130: 3.8749 | AG130: 90.4 | AH130: 9.022405401 | AI130: 4.13 | AJ130: 3.0005 | AK130: 7.065009153 | AL130: 6.9661 | AM130: 89877 | AN130: 104573 | AO130: 32090 | AP130: 1307.714251 | AQ130: 24539 | AR130: 0 | AS130: 0 | AT130: 0 | AU130: 5022 | AV130: 3511.888112 | AW130: 1430 | AX130: 0 | AY130: 0 | AZ130: 0 | BA130: 885.106778 | BB130: 3.871388402 | BC130: 21008 | BD130: 23.37390685 | BE130: 6238 | BF130: 6.940519371 | BG130: 16002 | BH130: 17.80413449 | BI130: 10030 | BJ130: 11.15957186 | BK130: 13229 | BL130: 14.7188411 | BM130: 14327 | BN130: 15.94049712 | BO130: 9044 | BP130: 10.06252921 | BQ130: 360.4048722 | BR130: 274.5239321 | BS130: 0 | BT130: 172.0706811 | BU130: 226.9514496 | BV130: 107.0166409 | BW130: 155.1552582 | BX130: 87.39063304 | BY130: 245.7882999 | BZ130: Data not yet available | CA130: 561.2290639 | CB130: Data not yet available | CC130: Data not yet available | CD130: Data not yet available | CE130: Data not yet available | CF130: Data not yet available | CG130: Data not yet available | CH130: Data not yet available | CI130: 6664 | CJ130: 54.76513712 | CK130: 145.82 | CL130: 2.501629782 | CM130: 102 | CN130: 3 | CO130: 15 | CP130: Data not yet available | CQ130: Data not yet available | CR130: 4334 | CS130: 4347 | CT130: 99.7 | CU130: 103.05 | CV130: 1.38 | CW130: Y | CX130: 22000 | CY130: 277000 | CZ130: 0 | DA130: 17000 | DB130: 0 | DC130: 359156 | DD130: 1 | DE130: 0 | DF130: 0 | DG130: 15 | DH130: 3886 | DI130: 60 | DJ130: 40 | DK130: 0 | DL130: 0 | DM130: 0 | DN130: 80 | DO130: 20 | DP130: 362 | DQ130: 161.0220994
A131: Yass Valley | B131: 11 | C131: Large Rural | D131: Canberra | E131: 3995.3 | F131: 16628 | G131: 6.487351905 | H131: 4.2 | I131: 8207 | J131: 49.3565071 | K131: 8421 | L131: 50.6434929 | M131: 28.19340871 | N131: 50.29468367 | O131: 21.51190763 | P131: 37.47895117 | Q131: 41.00914121 | R131: 21.51190763 | S131: 2.4 | T131: 3.6 | U131: 111 | V131: 2.2 | W131: 63264.21064 | X131: 2.7 | Y131: Public Administration & Safety | Z131: 1931 | AA131: Data not yet available | AB131: Data not yet available | AC131: Data not yet available | AD131: Data not yet available | AE131: -2.32 | AF131: 1.7685 | AG131: 63.67 | AH131: 34.74776958 | AI131: 4.02 | AJ131: 2.5843 | AK131: 9.024094297 | AL131: 7.6395 | AM131: 29755 | AN131: 36316 | AO131: 4276 | AP131: 768.9264521 | AQ131: 5561 | AR131: 3313 | AS131: 2289.564616 | AT131: 1447 | AU131: 548 | AV131: 1971.223022 | AW131: 278 | AX131: 0 | AY131: 0 | AZ131: 0 | BA131: 291.417896 | BB131: 13.54073008 | BC131: 2978 | BD131: 10.00840195 | BE131: 6649 | BF131: 22.34582423 | BG131: 3388 | BH131: 11.38632163 | BI131: 2450 | BJ131: 8.233910267 | BK131: 2836 | BL131: 9.531171232 | BM131: 10349 | BN131: 34.78070912 | BO131: 1105 | BP131: 3.713661569 | BQ131: 179.0955016 | BR131: 203.7527063 | BS131: 325.41 | BT131: 147.3418331 | BU131: 170.5556892 | BV131: 74.45273033 | BW131: 66.45417368 | BX131: 36.98580707 | BY131: 622.3839307 | BZ131: Data not yet available | CA131: 246.1787448 | CB131: Data not yet available | CC131: Data not yet available | CD131: Data not yet available | CE131: Data not yet available | CF131: Data not yet available | CG131: Data not yet available | CH131: Data not yet available | CI131: 5310 | CJ131: 47.3318786 | CK131: 1236.036 | CL131: 74.33461631 | CM131: 256 | CN131: 2 | CO131: 4 | CP131: Data not yet available | CQ131: Data not yet available | CR131: 6287 | CS131: 6591 | CT131: 95.39 | CU131: 91.19 | CV131: 1.98 | CW131: Y | CX131: 16000 | CY131: 128000 | CZ131: 0 | DA131: 1348 | DB131: 0 | DC131: 230313 | DD131: 1 | DE131: 1815 | DF131: 0 | DG131: 9 | DH131: 1847.555556 | DI131: 33.33333333 | DJ131: 66.66666667 | DK131: 0 | DL131: 0 | DM131: 12 | DN131: 44 | DO131: 44 | DP131: 138 | DQ131: 120.4927536
A133: * Council was created on 12 May 2016 and was required to report its 2016-17 Financial Statements from 13 May 2016 to 30 June 2017, a period of approximately 13½ months. The financial information for Council has not been included. The varied reporting timeframe does not enable consistent and relative data comparisons with existing councils, nor will it allow the creation of accurate trend data in future years. From 2017-18 onwards, Councils full financial information will be reported.
A137: # Council was created on 9 September 2016 and is required to report its 2016-17 financial statements for the period of 10 September 2016 to 30 June 2017, a period of approximately 9½ months. Bayside Council received an extension of time to complete it’s 2016-17 financial statements. From 2017-18 onwards, Councils full financial information will be reported.
A141: ## This information will be updated once made available by the lead agency.

Sheet Sheet1 (hidden)
B1: 1 | H1: Total Road Length (inlcuding local, regional & state) (km) | I1: Road legth per capita
C2: Area | D2: Pop | F2: EFT | G2: Pop
B3: Albury | C3: 305.9 | D3: 51082 | E3: =D3/C3 -> 166.9892122 | F3: 456 | G3: =D3/F3 -> 112.0219298 | H3: 565.11 | I3: =((H3)/(D3/1000)) -> 11.06280099
B4: Armidale Dumaresq | C4: 4231.5 | D4: 25327 | E4: =D4/C4 -> 5.985347985 | F4: 231 | G4: =D4/F4 -> 109.6406926 | H4: 1064.94 | I4: =((H4)/(D4/1000)) -> 42.04761717
B5: Ashfield | C5: 8.3 | D5: 44498 | E5: 5361.204819 | F5: 178 | G5: 249.988764 | H5: 97.62 | I5: 2.193806463
B6: Auburn | C6: 32.5 | D6: 85446 | E6: 2629.107692 | F6: 279 | G6: 306.2580645 | H6: 225 | I6: 2.633242048
B7: Ballina | C7: 485.4 | D7: 41644 | E7: 85.79316028 | F7: 274 | G7: 151.9854015 | H7: 656.72 | I7: 15.7698588
B8: Balranald | C8: 21699.5 | D8: 2400 | E8: 0.1106016268 | F8: 63 | G8: 38.0952381 | H8: 1586.61 | I8: 661.0875
B9: Bankstown | C9: 76.8 | D9: 200357 | E9: 2608.815104 | F9: 721 | G9: 277.887656 | H9: 596.85 | I9: 2.978932605
B10: Bathurst Regional | C10: 3818 | D10: 41682 | E10: 10.91723415 | F10: 381 | G10: 109.4015748 | H10: 1334.88 | I10: 32.02533468
B11: Bega Valley | C11: 6279.9 | D11: 33468 | E11: 5.329384226 | F11: 360 | G11: 92.96666667 | H11: 1434.675 | I11: 42.86706705
B12: Bellingen | C12: 1602.1 | D12: 13032 | E12: 8.1343237 | F12: 135 | G12: 96.53333333 | H12: 563.96 | I12: 43.27501535
B13: Berrigan | C13: 2065.9 | D13: 8413 | E13: 4.07231715 | F13: 84 | G13: 100.1547619 | H13: 1376.04 | I13: 163.5611554
B14: Blacktown | C14: 340.3 | D14: 332424 | E14: 976.8557155 | F14: 1427 | G14: 232.9530484 | H14: 1350.62 | I14: 4.06294371
B15: Bland | C15: 8560.4 | D15: 5994 | E15: 0.7002009252 | F15: 115 | G15: 52.12173913 | H15: 3093.47 | I15: 516.0944278
B16: Blayney | C16: 1525.5 | D16: 7409 | E16: 4.856768273 | F16: 72 | G16: 102.9027778 | H16: 730.3 | I16: 98.5693076
B17: Blue Mountains | C17: 1432 | D17: 79688 | E17: 55.64804469 | F17: 512 | G17: 155.640625 | H17: 742.28 | I17: 9.314827829
B18: Bogan | C18: 14612.3 | D18: 3076 | E18: 0.2105075861 | F18: 66 | G18: 46.60606061 | H18: 1605.2 | I18: 521.846554
B19: Bombala | C19: 3945.2 | D19: 2422 | E19: 0.6139105749 | F19: 42 | G19: 57.66666667 | H19: 752.77 | I19: 310.8051197
B20: Boorowa | C20: 2578.6 | D20: 2602 | E20: 1.009074692 | F20: 56 | G20: 46.46428571 | H20: 721.1 | I20: 277.1329746
B21: Botany Bay | C21: 21.7 | D21: 44742 | E21: 2061.843318 | F21: 324 | G21: 138.0925926 | H21: 96.86 | I21: 2.164856287
B22: Bourke | C22: 41652 | D22: 2973 | E22: 0.07137712475 | F22: 81 | G22: 36.7037037 | H22: 2453.86 | I22: 825.3817693
B23: Brewarrina | C23: 19188.2 | D23: 1931 | E23: 0.1006347651 | F23: 43 | G23: 44.90697674 | H23: 1551.7 | I23: 803.5732781
B24: Broken Hill | C24: 178.3 | D24: 19048 | E24: 106.8311834 | F24: 161 | G24: 118.310559 | H24: 250.96 | I24: 13.1751365
B25: Burwood | C25: 36053 | D25: 36053 | E25: 1 | F25: 170 | G25: 212.0764706 | H25: 85.46 | I25: 2.370399135
B26: Byron | C26: 566.6 | D26: 32119 | E26: 56.68725732 | F26: 248 | G26: 129.5120968 | H26: 637.712 | I26: 19.85466546
B27: Cabonne | C27: 6026.8 | D27: 13776 | E27: 2.285790137 | F27: 166 | G27: 82.98795181 | H27: 1930.714 | I27: 140.1505517
B28: Camden | C28: 201.3 | D28: 67084 | E28: 333.25385 | F28: 342 | G28: 196.1520468 | H28: 558.878 | I28: 8.331017828
B29: Campbelltown | C29: 312 | D29: 156572 | E29: 501.8333333 | F29: 601 | G29: 260.5191348 | H29: 713.63 | I29: 4.557839205
B30: Canada Bay | C30: 19.9 | D30: 87480 | E30: 4395.979899 | F30: 316 | G30: 276.835443 | H30: 207 | I30: 2.366255144
B31: Canterbury | C31: 33.6 | D31: 150626 | E31: 4482.916667 | F31: 514 | G31: 293.0466926 | H31: 342.683 | I31: 2.275058755
B32: Carrathool | C32: 18939.5 | D32: 2795 | E32: 0.1475751736 | F32: 92 | G32: 30.38043478 | H32: 2619.66 | I32: 937.2665474
B33: Central Darling | C33: 53533.8 | D33: 2065 | E33: 0.03857376088 | F33: 50 | G33: 41.3 | H33: 2395.82 | I33: 1160.20339
B34: Cessnock | C34: 1966.4 | D34: 54979 | E34: 27.95921481 | F34: 280 | G34: 196.3535714 | H34: 1013.09 | I34: 18.42685389
B35: Clarence Valley | C35: 10441.2 | D35: 51003 | E35: 4.884783358 | F35: 542 | G35: 94.10147601 | H35: 2456.28 | I35: 48.15952003
B36: Cobar | C36: 45604.8 | D36: 5111 | E36: 0.1120715363 | F36: 131 | G36: 39.01526718 | H36: 2319.98 | I36: 453.9189982
B37: Coffs Harbour | C37: 1175.1 | D37: 72382 | E37: 61.59645988 | F37: 438 | G37: 165.2557078 | H37: 872.727 | I37: 12.05723799
B38: Conargo | C38: 8738.2 | D38: 1535 | E38: 0.1756654689 | F38: 34 | G38: 45.14705882 | H38: 1426.19 | I38: 929.1140065
B39: Coolamon | C39: 2431.3 | D39: 4308 | E39: 1.771891581 | F39: 68 | G39: 63.35294118 | H39: 1142.68 | I39: 265.2460539
B40: Cooma-Monaro | C40: 5183.8 | D40: 10216 | E40: 1.970755045 | F40: 160 | G40: 63.85 | H40: 1000.74 | I40: 97.95810493
B41: Coonamble | C41: 9925.3 | D41: 4292 | E41: 0.432430254 | F41: 98 | G41: 43.79591837 | H41: 1657.04 | I41: 386.0764212
B42: Cootamundra | C42: 1524 | D42: 7749 | E42: 5.084645669 | F42: 85.3 | G42: 90.84407972 | H42: 617.58 | I42: 79.69802555
B43: Corowa | C43: 2329 | D43: 11455 | E43: 4.918419923 | F43: 108 | G43: 106.0648148 | H43: 1322.95 | I43: 115.4910519
B44: Cowra | C44: 2809.6 | D44: 12574 | E44: 4.475370159 | F44: 167 | G44: 75.29341317 | H44: 1271.58 | I44: 101.1277239
B45: Deniliquin | C45: 143.2 | D45: 7437 | E45: 51.93435754 | F45: 71.88 | G45: 103.4641068 | H45: 172.57 | I45: 23.20424903
B46: Dubbo | C46: 3425 | D46: 41573 | E46: 12.13810219 | F46: 321 | G46: 129.5109034 | H46: 1316.17 | I46: 31.65924999
B47: Dungog | C47: 2251.5 | D47: 9108 | E47: 4.045303131 | F47: 65 | G47: 140.1230769 | H47: 724.22 | I47: 79.51471234
B48: Eurobodalla | C48: 3427.7 | D48: 37643 | E48: 10.98199959 | F48: 461 | G48: 81.65509761 | H48: 1006.202 | I48: 26.73012247
B49: Fairfield | C49: 101.6 | D49: 203109 | E49: 1999.104331 | F49: 725 | G49: 280.1503448 | H49: 681.39 | I49: 3.35479964
B50: Forbes | C50: 4720 | D50: 9759 | E50: 2.067584746 | F50: 115 | G50: 84.86086957 | H50: 1869.17 | I50: 191.5329439
B51: Gilgandra | C51: 4835.8 | D51: 4440 | E51: 0.9181521155 | F51: 178 | G51: 24.94382022 | H51: 1361.41 | I51: 306.6238739
B52: Glen Innes Severn | C52: 5486.9 | D52: 8966 | E52: 1.634073885 | F52: 122 | G52: 73.49180328 | H52: 1165.32 | I52: 129.9710016
B53: Gloucester | C53: 2952.3 | D53: 5064 | E53: 1.715272838 | F53: 84 | G53: 60.28571429 | H53: 757.26 | I53: 149.5379147
B54: Gosford | C54: 1028 | D54: 171992 | E54: 167.307393 | F54: 1075 | G54: 159.9925581 | H54: 1142.45 | I54: 6.642460114
B55: Goulburn Mulwaree | C55: 3220.3 | D55: 29376 | E55: 9.122131478 | F55: 259 | G55: 113.4208494 | H55: 1189.83 | I55: 40.50347222
B56: Great Lakes | C56: 3375.5 | D56: 36499 | E56: 10.8129166 | F56: 292 | G56: 124.9965753 | H56: 1120.9 | I56: 30.71043042
B57: Greater Hume | C57: 5748.7 | D57: 10258 | E57: 1.78440343 | F57: 114 | G57: 89.98245614 | H57: 2071.71 | I57: 201.9604211
B58: Greater Taree | C58: 3732 | D58: 48941 | E58: 13.11387996 | F58: 248 | G58: 197.3427419 | H58: 1724.18 | I58: 35.22976645
B59: Griffith | C59: 1640.3 | D59: 25811 | E59: 15.73553618 | F59: 280 | G59: 92.18214286 | H59: 1287.42 | I59: 49.87873387
B60: Gundagai | C60: 2457.3 | D60: 3755 | E60: 1.528099947 | F60: 54 | G60: 69.53703704 | H60: 779.42 | I60: 207.5685752
B61: Gunnedah | C61: 4992 | D61: 12826 | E61: 2.569310897 | F61: 174.9 | G61: 73.33333333 | H61: 1469.96 | I61: 114.6078278
B62: Guyra | C62: 4394.4 | D62: 4619 | E62: 1.051110504 | F62: 65 | G62: 71.06153846 | H62: 971.66 | I62: 210.3615501
B63: Gwydir | C63: 9273.6 | D63: 5080 | E63: 0.5477915804 | F63: 0 | H63: 2071.462 | I63: 407.7681102
B64: Harden | C64: 1868.5 | D64: 3751 | E64: 2.007492641 | F64: 0 | H64: 844.24 | I64: 225.0706478
B65: Hawkesbury | C65: 2775.8 | D65: 65527 | E65: 23.60652785 | F65: 288 | G65: 227.5243056 | H65: 1038.75 | I65: 15.85224411
B66: Hay | C66: 11328.5 | D66: 2989 | E66: 0.2638478175 | F66: 54 | G66: 55.35185185 | H66: 941.05 | I66: 314.8377384
B67: Hills | C67: 400.6 | D67: 187703 | E67: 468.554668 | F67: 539.92 | G67: 347.6496518 | H67: 1005.95 | I67: 5.35926437
B68: Holroyd | C68: 40.2 | D68: 111100 | E68: =D68/C68 -> 2763.681592 | F68: 485 | G68: =D68/F68 -> 229.0721649 | H68: 345.17 | I68: =((H68)/(D68/1000)) -> 3.106840684
B69: Hornsby | C69: 510 | D69: 168614 | E69: 330.6156863 | F69: 571 | G69: 295.295972 | H69: 663.53 | I69: 3.93520111
B70: Hunters Hill | C70: 5.7 | D70: 14689 | E70: 2577.017544 | F70: 59 | G70: 248.9661017 | H70: 65 | I70: 4.425079992
B71: Hurstville | C71: 22.7 | D71: 85886 | E71: 3783.524229 | F71: 315.62 | G71: 272.1183702 | H71: 230.38 | I71: 2.682392939
B72: Inverell | C72: 8605.8 | D72: 16846 | E72: 1.957517023 | F72: 210 | G72: 80.21904762 | H72: 2139.394 | I72: 126.9971507
B73: Jerilderie | C73: 3373.1 | D73: 1519 | E73: 0.4503275918 | F73: 42 | G73: 36.16666667 | H73: 1101.22 | I73: 724.963792
B74: Junee | C74: 2030.2 | D74: 6297 | E74: 3.101664861 | F74: 60 | G74: 104.95 | H74: 881.51 | I74: 139.9888836
B75: Kempsey | C75: 3378.8 | D75: 29643 | E75: 8.773233101 | F75: 298 | G75: 99.47315436 | H75: 1188.4 | I75: 40.0904092
B76: Kiama | C76: 258 | D76: 21314 | E76: 82.6124031 | F76: 338 | G76: 63.0591716 | H76: 262.51 | I76: 12.31631791
B77: Kogarah | C77: 15.6 | D77: 61030 | E77: 3912.179487 | F77: 243 | G77: 251.1522634 | H77: 163.63 | I77: 2.681140423
B78: Ku-Ring-Gai | C78: 85.4 | D78: 120978 | E78: 1416.604215 | F78: 424 | G78: 285.3254717 | H78: 482.23 | I78: 3.986096646
B79: Kyogle | C79: 3589.1 | D79: 9531 | E79: 2.655540386 | F79: 101 | G79: 94.36633663 | H79: 1216.13 | I79: 127.597314
B80: Lachlan | C80: 14973.2 | D80: 6775 | E80: 0.4524750888 | F80: 132 | G80: 51.32575758 | H80: 3981.53 | I80: 587.6797048
B81: Lake Macquarie | C81: 757 | D81: 202676 | E81: 267.7357992 | F81: 932 | G81: 217.4635193 | H81: 1332.92 | I81: 6.576605025
B82: Lane Cove | C82: 10.5 | D82: 34807 | E82: 3314.952381 | F82: 185 | G82: 188.1459459 | H82: 101.46 | I82: 2.914930905
B83: Leeton | C83: 1167 | D83: 11595 | E83: 9.935732648 | F83: 135 | G83: 85.88888889 | H83: 900.96 | I83: 77.70245796
B84: Leichhardt | C84: 10.32 | D84: 58136 | E84: 5633.333333 | F84: 451 | G84: 128.9046563 | H84: 151.38 | I84: 2.603894317
B85: Lismore | C85: 1289.6 | D85: 44629 | E85: 34.60685484 | F85: 417.44 | G85: 106.9111729 | H85: 1216.1 | I85: 27.24909812
B86: Lithgow | C86: 4513.8 | D86: 21249 | E86: 4.707563472 | F86: 188 | G86: 113.0265957 | H86: 904.325 | I86: 42.55847334
B87: Liverpool | C87: 305.5 | D87: 199928 | E87: 654.4288052 | F87: 704 | G87: 283.9886364 | H87: 875.67 | I87: 4.379926774
B88: Liverpool Plains | C88: 5086.4 | D88: 7819 | E88: 1.537236552 | F88: 113 | G88: 69.19469027 | H88: 1394.25 | I88: 178.3156414
B89: Lockhart | C89: 2895.8 | D89: 3080 | E89: 1.063609365 | F89: 48 | G89: 64.16666667 | H89: 1630.44 | I89: 529.3636364
B90: Maitland | C90: 391.7 | D90: 75170 | E90: 191.9070717 | F90: 369 | G90: 203.7127371 | H90: 687.26 | I90: 9.142743116
B91: Manly | C91: 14.4 | D91: 44786 | E91: 3110.138889 | F91: 338 | G91: 132.5029586 | H91: 109.3 | I91: 2.440494797
B92: Marrickville | C92: 16.5 | D92: 83356 | E92: 5051.878788 | F92: 520.44 | G92: 160.1644762 | H92: 216.1 | I92: 2.592494841
B93: Mid Western Regional | C93: 8757.9 | D93: 24017 | E93: 2.742324073 | F93: 300 | G93: 80.05666667 | H93: 2246.943 | I93: 93.55635591
B94: Moree Plains | C94: 17928.8 | D94: 14092 | E94: 0.7859979474 | F94: 222 | G94: 63.47747748 | H94: 2899.4 | I94: 205.7479421
B95: Mosman | C95: 8.7 | D95: 30276 | E95: 3480 | F95: 174 | G95: 174 | H95: 96.6 | I95: 3.190646056
B96: Murray | C96: 4344 | D96: 7466 | E96: 1.718692449 | F96: 91 | G96: 82.04395604 | H96: 1422.953 | I96: 190.5910796
B97: Murrumbidgee | C97: 3507.1 | D97: 2528 | E97: 0.7208234724 | F97: 39 | G97: 64.82051282 | H97: 613.09 | I97: 242.5197785
B98: Muswellbrook | C98: 3407.1 | D98: 17045 | E98: 5.002788295 | F98: 158 | G98: 107.8797468 | H98: 621.99 | I98: 36.49105309
B99: Nambucca | C99: 1492.8 | D99: 19655 | E99: 13.16653269 | F99: 107.94 | G99: 182.0919029 | H99: 708.13 | I99: 36.0279827
B100: Narrabri | C100: 13027.8 | D100: 13764 | E100: 1.056509925 | F100: 162 | G100: 84.96296296 | H100: 2316.58 | I100: 168.3071781
B101: Narrandera | C101: 4116.9 | D101: 5961 | E101: 1.447934125 | F101: 119 | G101: 50.09243697 | H101: 1555.591 | I101: 260.9614159
B102: Narromine | C102: 5224 | D102: 6854 | E102: 1.31202144 | F102: 80 | G102: 85.675 | H102: 1571.79 | I102: 229.3244821
B103: Newcastle | C103: 214 | D103: 160021 | E103: 747.7616822 | F103: 867 | G103: 184.5686275 | H103: 874.96 | I103: 5.467782354
B104: North Sydney | C104: 10.5 | D104: 71025 | E104: 6764.285714 | F104: 391 | G104: 181.6496164 | H104: 152.5 | I104: 2.147131292
B105: Oberon | C105: 3628 | D105: 5327 | E105: 1.468302095 | F105: 72 | G105: 73.98611111 | H105: 951.66 | I105: 178.648395
B106: Orange | C106: 284.1 | D106: 41431 | E106: 145.8324534 | F106: 377 | G106: 109.8965517 | H106: 484.019 | I106: 11.6825324
B107: Palerang | C107: 5146.7 | D107: 15510 | E107: 3.013581518 | F107: 120 | G107: 129.25 | H107: 1301.43 | I107: 83.90909091
B108: Parkes | C108: 5958.1 | D108: 15217 | E108: 2.554002115 | F108: 165 | G108: 92.22424242 | H108: 2127.38 | I108: 139.8028521
B109: Parramatta | C109: 61.4 | D109: 189932 | E109: 3093.355049 | F109: 790.5 | G109: 240.2681847 | H109: 558.569 | I109: 2.940889371
B110: Penrith | C110: 404.8 | D110: 194134 | E110: 479.5800395 | F110: 1055.5 | G110: 183.9261014 | H110: 1071.98 | I110: 5.521856038
B111: Pittwater | C111: 90.4 | D111: 63338 | E111: 700.6415929 | F111: 302 | G111: 209.7284768 | H111: 254.47 | I111: 4.017651331
B112: Port Macquarie-Hastings | C112: 3686 | D112: 77481 | E112: 21.02034726 | F112: 492 | G112: 157.4817073 | H112: 1321.869 | I112: 17.06055678
B113: Port Stephens | C113: 859 | D113: 69728 | E113: 81.17345751 | F113: 419 | G113: 166.4152745 | H113: 718.56 | I113: 10.30518587
B114: Queanbeyan | C114: 172.4 | D114: 40858 | E114: 236.9953596 | F114: 278 | G114: 146.971223 | H114: 310.65 | I114: 7.603162171
B115: Randwick | C115: 36.3 | D115: 143776 | E115: 3960.77135 | F115: 530 | G115: 271.2754717 | H115: 302.9 | I115: 2.106749388
B116: Richmond Valley | C116: 3051.4 | D116: 22983 | E116: 7.531952546 | F116: 244 | G116: 94.19262295 | H116: 1084.45 | I116: 47.18487578
B117: Rockdale | C117: 28.2 | D117: 108072 | E117: 3832.340426 | F117: 361 | G117: 299.3684211 | H117: 284.25 | I117: 2.630190984
B118: Ryde | C118: 40.5 | D118: 114598 | E118: 2829.580247 | F118: 441 | G118: 259.8594104 | H118: 318.49 | I118: 2.779193354
B119: Shellharbour | C119: 147.4 | D119: 68762 | E119: 466.4993216 | F119: 344 | G119: 199.8895349 | H119: 388.23 | I119: 5.645996335
B120: Shoalhaven | C120: 4530.6 | D120: 99016 | E120: 21.85494195 | F120: 756 | G120: 130.973545 | H120: 1731.897 | I120: 17.49108225
B121: Singleton | C121: 4895.6 | D121: 23884 | E121: 4.878666558 | F121: 201 | G121: 118.8258706 | H121: 845.43 | I121: 35.39733713
B122: Snowy River | C122: 6029 | D122: 8069 | E122: 1.338364571 | F122: 129.4 | G122: 62.35703246 | H122: 895.64 | I122: 110.9976453
B123: Strathfield | C123: 13.9 | D123: 39481 | E123: 2840.359712 | F123: 137 | G123: 288.1824818 | H123: 97.02 | I123: 2.457384565
B124: Sutherland | C124: 370 | D124: 225070 | E124: 608.2972973 | F124: 1018 | G124: 221.0903733 | H124: 818 | I124: 3.634424846
B125: Sydney | C125: 26.7 | D125: 198331 | E125: 7428.127341 | F125: 1803.5 | G125: 109.9700582 | H125: 329.37 | I125: 1.660708613
B126: Tamworth Regional | C126: 9893.6 | D126: 60495 | E126: 6.114558907 | F126: 496 | G126: 121.9657258 | H126: 3185.85 | I126: 52.66303
B127: Temora | C127: 2802.6 | D127: 6050 | E127: 2.158709769 | F127: 88 | G127: 68.75 | H127: 1240.16 | I127: 204.985124
B128: Tenterfield | C128: 7332.1 | D128: 6980 | E128: 0.9519782873 | F128: 94 | G128: 74.25531915 | H128: 1689.188 | I128: 242.0040115
B129: Tumbarumba | C129: 4391 | D129: 3578 | E129: 0.8148485539 | F129: 90 | G129: 39.75555556 | H129: 556.44 | I129: 155.5170486
B130: Tumut | C130: 4566.5 | D130: 11375 | E130: 2.490966824 | F130: 130 | G130: 87.5 | H130: 635.3 | I130: 55.85054945
B131: Tweed | C131: 1309.4 | D131: 91210 | E131: 69.65785856 | F131: 675 | G131: 135.1259259 | H131: 1245 | I131: 13.6498191
B132: Upper Hunter | C132: 8100 | D132: 14658 | E132: =D132/C132 -> 1.80962963 | F132: 198 | G132: =D132/F132 -> 74.03030303 | H132: 1769.5 | I132: =((H132)/(D132/1000)) -> 120.7190613
B133: Upper Lachlan | C133: 7228.8 | D133: 7761 | E133: 1.073622178 | F133: 133 | G133: 58.35338346 | H133: 1985.4 | I133: 255.8175493
B134: Uralla | C134: 3229.8 | D134: 6408 | E134: 1.984023779 | F134: 114 | G134: 56.21052632 | H134: 961.1 | I134: 149.9843945
B135: Urana | C135: 3356 | D135: 1147 | E135: 0.3417759237 | F135: 35 | G135: 32.77142857 | H135: 984.65 | I135: 858.4568439
B136: Wagga Wagga | C136: 4825.9 | D136: 62799 | E136: 13.01290951 | F136: 451.35 | G136: 139.1359256 | H136: 2291.114 | I136: 36.48328795
B137: Wakool | C137: 7520.8 | D137: 3990 | E137: 0.5305286672 | F137: 74 | G137: 53.91891892 | H137: 1571.83 | I137: 393.9423559
B138: Walcha | C138: 6266.9 | D138: 3098 | E138: 0.4943432957 | F138: 68.36 | G138: 45.31889994 | H138: 931.63 | I138: 300.7198192
B139: Walgett | C139: 22334.8 | D139: 6840 | E139: 0.3062485449 | F139: 129 | G139: 53.02325581 | H139: 2374.922 | I139: 347.2108187
B140: Warren | C140: 10763 | D140: 2921 | E140: 0.2713927344 | F140: 73 | G140: 40.01369863 | H140: 1323.96 | I140: 453.2557343
B141: Warringah | C141: 149.4 | D141: 155289 | E141: 1039.417671 | F141: 589 | G141: 263.6485569 | H141: 486.97 | I141: 3.135895009
B142: Warrumbungle | C142: 12381.3 | D142: 9786 | E142: 0.7903855007 | F142: 183 | G142: 53.47540984 | H142: 2667.71 | I142: 272.6047415
B143: Waverley | C143: 9.2 | D143: 71769 | E143: 7800.978261 | F143: 600.1 | G143: 119.5950675 | H143: 123.46 | I143: 1.72024133
B144: Weddin | C144: 3409.6 | D144: 3709 | E144: 1.087810887 | F144: 57 | G144: 65.07017544 | H144: 1093.99 | I144: 294.9555136
B145: Wellington | C145: 4112.5 | D145: 9054 | E145: 2.201580547 | F145: 106 | G145: 85.41509434 | H145: 1415.6 | I145: 156.3507842
B146: Wentworth | C146: 26266.9 | D146: 6884 | E146: 0.2620788902 | F146: 102 | G146: 67.49019608 | H146: 2318.75 | I146: 336.8317838
B147: Willoughby | C147: 22.4 | D147: 74166 | E147: 3310.982143 | F147: 395 | G147: 187.7620253 | H147: 211.45 | I147: 2.851036863
B148: Wingecarribee | C148: 2688.9 | D148: 47584 | E148: 17.6964558 | F148: 367 | G148: 129.6566757 | H148: 1203.868 | I148: 25.29984869
B149: Wollondilly | C149: 2556.6 | D149: 47084 | E149: 18.41664711 | F149: 221 | G149: 213.0497738 | H149: 865.174 | I149: 18.37511681
B150: Wollongong | C150: 715 | D150: 206794 | E150: 289.2223776 | F150: 1009 | G150: 204.9494549 | H150: 1014.88 | I150: 4.90768591
B151: Woollahra | C151: 12.2 | D151: 58619 | E151: 4804.836066 | F151: 367 | G151: 159.7247956 | H151: 145.82 | I151: 2.487589348
B152: Wyong | C152: 821.5 | D152: 159015 | E152: 193.5666464 | F152: 906 | G152: 175.513245 | H152: 1039.4 | I152: 6.536490268
B153: Yass Valley | C153: 3998.5 | D153: 16433 | E153: 4.109791172 | F153: 149 | G153: 110.2885906 | H153: 1232.69 | I153: 75.01308343
B154: Young | C154: 2693.3 | D154: 12641 | E154: 4.693498682 | F154: 111 | G154: 113.8828829 | H154: 1171.54 | I154: 92.67779448
